Workbook

Sheet Anleitung
A1: Anleitung
A2: Um die Beschreibung zu den entsprechenden Themen zu öffnen, klicke auf das "+" auf der linken Seite.
A4: 1 Aufbau und Logik der Exceltabelle:
A5: Die Mehrjahresplanung ist in folgende 5 Tabellenblätter aufgeteilt: - Anleitung - Personenstammblatt - Planung Sport - Planung Ausbildung - Übersichtsblatt Wenn du diese 5 Tabellenblätter von links nach rechts durcharbeitest, geht nichts vergessen. In den einzelnen Tabellenblättern gibt es eine kurze Beschreibung (immer in roter Schrift), was du wo eintragen musst. Weitere Informationen zu den einzelnen Tabellenblättern findest du unter 1.1 - 1.5.
A7: 1.1 Tabellenblatt "Anleitung":
A8: In diesem Tabellenblatt findest du eine kurze Anleitung zur Vorlage Karriereplanung.
A10: 1.2 Tabellenblatt "Personenstammblatt":
A11: Das "Personenstammblatt" dient dazu die persönlichen Angaben zu erfassen. Diese werden fürs Übersichtsblatt übernommen. Du musst sie nur einmal ausfüllen und zwar im Jahr, in welchem du mit der Mehrjahresplanung beginnst!
A13: 1.3 Tabellenblatt "Planung Sport":
A14: Dieses Tabellenblatt ist in folgende drei Spalten aufgeteilt: - Kategorie / Kader - Saisonziele - Grobplanung Training Die auszufüllenden Jahre/Saisons werden automatisch gelb eingefärbt und dienen als Orientierungshilfe. Kategorie / Kader: Trage in dieser Spalte deine Kategorie-/Kaderzugehörigkeit pro Jahr oder Saison ein. Zum Beispiel "U16" oder "A-Kader". Saisonziele: In dieser Spalte kannst du deine Saisonziele pro Jahr beziehungsweise Saison eintragen. Dazu musst du nur das Datum (Format: TT/MM/JJJJ) sowie die Beschreibung des Saisonziels (z.B. "WM" oder "Olympische Spiele") eintragen. Zusätzlich zu jedem Jahr gibt es zwei weitere Zeilen "Militärdienst". Hier kannst du für die Rekrutenschule (RS) oder den Wiederholungskurs (WK) eintragen. Falls du keinen Militärdienst leistest, dann lass die Zeilen "Militärdienst" leer. Grobplanung Training: In der Spalte kannst du pro Jahr beziehungsweise Saison deine Anzahl Trainingseinheiten pro Woche, deinen Trainingsaufwand (in Stunden pro Woche) und deine Trainingsschwerpunkte eintragen.
A16: 1.4 Tabellenblatt "Planung Ausbildung":
A17: Die Aufbau-Logik entspricht dem Tabellenblatt "Planung Sport". Dieses Tabellenblatt ist in folgende zwei Spalten aufgeteilt: - Ausbildung - Wichtige Termine Ausbildung: Pro Jahr beziehungsweise Saison kannst du in dieser Spalte deine momentane oder geplante Ausbildung eintragen (z.B. "KV-Lehre" oder "Gymnasium"). Falls es in einem Jahr beziehungsweise einer Saison einen Ausbildungswechsel gibt (z.B. Abschluss des Gymnasiums oder Studiumbeginn), dann trage dies wie folgt ein: "Gymnasium/Studium". Wichtige Termine: Dies funktioniert analog "Saisonziele" im Tabellenblatt "Planung Sport". Dazu musst du nur das Datum (Format: TT/MM/JJJJ) sowie die Beschreibung des Termins (z.B. "Abschlussprüfung" oder "Pflichtveranstaltung") eintragen.
A19: 1.5 Tabellenblatt "Übersichtsblatt":
A20: Das Übersichtsblatt wird automatisch mit den Informationen der vorherigen Tabellenblätter (Personenstammblatt, Planung Sport und Planung Ausbildung) ausgefüllt. Falls du merkst, dass eine Information falsch eingetragen wurde, dann passe diese im vorherigen Tabellenblatt an. In der Mitte des Übersichtsblattes findest du den Zeitstrahl mit den eingetragenen Saisonzielen und Terminen für die aktuellen 4 Jahre. Wenn zwei Saisonziele beziehungsweise Termine zum gleichen Zeitpunkt stattfinden, dann hast du wahrscheinlich eine Terminüberschneidung. Falls dies der Fall ist, dann solltest du deine Planung überdenken und allenfalls anpassen.

Sheet Personenstammblatt
A1: Personenstammblatt
A2: Fülle die grauen, leeren Zellen korrekt aus. Die Daten sind für die weiteren Arbeitsblätter relevant und werden automatisch übertragen.
A4: Name
A5: Vorname
A6: Geburtsdatum
A8: Sportart
A9: Sportverband
A12: Beginn Karriereplanung | B12: 2022

Sheet Planung Sport
A1: Planung Sport
A3: Kategorie / Kader | J3: Saisonziele | Q3: Grobplanung Training
A4: Hier kannst du in den entsprechenden Jahren/Saisons deine Kader-/Kategoriezugehörigkiet eintragen. Verwende dafür das weisse Feld. Du musst nur die eingefärbten Felder ausfüllen. | J4: Trage in den untenstehenden Felder deine Ziel- und Hauptwettkämpfe sowie weitere Ziele pro Jahr/Saison ein. Die beiden roten Zeilen sind für den Militärdienst (RS oder WK) gedacht. Du musst nur das Datum des Saisonziels sowie die Beschreibung (z.B. Olympische Spiele) pro Jahr/Saison eintragen. Du musst nur die eingefärbten Felder ausfüllen. Format Datum: TT/MM/JJJJ | Q4: Trage für jedes Jahr/Saison in den untenstehenden leeren Feldern deine Anzahl Trainingseinheiten pro Woche, deinen Trainingsumfang (in Stunden pro Woche) sowie deine Trainingsschwerpunkte (z.B. Ausdauer, Kraft usw.) ein. Du musst nur die eingefärbten Felder ausfüllen.
B6: =Personenstammblatt!$B$12 -> 2022 | G6: =TODAY() -> 2023-05-31 | K6: =B6 -> 2022 | R6: =$B6 -> 2022
A8: Kategorie / Kader | G8: =YEAR(G6) -> 2023 | K8: Datum | L8: Saisonziele | Q8: Anz. Trainingseinheiten pro Woche
G9: =G8+1 -> 2024 | J9: Saisonziel 1
G10: =G9+1 -> 2025 | J10: Saisonziel 2 | Q10: Trainingsumfang (h/W)
G11: =G10+1 -> 2026 | J11: Saisonziel 3
J12: Saisonziel 4 | Q12: Trainingsschwerpunkte
J13: Saisonziel 5
J14: Militärdienst Beginn
J15: Militärdienst Ende
B16: =B6+1 -> 2023 | K16: =B16 -> 2023 | R16: =$B16 -> 2023
A18: Kategorie / Kader | K18: Datum | L18: Saisonziele | Q18: Anz. Trainingseinheiten pro Woche
J19: Saisonziel 1
J20: Saisonziel 2 | Q20: Trainingsumfang (h/W)
J21: Saisonziel 3
J22: Saisonziel 4 | Q22: Trainingsschwerpunkte
J23: Saisonziel 5
J24: Militärdienst Beginn
J25: Militärdienst Ende
B26: =B16+1 -> 2024 | K26: =B26 -> 2024 | R26: =$B26 -> 2024
A28: Kategorie / Kader | K28: Datum | L28: Saisonziele | Q28: Anz. Trainingseinheiten pro Woche
J29: Saisonziel 1
J30: Saisonziel 2 | Q30: Trainingsumfang (h/W)
J31: Saisonziel 3
J32: Saisonziel 4 | Q32: Trainingsschwerpunkte
J33: Saisonziel 5
J34: Militärdienst Beginn
J35: Militärdienst Ende
B36: =B26+1 -> 2025 | K36: =B36 -> 2025 | R36: =$B36 -> 2025
A38: Kategorie / Kader | K38: Datum | L38: Saisonziele | Q38: Anz. Trainingseinheiten pro Woche
J39: Saisonziel 1
J40: Saisonziel 2 | Q40: Trainingsumfang (h/W)
J41: Saisonziel 3
J42: Saisonziel 4 | Q42: Trainingsschwerpunkte
J43: Saisonziel 5
J44: Militärdienst Beginn
J45: Militärdienst Ende
B46: =B36+1 -> 2026 | K46: =B46 -> 2026 | R46: =$B46 -> 2026
A48: Kategorie / Kader | K48: Datum | L48: Saisonziele | Q48: Anz. Trainingseinheiten pro Woche
J49: Saisonziel 1
J50: Saisonziel 2 | Q50: Trainingsumfang (h/W)
J51: Saisonziel 3
J52: Saisonziel 4 | Q52: Trainingsschwerpunkte
J53: Saisonziel 5
J54: Militärdienst Beginn
J55: Militärdienst Ende
B56: =B46+1 -> 2027 | K56: =B56 -> 2027 | R56: =$B56 -> 2027
A58: Kategorie / Kader | K58: Datum | L58: Saisonziele | Q58: Anz. Trainingseinheiten pro Woche
J59: Saisonziel 1
J60: Saisonziel 2 | Q60: Trainingsumfang (h/W)
J61: Saisonziel 3
J62: Saisonziel 4 | Q62: Trainingsschwerpunkte
J63: Saisonziel 5
J64: Militärdienst Beginn
J65: Militärdienst Ende
B66: =B56+1 -> 2028 | K66: =B66 -> 2028 | R66: =$B66 -> 2028
A68: Kategorie / Kader | K68: Datum | L68: Saisonziele | Q68: Anz. Trainingseinheiten pro Woche
J69: Saisonziel 1
J70: Saisonziel 2 | Q70: Trainingsumfang (h/W)
J71: Saisonziel 3
J72: Saisonziel 4 | Q72: Trainingsschwerpunkte
J73: Saisonziel 5
J74: Militärdienst Beginn
J75: Militärdienst Ende
B76: =B66+1 -> 2029 | K76: =B76 -> 2029 | R76: =$B76 -> 2029
A78: Kategorie / Kader | K78: Datum | L78: Saisonziele | Q78: Anz. Trainingseinheiten pro Woche
J79: Saisonziel 1
J80: Saisonziel 2 | Q80: Trainingsumfang (h/W)
J81: Saisonziel 3
J82: Saisonziel 4 | Q82: Trainingsschwerpunkte
J83: Saisonziel 5
J84: Militärdienst Beginn
J85: Militärdienst Ende
B86: =B76+1 -> 2030 | K86: =B86 -> 2030 | R86: =$B86 -> 2030
A88: Kategorie / Kader | K88: Datum | L88: Saisonziele | Q88: Anz. Trainingseinheiten pro Woche
J89: Saisonziel 1
J90: Saisonziel 2 | Q90: Trainingsumfang (h/W)
J91: Saisonziel 3
J92: Saisonziel 4 | Q92: Trainingsschwerpunkte
J93: Saisonziel 5
J94: Militärdienst Beginn
J95: Militärdienst Ende
B96: =B86+1 -> 2031 | K96: =B96 -> 2031 | R96: =$B96 -> 2031
A98: Kategorie / Kader | K98: Datum | L98: Saisonziele | Q98: Anz. Trainingseinheiten pro Woche
J99: Saisonziel 1
J100: Saisonziel 2 | Q100: Trainingsumfang (h/W)
J101: Saisonziel 3
J102: Saisonziel 4 | Q102: Trainingsschwerpunkte
J103: Saisonziel 5
J104: Militärdienst Beginn
J105: Militärdienst Ende
B106: =B96+1 -> 2032 | K106: =B106 -> 2032 | R106: =$B106 -> 2032
A108: Kategorie / Kader | K108: Datum | L108: Saisonziele | Q108: Anz. Trainingseinheiten pro Woche
J109: Saisonziel 1
J110: Saisonziel 2 | Q110: Trainingsumfang (h/W)
J111: Saisonziel 3
J112: Saisonziel 4 | Q112: Trainingsschwer-punkte
J113: Saisonziel 5
J114: Militärdienst Beginn
J115: Militärdienst Ende

Sheet Planung Ausbildung
A1: Planung Ausbildung
A3: Ausbildung | J3: Wichtige Termine
A4: Trage die entsprechende Ausbildung pro Jahr/Saison ein. Falls es in einem Jahr einen Ausbildungswechsel (z.B. Abschluss Gymnasium, Beginn Studium) gibt, dann trage es wie folgt ein: "Gymnasium/Studium" Du musst nur die eingefärbten Felder ausfüllen. | J4: Trage in den untenstehenden Feldern die wichtigsten Termine pro Jahr/Saison ein. Wichtig ist, dass du das Datum des Termins sowie die Beschreibung (z.B. Lehrabschlussprüfung, Pflichtveranstaltungen, Semesterprüfungen) pro Jahr einträgst. Du musst nur die eingefärbten Felder ausfüllen. Format Datum: TT/MM/JJJJ
B6: ='Planung Sport'!B6 -> 2022 | I6: ='Planung Sport'!$G$6 -> 2023-05-31 | K6: =B6 -> 2022
A8: Ausbildung | I8: =YEAR(I6) -> 2023 | K8: Datum | L8: wichtige Termine
I9: =I8+1 -> 2024 | J9: Termin 1
I10: =I9+1 -> 2025 | J10: Termin 2
I11: =I10+1 -> 2026 | J11: Termin 3
J12: Termin 4
J13: Termin 5
B14: =B6+1 -> 2023 | K14: =B14 -> 2023
A16: Ausbildung | K16: Datum | L16: wichtige Termine
J17: Termin 1
J18: Termin 2
J19: Termin 3
J20: Termin 4
J21: Termin 5
B22: =B14+1 -> 2024 | K22: =B22 -> 2024
A24: Ausbildung | K24: Datum | L24: wichtige Termine
J25: Termin 1
J26: Termin 2
J27: Termin 3
J28: Termin 4
J29: Termin 5
B30: =B22+1 -> 2025 | K30: =B30 -> 2025
A32: Ausbildung | K32: Datum | L32: wichtige Termine
J33: Termin 1
J34: Termin 2
J35: Termin 3
J36: Termin 4
J37: Termin 5
B38: =B30+1 -> 2026 | K38: =B38 -> 2026
A40: Ausbildung | K40: Datum | L40: wichtige Termine
J41: Termin 1
J42: Termin 2
J43: Termin 3
J44: Termin 4
J45: Termin 5
B46: =B38+1 -> 2027 | K46: =B46 -> 2027
A48: Ausbildung | K48: Datum | L48: wichtige Termine
J49: Termin 1
J50: Termin 2
J51: Termin 3
J52: Termin 4
J53: Termin 5
B54: =B46+1 -> 2028 | K54: =B54 -> 2028
A56: Ausbildung | K56: Datum | L56: wichtige Termine
J57: Termin 1
J58: Termin 2
J59: Termin 3
J60: Termin 4
J61: Termin 5
B62: =B54+1 -> 2029 | K62: =B62 -> 2029
A64: Ausbildung | K64: Datum | L64: wichtige Termine
J65: Termin 1
J66: Termin 2
J67: Termin 3
J68: Termin 4
J69: Termin 5
B70: =B62+1 -> 2030 | K70: =B70 -> 2030
A72: Ausbildung | K72: Datum | L72: wichtige Termine
J73: Termin 1
J74: Termin 2
J75: Termin 3
J76: Termin 4
J77: Termin 5
B78: =B70+1 -> 2031 | K78: =B78 -> 2031
A80: Ausbildung | K80: Datum | L80: wichtige Termine
J81: Termin 1
J82: Termin 2
J83: Termin 3
J84: Termin 4
J85: Termin 5
B86: =B78+1 -> 2032 | K86: =B86 -> 2032
A88: Ausbildung | K88: Datum | L88: wichtige Termine
J89: Termin 1
J90: Termin 2
J91: Termin 3
J92: Termin 4
J93: Termin 5

Sheet Übersichtsblatt
A1: Übersichtsblatt von: | C1: =Personenstammblatt!$B$5&" "&Personenstammblatt!$B$4 -> 
A2: Sportart: | C2: =Personenstammblatt!B8 -> 0
A3: Sportverband: | C3: =Personenstammblatt!B9 -> 0
A5: Planung Sport
A6: Alle Felder werden automatisch ausgefüllt. Dafür musst die Tabellenblätter "Personenstammblatt" und "Planung Sport" vollständig ausfüllen.
C8: ='Planung Sport'!G8 -> 2023 | G8: ='Planung Sport'!G9 -> 2024 | K8: ='Planung Sport'!G10 -> 2025 | O8: ='Planung Sport'!G11 -> 2026
C9: =DATE(C8,1,1) -> 2023-01-01 | E9: =VLOOKUP($C$8,'Hilfstabelle Alter'!$A$1:$B$43,2,0) -> 2023-07-01 | G9: =DATE(G8,1,1) -> 2024-01-01 | I9: =VLOOKUP($G$8,'Hilfstabelle Alter'!$A$1:$B$43,2,0) -> 2024-07-01 | K9: =DATE(K8,1,1) -> 2025-01-01 | M9: =VLOOKUP($K$8,'Hilfstabelle Alter'!$A$1:$B$43,2,0) -> 2025-07-01 | O9: =DATE(O8,1,1) -> 2026-01-01 | Q9: =VLOOKUP($O$8,'Hilfstabelle Alter'!$A$1:$B$43,2,0) -> 2026-07-01
A11: Alter | C11: =IF(Personenstammblatt!$B$6="","",DATEDIF(Personenstammblatt!$B$6,Übersichtsblatt!E$9,"Y")) ->  | G11: =IF(Personenstammblatt!$B$6="","",DATEDIF(Personenstammblatt!$B$6,Übersichtsblatt!I$9,"Y")) ->  | K11: =IF(Personenstammblatt!$B$6="","",DATEDIF(Personenstammblatt!$B$6,Übersichtsblatt!M$9,"Y")) ->  | O11: =IF(Personenstammblatt!$B$6="","",DATEDIF(Personenstammblatt!$B$6,Übersichtsblatt!Q$9,"Y")) -> 
A12: Kategorie / Kader | C12: =VLOOKUP(C$8,'Hilfstabelle Sport Kategorien'!$A$1:$B$22,2,0) -> 0 | G12: =VLOOKUP(G$8,'Hilfstabelle Sport Kategorien'!$A$1:$B$22,2,0) -> 0 | K12: =VLOOKUP(K$8,'Hilfstabelle Sport Kategorien'!$A$1:$B$22,2,0) -> 0 | O12: =VLOOKUP(O$8,'Hilfstabelle Sport Kategorien'!$A$1:$B$22,2,0) -> 0
A13: Saisonziele
A14: Saisonziel 1 | B14: =VLOOKUP(C$8&$A14,CHOOSE({1,2},'Hilfstabelle Sport Saisonziele'!$A$2:$A$294&'Hilfstabelle Sport Saisonziele'!$C$2:$C$294,'Hilfstabelle Sport Saisonziele'!$B$2:$B$294),2,0) -> 00:00:00 | C14: =IFERROR(IF(VLOOKUP(C$8&$A14,CHOOSE({1,2},'Hilfstabelle Sport Saisonziele'!$A$2:$A$148&'Hilfstabelle Sport Saisonziele'!$C$2:$C$148,'Hilfstabelle Sport Saisonziele'!$D$2:$D$148),2,FALSE)=0,"",VLOOKUP(C$8&$A14,CHOOSE({1,2},'Hilfstabelle Sport Saisonziele'!$A$2:$A$148&'Hilfstabelle Sport Saisonziele'!$C$2:$C$148,'Hilfstabelle Sport Saisonziele'!$D$2:$D$148),2,FALSE)),"") ->  | F14: =IFERROR(IF(VLOOKUP(G$8&$A14,CHOOSE({1,2},'Hilfstabelle Sport Saisonziele'!$A$2:$A$294&'Hilfstabelle Sport Saisonziele'!$C$2:$C$294,'Hilfstabelle Sport Saisonziele'!$B$2:$B$294),2,FALSE)=0,"",VLOOKUP(G$8&$A14,CHOOSE({1,2},'Hilfstabelle Sport Saisonziele'!$A$2:$A$294&'Hilfstabelle Sport Saisonziele'!$C$2:$C$294,'Hilfstabelle Sport Saisonziele'!$B$2:$B$294),2,FALSE)),"") ->  | G14: =IFERROR(IF(VLOOKUP(G$8&$A14,CHOOSE({1,2},'Hilfstabelle Sport Saisonziele'!$A$2:$A$148&'Hilfstabelle Sport Saisonziele'!$C$2:$C$148,'Hilfstabelle Sport Saisonziele'!$D$2:$D$148),2,FALSE)=0,"",VLOOKUP(G$8&$A14,CHOOSE({1,2},'Hilfstabelle Sport Saisonziele'!$A$2:$A$148&'Hilfstabelle Sport Saisonziele'!$C$2:$C$148,'Hilfstabelle Sport Saisonziele'!$D$2:$D$148),2,FALSE)),"") ->  | J14: =IFERROR(IF(VLOOKUP(K$8&$A14,CHOOSE({1,2},'Hilfstabelle Sport Saisonziele'!$A$2:$A$294&'Hilfstabelle Sport Saisonziele'!$C$2:$C$294,'Hilfstabelle Sport Saisonziele'!$B$2:$B$294),2,FALSE)=0,"",VLOOKUP(K$8&$A14,CHOOSE({1,2},'Hilfstabelle Sport Saisonziele'!$A$2:$A$294&'Hilfstabelle Sport Saisonziele'!$C$2:$C$294,'Hilfstabelle Sport Saisonziele'!$B$2:$B$294),2,FALSE)),"") ->  | K14: =IFERROR(IF(VLOOKUP(K$8&$A14,CHOOSE({1,2},'Hilfstabelle Sport Saisonziele'!$A$2:$A$148&'Hilfstabelle Sport Saisonziele'!$C$2:$C$148,'Hilfstabelle Sport Saisonziele'!$D$2:$D$148),2,FALSE)=0,"",VLOOKUP(K$8&$A14,CHOOSE({1,2},'Hilfstabelle Sport Saisonziele'!$A$2:$A$148&'Hilfstabelle Sport Saisonziele'!$C$2:$C$148,'Hilfstabelle Sport Saisonziele'!$D$2:$D$148),2,FALSE)),"") ->  | N14: =IFERROR(IF(VLOOKUP(O$8&$A14,CHOOSE({1,2},'Hilfstabelle Sport Saisonziele'!$A$2:$A$294&'Hilfstabelle Sport Saisonziele'!$C$2:$C$294,'Hilfstabelle Sport Saisonziele'!$B$2:$B$294),2,FALSE)=0,"",VLOOKUP(O$8&$A14,CHOOSE({1,2},'Hilfstabelle Sport Saisonziele'!$A$2:$A$294&'Hilfstabelle Sport Saisonziele'!$C$2:$C$294,'Hilfstabelle Sport Saisonziele'!$B$2:$B$294),2,FALSE)),"") ->  | O14: =IFERROR(IF(VLOOKUP(O$8&$A14,CHOOSE({1,2},'Hilfstabelle Sport Saisonziele'!$A$2:$A$148&'Hilfstabelle Sport Saisonziele'!$C$2:$C$148,'Hilfstabelle Sport Saisonziele'!$D$2:$D$148),2,FALSE)=0,"",VLOOKUP(O$8&$A14,CHOOSE({1,2},'Hilfstabelle Sport Saisonziele'!$A$2:$A$148&'Hilfstabelle Sport Saisonziele'!$C$2:$C$148,'Hilfstabelle Sport Saisonziele'!$D$2:$D$148),2,FALSE)),"") -> 
A15: Saisonziel 2 | B15: =VLOOKUP(C$8&$A15,CHOOSE({1,2},'Hilfstabelle Sport Saisonziele'!$A$2:$A$294&'Hilfstabelle Sport Saisonziele'!$C$2:$C$294,'Hilfstabelle Sport Saisonziele'!$B$2:$B$294),2,0) -> 00:00:00 | C15: =IFERROR(IF(VLOOKUP(C$8&$A15,CHOOSE({1,2},'Hilfstabelle Sport Saisonziele'!$A$2:$A$148&'Hilfstabelle Sport Saisonziele'!$C$2:$C$148,'Hilfstabelle Sport Saisonziele'!$D$2:$D$148),2,FALSE)=0,"",VLOOKUP(C$8&$A15,CHOOSE({1,2},'Hilfstabelle Sport Saisonziele'!$A$2:$A$148&'Hilfstabelle Sport Saisonziele'!$C$2:$C$148,'Hilfstabelle Sport Saisonziele'!$D$2:$D$148),2,FALSE)),"") ->  | F15: =IFERROR(IF(VLOOKUP(G$8&$A15,CHOOSE({1,2},'Hilfstabelle Sport Saisonziele'!$A$2:$A$294&'Hilfstabelle Sport Saisonziele'!$C$2:$C$294,'Hilfstabelle Sport Saisonziele'!$B$2:$B$294),2,FALSE)=0,"",VLOOKUP(G$8&$A15,CHOOSE({1,2},'Hilfstabelle Sport Saisonziele'!$A$2:$A$294&'Hilfstabelle Sport Saisonziele'!$C$2:$C$294,'Hilfstabelle Sport Saisonziele'!$B$2:$B$294),2,FALSE)),"") ->  | G15: =IFERROR(IF(VLOOKUP(G$8&$A15,CHOOSE({1,2},'Hilfstabelle Sport Saisonziele'!$A$2:$A$148&'Hilfstabelle Sport Saisonziele'!$C$2:$C$148,'Hilfstabelle Sport Saisonziele'!$D$2:$D$148),2,FALSE)=0,"",VLOOKUP(G$8&$A15,CHOOSE({1,2},'Hilfstabelle Sport Saisonziele'!$A$2:$A$148&'Hilfstabelle Sport Saisonziele'!$C$2:$C$148,'Hilfstabelle Sport Saisonziele'!$D$2:$D$148),2,FALSE)),"") ->  | J15: =IFERROR(IF(VLOOKUP(K$8&$A15,CHOOSE({1,2},'Hilfstabelle Sport Saisonziele'!$A$2:$A$294&'Hilfstabelle Sport Saisonziele'!$C$2:$C$294,'Hilfstabelle Sport Saisonziele'!$B$2:$B$294),2,FALSE)=0,"",VLOOKUP(K$8&$A15,CHOOSE({1,2},'Hilfstabelle Sport Saisonziele'!$A$2:$A$294&'Hilfstabelle Sport Saisonziele'!$C$2:$C$294,'Hilfstabelle Sport Saisonziele'!$B$2:$B$294),2,FALSE)),"") ->  | K15: =IFERROR(IF(VLOOKUP(K$8&$A15,CHOOSE({1,2},'Hilfstabelle Sport Saisonziele'!$A$2:$A$148&'Hilfstabelle Sport Saisonziele'!$C$2:$C$148,'Hilfstabelle Sport Saisonziele'!$D$2:$D$148),2,FALSE)=0,"",VLOOKUP(K$8&$A15,CHOOSE({1,2},'Hilfstabelle Sport Saisonziele'!$A$2:$A$148&'Hilfstabelle Sport Saisonziele'!$C$2:$C$148,'Hilfstabelle Sport Saisonziele'!$D$2:$D$148),2,FALSE)),"") ->  | N15: =IFERROR(IF(VLOOKUP(O$8&$A15,CHOOSE({1,2},'Hilfstabelle Sport Saisonziele'!$A$2:$A$294&'Hilfstabelle Sport Saisonziele'!$C$2:$C$294,'Hilfstabelle Sport Saisonziele'!$B$2:$B$294),2,FALSE)=0,"",VLOOKUP(O$8&$A15,CHOOSE({1,2},'Hilfstabelle Sport Saisonziele'!$A$2:$A$294&'Hilfstabelle Sport Saisonziele'!$C$2:$C$294,'Hilfstabelle Sport Saisonziele'!$B$2:$B$294),2,FALSE)),"") ->  | O15: =IFERROR(IF(VLOOKUP(O$8&$A15,CHOOSE({1,2},'Hilfstabelle Sport Saisonziele'!$A$2:$A$148&'Hilfstabelle Sport Saisonziele'!$C$2:$C$148,'Hilfstabelle Sport Saisonziele'!$D$2:$D$148),2,FALSE)=0,"",VLOOKUP(O$8&$A15,CHOOSE({1,2},'Hilfstabelle Sport Saisonziele'!$A$2:$A$148&'Hilfstabelle Sport Saisonziele'!$C$2:$C$148,'Hilfstabelle Sport Saisonziele'!$D$2:$D$148),2,FALSE)),"") -> 
A16: Saisonziel 3 | B16: =VLOOKUP(C$8&$A16,CHOOSE({1,2},'Hilfstabelle Sport Saisonziele'!$A$2:$A$294&'Hilfstabelle Sport Saisonziele'!$C$2:$C$294,'Hilfstabelle Sport Saisonziele'!$B$2:$B$294),2,0) -> 00:00:00 | C16: =IFERROR(IF(VLOOKUP(C$8&$A16,CHOOSE({1,2},'Hilfstabelle Sport Saisonziele'!$A$2:$A$148&'Hilfstabelle Sport Saisonziele'!$C$2:$C$148,'Hilfstabelle Sport Saisonziele'!$D$2:$D$148),2,FALSE)=0,"",VLOOKUP(C$8&$A16,CHOOSE({1,2},'Hilfstabelle Sport Saisonziele'!$A$2:$A$148&'Hilfstabelle Sport Saisonziele'!$C$2:$C$148,'Hilfstabelle Sport Saisonziele'!$D$2:$D$148),2,FALSE)),"") ->  | F16: =IFERROR(IF(VLOOKUP(G$8&$A16,CHOOSE({1,2},'Hilfstabelle Sport Saisonziele'!$A$2:$A$294&'Hilfstabelle Sport Saisonziele'!$C$2:$C$294,'Hilfstabelle Sport Saisonziele'!$B$2:$B$294),2,FALSE)=0,"",VLOOKUP(G$8&$A16,CHOOSE({1,2},'Hilfstabelle Sport Saisonziele'!$A$2:$A$294&'Hilfstabelle Sport Saisonziele'!$C$2:$C$294,'Hilfstabelle Sport Saisonziele'!$B$2:$B$294),2,FALSE)),"") ->  | G16: =IFERROR(IF(VLOOKUP(G$8&$A16,CHOOSE({1,2},'Hilfstabelle Sport Saisonziele'!$A$2:$A$148&'Hilfstabelle Sport Saisonziele'!$C$2:$C$148,'Hilfstabelle Sport Saisonziele'!$D$2:$D$148),2,FALSE)=0,"",VLOOKUP(G$8&$A16,CHOOSE({1,2},'Hilfstabelle Sport Saisonziele'!$A$2:$A$148&'Hilfstabelle Sport Saisonziele'!$C$2:$C$148,'Hilfstabelle Sport Saisonziele'!$D$2:$D$148),2,FALSE)),"") ->  | J16: =IFERROR(IF(VLOOKUP(K$8&$A16,CHOOSE({1,2},'Hilfstabelle Sport Saisonziele'!$A$2:$A$294&'Hilfstabelle Sport Saisonziele'!$C$2:$C$294,'Hilfstabelle Sport Saisonziele'!$B$2:$B$294),2,FALSE)=0,"",VLOOKUP(K$8&$A16,CHOOSE({1,2},'Hilfstabelle Sport Saisonziele'!$A$2:$A$294&'Hilfstabelle Sport Saisonziele'!$C$2:$C$294,'Hilfstabelle Sport Saisonziele'!$B$2:$B$294),2,FALSE)),"") ->  | K16: =IFERROR(IF(VLOOKUP(K$8&$A16,CHOOSE({1,2},'Hilfstabelle Sport Saisonziele'!$A$2:$A$148&'Hilfstabelle Sport Saisonziele'!$C$2:$C$148,'Hilfstabelle Sport Saisonziele'!$D$2:$D$148),2,FALSE)=0,"",VLOOKUP(K$8&$A16,CHOOSE({1,2},'Hilfstabelle Sport Saisonziele'!$A$2:$A$148&'Hilfstabelle Sport Saisonziele'!$C$2:$C$148,'Hilfstabelle Sport Saisonziele'!$D$2:$D$148),2,FALSE)),"") ->  | N16: =IFERROR(IF(VLOOKUP(O$8&$A16,CHOOSE({1,2},'Hilfstabelle Sport Saisonziele'!$A$2:$A$294&'Hilfstabelle Sport Saisonziele'!$C$2:$C$294,'Hilfstabelle Sport Saisonziele'!$B$2:$B$294),2,FALSE)=0,"",VLOOKUP(O$8&$A16,CHOOSE({1,2},'Hilfstabelle Sport Saisonziele'!$A$2:$A$294&'Hilfstabelle Sport Saisonziele'!$C$2:$C$294,'Hilfstabelle Sport Saisonziele'!$B$2:$B$294),2,FALSE)),"") ->  | O16: =IFERROR(IF(VLOOKUP(O$8&$A16,CHOOSE({1,2},'Hilfstabelle Sport Saisonziele'!$A$2:$A$148&'Hilfstabelle Sport Saisonziele'!$C$2:$C$148,'Hilfstabelle Sport Saisonziele'!$D$2:$D$148),2,FALSE)=0,"",VLOOKUP(O$8&$A16,CHOOSE({1,2},'Hilfstabelle Sport Saisonziele'!$A$2:$A$148&'Hilfstabelle Sport Saisonziele'!$C$2:$C$148,'Hilfstabelle Sport Saisonziele'!$D$2:$D$148),2,FALSE)),"") -> 
A17: Saisonziel 4 | B17: =IFERROR(IF(VLOOKUP(C$8&$A17,CHOOSE({1,2},'Hilfstabelle Sport Saisonziele'!$A$2:$A$294&'Hilfstabelle Sport Saisonziele'!$C$2:$C$294,'Hilfstabelle Sport Saisonziele'!$B$2:$B$294),2,FALSE)=0,"",VLOOKUP(C$8&$A17,CHOOSE({1,2},'Hilfstabelle Sport Saisonziele'!$A$2:$A$294&'Hilfstabelle Sport Saisonziele'!$C$2:$C$294,'Hilfstabelle Sport Saisonziele'!$B$2:$B$294),2,FALSE)),"") ->  | C17: =IFERROR(IF(VLOOKUP(C$8&$A17,CHOOSE({1,2},'Hilfstabelle Sport Saisonziele'!$A$2:$A$148&'Hilfstabelle Sport Saisonziele'!$C$2:$C$148,'Hilfstabelle Sport Saisonziele'!$D$2:$D$148),2,FALSE)=0,"",VLOOKUP(C$8&$A17,CHOOSE({1,2},'Hilfstabelle Sport Saisonziele'!$A$2:$A$148&'Hilfstabelle Sport Saisonziele'!$C$2:$C$148,'Hilfstabelle Sport Saisonziele'!$D$2:$D$148),2,FALSE)),"") ->  | F17: =IFERROR(IF(VLOOKUP(G$8&$A17,CHOOSE({1,2},'Hilfstabelle Sport Saisonziele'!$A$2:$A$294&'Hilfstabelle Sport Saisonziele'!$C$2:$C$294,'Hilfstabelle Sport Saisonziele'!$B$2:$B$294),2,FALSE)=0,"",VLOOKUP(G$8&$A17,CHOOSE({1,2},'Hilfstabelle Sport Saisonziele'!$A$2:$A$294&'Hilfstabelle Sport Saisonziele'!$C$2:$C$294,'Hilfstabelle Sport Saisonziele'!$B$2:$B$294),2,FALSE)),"") ->  | G17: =IFERROR(IF(VLOOKUP(G$8&$A17,CHOOSE({1,2},'Hilfstabelle Sport Saisonziele'!$A$2:$A$148&'Hilfstabelle Sport Saisonziele'!$C$2:$C$148,'Hilfstabelle Sport Saisonziele'!$D$2:$D$148),2,FALSE)=0,"",VLOOKUP(G$8&$A17,CHOOSE({1,2},'Hilfstabelle Sport Saisonziele'!$A$2:$A$148&'Hilfstabelle Sport Saisonziele'!$C$2:$C$148,'Hilfstabelle Sport Saisonziele'!$D$2:$D$148),2,FALSE)),"") ->  | J17: =IFERROR(IF(VLOOKUP(K$8&$A17,CHOOSE({1,2},'Hilfstabelle Sport Saisonziele'!$A$2:$A$294&'Hilfstabelle Sport Saisonziele'!$C$2:$C$294,'Hilfstabelle Sport Saisonziele'!$B$2:$B$294),2,FALSE)=0,"",VLOOKUP(K$8&$A17,CHOOSE({1,2},'Hilfstabelle Sport Saisonziele'!$A$2:$A$294&'Hilfstabelle Sport Saisonziele'!$C$2:$C$294,'Hilfstabelle Sport Saisonziele'!$B$2:$B$294),2,FALSE)),"") ->  | K17: =IFERROR(IF(VLOOKUP(K$8&$A17,CHOOSE({1,2},'Hilfstabelle Sport Saisonziele'!$A$2:$A$148&'Hilfstabelle Sport Saisonziele'!$C$2:$C$148,'Hilfstabelle Sport Saisonziele'!$D$2:$D$148),2,FALSE)=0,"",VLOOKUP(K$8&$A17,CHOOSE({1,2},'Hilfstabelle Sport Saisonziele'!$A$2:$A$148&'Hilfstabelle Sport Saisonziele'!$C$2:$C$148,'Hilfstabelle Sport Saisonziele'!$D$2:$D$148),2,FALSE)),"") ->  | N17: =IFERROR(IF(VLOOKUP(O$8&$A17,CHOOSE({1,2},'Hilfstabelle Sport Saisonziele'!$A$2:$A$294&'Hilfstabelle Sport Saisonziele'!$C$2:$C$294,'Hilfstabelle Sport Saisonziele'!$B$2:$B$294),2,FALSE)=0,"",VLOOKUP(O$8&$A17,CHOOSE({1,2},'Hilfstabelle Sport Saisonziele'!$A$2:$A$294&'Hilfstabelle Sport Saisonziele'!$C$2:$C$294,'Hilfstabelle Sport Saisonziele'!$B$2:$B$294),2,FALSE)),"") ->  | O17: =IFERROR(IF(VLOOKUP(O$8&$A17,CHOOSE({1,2},'Hilfstabelle Sport Saisonziele'!$A$2:$A$148&'Hilfstabelle Sport Saisonziele'!$C$2:$C$148,'Hilfstabelle Sport Saisonziele'!$D$2:$D$148),2,FALSE)=0,"",VLOOKUP(O$8&$A17,CHOOSE({1,2},'Hilfstabelle Sport Saisonziele'!$A$2:$A$148&'Hilfstabelle Sport Saisonziele'!$C$2:$C$148,'Hilfstabelle Sport Saisonziele'!$D$2:$D$148),2,FALSE)),"") -> 
A18: Saisonziel 5 | B18: =IFERROR(IF(VLOOKUP(C$8&$A18,CHOOSE({1,2},'Hilfstabelle Sport Saisonziele'!$A$2:$A$294&'Hilfstabelle Sport Saisonziele'!$C$2:$C$294,'Hilfstabelle Sport Saisonziele'!$B$2:$B$294),2,FALSE)=0,"",VLOOKUP(C$8&$A18,CHOOSE({1,2},'Hilfstabelle Sport Saisonziele'!$A$2:$A$294&'Hilfstabelle Sport Saisonziele'!$C$2:$C$294,'Hilfstabelle Sport Saisonziele'!$B$2:$B$294),2,FALSE)),"") ->  | C18: =IFERROR(IF(VLOOKUP(C$8&$A18,CHOOSE({1,2},'Hilfstabelle Sport Saisonziele'!$A$2:$A$148&'Hilfstabelle Sport Saisonziele'!$C$2:$C$148,'Hilfstabelle Sport Saisonziele'!$D$2:$D$148),2,FALSE)=0,"",VLOOKUP(C$8&$A18,CHOOSE({1,2},'Hilfstabelle Sport Saisonziele'!$A$2:$A$148&'Hilfstabelle Sport Saisonziele'!$C$2:$C$148,'Hilfstabelle Sport Saisonziele'!$D$2:$D$148),2,FALSE)),"") ->  | F18: =IFERROR(IF(VLOOKUP(G$8&$A18,CHOOSE({1,2},'Hilfstabelle Sport Saisonziele'!$A$2:$A$294&'Hilfstabelle Sport Saisonziele'!$C$2:$C$294,'Hilfstabelle Sport Saisonziele'!$B$2:$B$294),2,FALSE)=0,"",VLOOKUP(G$8&$A18,CHOOSE({1,2},'Hilfstabelle Sport Saisonziele'!$A$2:$A$294&'Hilfstabelle Sport Saisonziele'!$C$2:$C$294,'Hilfstabelle Sport Saisonziele'!$B$2:$B$294),2,FALSE)),"") ->  | G18: =IFERROR(IF(VLOOKUP(G$8&$A18,CHOOSE({1,2},'Hilfstabelle Sport Saisonziele'!$A$2:$A$148&'Hilfstabelle Sport Saisonziele'!$C$2:$C$148,'Hilfstabelle Sport Saisonziele'!$D$2:$D$148),2,FALSE)=0,"",VLOOKUP(G$8&$A18,CHOOSE({1,2},'Hilfstabelle Sport Saisonziele'!$A$2:$A$148&'Hilfstabelle Sport Saisonziele'!$C$2:$C$148,'Hilfstabelle Sport Saisonziele'!$D$2:$D$148),2,FALSE)),"") ->  | J18: =IFERROR(IF(VLOOKUP(K$8&$A18,CHOOSE({1,2},'Hilfstabelle Sport Saisonziele'!$A$2:$A$294&'Hilfstabelle Sport Saisonziele'!$C$2:$C$294,'Hilfstabelle Sport Saisonziele'!$B$2:$B$294),2,FALSE)=0,"",VLOOKUP(K$8&$A18,CHOOSE({1,2},'Hilfstabelle Sport Saisonziele'!$A$2:$A$294&'Hilfstabelle Sport Saisonziele'!$C$2:$C$294,'Hilfstabelle Sport Saisonziele'!$B$2:$B$294),2,FALSE)),"") ->  | K18: =IFERROR(IF(VLOOKUP(K$8&$A18,CHOOSE({1,2},'Hilfstabelle Sport Saisonziele'!$A$2:$A$148&'Hilfstabelle Sport Saisonziele'!$C$2:$C$148,'Hilfstabelle Sport Saisonziele'!$D$2:$D$148),2,FALSE)=0,"",VLOOKUP(K$8&$A18,CHOOSE({1,2},'Hilfstabelle Sport Saisonziele'!$A$2:$A$148&'Hilfstabelle Sport Saisonziele'!$C$2:$C$148,'Hilfstabelle Sport Saisonziele'!$D$2:$D$148),2,FALSE)),"") ->  | N18: =IFERROR(IF(VLOOKUP(O$8&$A18,CHOOSE({1,2},'Hilfstabelle Sport Saisonziele'!$A$2:$A$294&'Hilfstabelle Sport Saisonziele'!$C$2:$C$294,'Hilfstabelle Sport Saisonziele'!$B$2:$B$294),2,FALSE)=0,"",VLOOKUP(O$8&$A18,CHOOSE({1,2},'Hilfstabelle Sport Saisonziele'!$A$2:$A$294&'Hilfstabelle Sport Saisonziele'!$C$2:$C$294,'Hilfstabelle Sport Saisonziele'!$B$2:$B$294),2,FALSE)),"") ->  | O18: =IFERROR(IF(VLOOKUP(O$8&$A18,CHOOSE({1,2},'Hilfstabelle Sport Saisonziele'!$A$2:$A$148&'Hilfstabelle Sport Saisonziele'!$C$2:$C$148,'Hilfstabelle Sport Saisonziele'!$D$2:$D$148),2,FALSE)=0,"",VLOOKUP(O$8&$A18,CHOOSE({1,2},'Hilfstabelle Sport Saisonziele'!$A$2:$A$148&'Hilfstabelle Sport Saisonziele'!$C$2:$C$148,'Hilfstabelle Sport Saisonziele'!$D$2:$D$148),2,FALSE)),"") -> 
A19: Anz. Trainingseinheiten pro Woche | C19: =VLOOKUP(C$8&$A19,CHOOSE({1,2},'Hilfstabelle Sport Grobplan'!$A$2:$A$64&'Hilfstabelle Sport Grobplan'!$B$2:$B$64,'Hilfstabelle Sport Grobplan'!$C$2:$C$64),2,0) -> 0 | G19: =VLOOKUP(G$8&$A19,CHOOSE({1,2},'Hilfstabelle Sport Grobplan'!$A$2:$A$64&'Hilfstabelle Sport Grobplan'!$B$2:$B$64,'Hilfstabelle Sport Grobplan'!$C$2:$C$64),2,0) -> 0 | K19: =VLOOKUP(K$8&$A19,CHOOSE({1,2},'Hilfstabelle Sport Grobplan'!$A$2:$A$64&'Hilfstabelle Sport Grobplan'!$B$2:$B$64,'Hilfstabelle Sport Grobplan'!$C$2:$C$64),2,0) -> 0 | O19: =VLOOKUP(O$8&$A19,CHOOSE({1,2},'Hilfstabelle Sport Grobplan'!$A$2:$A$64&'Hilfstabelle Sport Grobplan'!$B$2:$B$64,'Hilfstabelle Sport Grobplan'!$C$2:$C$64),2,0) -> 0
A20: Trainingsumfang (h/W) | C20: =(VLOOKUP(C$8&$A20,CHOOSE({1,2},'Hilfstabelle Sport Grobplan'!$A$2:$A$64&'Hilfstabelle Sport Grobplan'!$B$2:$B$64,'Hilfstabelle Sport Grobplan'!$C$2:$C$64),2,0)) -> 0 | G20: =VLOOKUP(G$8&$A20,CHOOSE({1,2},'Hilfstabelle Sport Grobplan'!$A:$A&'Hilfstabelle Sport Grobplan'!$B:$B,'Hilfstabelle Sport Grobplan'!$C:$C),2,0) -> 0 | K20: =VLOOKUP(K$8&$A20,CHOOSE({1,2},'Hilfstabelle Sport Grobplan'!$A$2:$A$64&'Hilfstabelle Sport Grobplan'!$B$2:$B$64,'Hilfstabelle Sport Grobplan'!$C$2:$C$64),2,0) -> 0 | O20: =VLOOKUP(O$8&$A20,CHOOSE({1,2},'Hilfstabelle Sport Grobplan'!$A$2:$A$64&'Hilfstabelle Sport Grobplan'!$B$2:$B$64,'Hilfstabelle Sport Grobplan'!$C$2:$C$64),2,0) -> 0
A21: Trainingsschwerpunkte | C21: =VLOOKUP(C$8&$A21,CHOOSE({1,2},'Hilfstabelle Sport Grobplan'!$A$2:$A$64&'Hilfstabelle Sport Grobplan'!$B$2:$B$64,'Hilfstabelle Sport Grobplan'!$C$2:$C$64),2,0) -> 0 | G21: =VLOOKUP(G$8&$A21,CHOOSE({1,2},'Hilfstabelle Sport Grobplan'!$A$2:$A$64&'Hilfstabelle Sport Grobplan'!$B$2:$B$64,'Hilfstabelle Sport Grobplan'!$C$2:$C$64),2,0) -> 0 | K21: =VLOOKUP(K$8&$A21,CHOOSE({1,2},'Hilfstabelle Sport Grobplan'!$A$2:$A$64&'Hilfstabelle Sport Grobplan'!$B$2:$B$64,'Hilfstabelle Sport Grobplan'!$C$2:$C$64),2,0) -> 0 | O21: =VLOOKUP(O$8&$A21,CHOOSE({1,2},'Hilfstabelle Sport Grobplan'!$A$2:$A$64&'Hilfstabelle Sport Grobplan'!$B$2:$B$64,'Hilfstabelle Sport Grobplan'!$C$2:$C$64),2,0) -> 0
A22: Militär
A23: Militärdienst Beginn | B23: =IFERROR(IF(VLOOKUP(C$8&$A23,CHOOSE({1,2},'Hilfstabelle Sport Saisonziele'!$A$2:$A$294&'Hilfstabelle Sport Saisonziele'!$C$2:$C$294,'Hilfstabelle Sport Saisonziele'!$B$2:$B$294),2,FALSE)=0,"",VLOOKUP(C$8&$A23,CHOOSE({1,2},'Hilfstabelle Sport Saisonziele'!$A$2:$A$294&'Hilfstabelle Sport Saisonziele'!$C$2:$C$294,'Hilfstabelle Sport Saisonziele'!$B$2:$B$294),2,FALSE)),"") ->  | C23: =IFERROR(IF(VLOOKUP(C$8&$A23,CHOOSE({1,2},'Hilfstabelle Sport Saisonziele'!$A$2:$A$148&'Hilfstabelle Sport Saisonziele'!$C$2:$C$148,'Hilfstabelle Sport Saisonziele'!$D$2:$D$148),2,FALSE)=0,"",VLOOKUP(C$8&$A23,CHOOSE({1,2},'Hilfstabelle Sport Saisonziele'!$A$2:$A$148&'Hilfstabelle Sport Saisonziele'!$C$2:$C$148,'Hilfstabelle Sport Saisonziele'!$D$2:$D$148),2,FALSE)),"") ->  | F23: =IFERROR(IF(VLOOKUP(G$8&$A23,CHOOSE({1,2},'Hilfstabelle Sport Saisonziele'!$A$2:$A$294&'Hilfstabelle Sport Saisonziele'!$C$2:$C$294,'Hilfstabelle Sport Saisonziele'!$B$2:$B$294),2,FALSE)=0,"",VLOOKUP(G$8&$A23,CHOOSE({1,2},'Hilfstabelle Sport Saisonziele'!$A$2:$A$294&'Hilfstabelle Sport Saisonziele'!$C$2:$C$294,'Hilfstabelle Sport Saisonziele'!$B$2:$B$294),2,FALSE)),"") ->  | G23: =IFERROR(IF(VLOOKUP(G$8&$A23,CHOOSE({1,2},'Hilfstabelle Sport Saisonziele'!$A$2:$A$148&'Hilfstabelle Sport Saisonziele'!$C$2:$C$148,'Hilfstabelle Sport Saisonziele'!$D$2:$D$148),2,FALSE)=0,"",VLOOKUP(G$8&$A23,CHOOSE({1,2},'Hilfstabelle Sport Saisonziele'!$A$2:$A$148&'Hilfstabelle Sport Saisonziele'!$C$2:$C$148,'Hilfstabelle Sport Saisonziele'!$D$2:$D$148),2,FALSE)),"") ->  | J23: =IFERROR(IF(VLOOKUP(K$8&$A23,CHOOSE({1,2},'Hilfstabelle Sport Saisonziele'!$A$2:$A$294&'Hilfstabelle Sport Saisonziele'!$C$2:$C$294,'Hilfstabelle Sport Saisonziele'!$B$2:$B$294),2,FALSE)=0,"",VLOOKUP(K$8&$A23,CHOOSE({1,2},'Hilfstabelle Sport Saisonziele'!$A$2:$A$294&'Hilfstabelle Sport Saisonziele'!$C$2:$C$294,'Hilfstabelle Sport Saisonziele'!$B$2:$B$294),2,FALSE)),"") ->  | K23: =IFERROR(IF(VLOOKUP(K$8&$A23,CHOOSE({1,2},'Hilfstabelle Sport Saisonziele'!$A$2:$A$148&'Hilfstabelle Sport Saisonziele'!$C$2:$C$148,'Hilfstabelle Sport Saisonziele'!$D$2:$D$148),2,FALSE)=0,"",VLOOKUP(K$8&$A23,CHOOSE({1,2},'Hilfstabelle Sport Saisonziele'!$A$2:$A$148&'Hilfstabelle Sport Saisonziele'!$C$2:$C$148,'Hilfstabelle Sport Saisonziele'!$D$2:$D$148),2,FALSE)),"") ->  | N23: =IFERROR(IF(VLOOKUP(O$8&$A23,CHOOSE({1,2},'Hilfstabelle Sport Saisonziele'!$A$2:$A$294&'Hilfstabelle Sport Saisonziele'!$C$2:$C$294,'Hilfstabelle Sport Saisonziele'!$B$2:$B$294),2,FALSE)=0,"",VLOOKUP(O$8&$A23,CHOOSE({1,2},'Hilfstabelle Sport Saisonziele'!$A$2:$A$294&'Hilfstabelle Sport Saisonziele'!$C$2:$C$294,'Hilfstabelle Sport Saisonziele'!$B$2:$B$294),2,FALSE)),"") ->  | O23: =IFERROR(IF(VLOOKUP(O$8&$A23,CHOOSE({1,2},'Hilfstabelle Sport Saisonziele'!$A$2:$A$148&'Hilfstabelle Sport Saisonziele'!$C$2:$C$148,'Hilfstabelle Sport Saisonziele'!$D$2:$D$148),2,FALSE)=0,"",VLOOKUP(O$8&$A23,CHOOSE({1,2},'Hilfstabelle Sport Saisonziele'!$A$2:$A$148&'Hilfstabelle Sport Saisonziele'!$C$2:$C$148,'Hilfstabelle Sport Saisonziele'!$D$2:$D$148),2,FALSE)),"") -> 
A24: Militärdienst Ende | B24: =IFERROR(IF(VLOOKUP(C$8&$A24,CHOOSE({1,2},'Hilfstabelle Sport Saisonziele'!$A$2:$A$294&'Hilfstabelle Sport Saisonziele'!$C$2:$C$294,'Hilfstabelle Sport Saisonziele'!$B$2:$B$294),2,FALSE)=0,"",VLOOKUP(C$8&$A24,CHOOSE({1,2},'Hilfstabelle Sport Saisonziele'!$A$2:$A$294&'Hilfstabelle Sport Saisonziele'!$C$2:$C$294,'Hilfstabelle Sport Saisonziele'!$B$2:$B$294),2,FALSE)),"") ->  | C24: =IFERROR(IF(VLOOKUP(C$8&$A24,CHOOSE({1,2},'Hilfstabelle Sport Saisonziele'!$A$2:$A$148&'Hilfstabelle Sport Saisonziele'!$C$2:$C$148,'Hilfstabelle Sport Saisonziele'!$D$2:$D$148),2,FALSE)=0,"",VLOOKUP(C$8&$A24,CHOOSE({1,2},'Hilfstabelle Sport Saisonziele'!$A$2:$A$148&'Hilfstabelle Sport Saisonziele'!$C$2:$C$148,'Hilfstabelle Sport Saisonziele'!$D$2:$D$148),2,FALSE)),"") ->  | F24: =IFERROR(IF(VLOOKUP(G$8&$A24,CHOOSE({1,2},'Hilfstabelle Sport Saisonziele'!$A$2:$A$294&'Hilfstabelle Sport Saisonziele'!$C$2:$C$294,'Hilfstabelle Sport Saisonziele'!$B$2:$B$294),2,FALSE)=0,"",VLOOKUP(G$8&$A24,CHOOSE({1,2},'Hilfstabelle Sport Saisonziele'!$A$2:$A$294&'Hilfstabelle Sport Saisonziele'!$C$2:$C$294,'Hilfstabelle Sport Saisonziele'!$B$2:$B$294),2,FALSE)),"") ->  | G24: =IFERROR(IF(VLOOKUP(G$8&$A24,CHOOSE({1,2},'Hilfstabelle Sport Saisonziele'!$A$2:$A$148&'Hilfstabelle Sport Saisonziele'!$C$2:$C$148,'Hilfstabelle Sport Saisonziele'!$D$2:$D$148),2,FALSE)=0,"",VLOOKUP(G$8&$A24,CHOOSE({1,2},'Hilfstabelle Sport Saisonziele'!$A$2:$A$148&'Hilfstabelle Sport Saisonziele'!$C$2:$C$148,'Hilfstabelle Sport Saisonziele'!$D$2:$D$148),2,FALSE)),"") ->  | J24: =IFERROR(IF(VLOOKUP(K$8&$A24,CHOOSE({1,2},'Hilfstabelle Sport Saisonziele'!$A$2:$A$294&'Hilfstabelle Sport Saisonziele'!$C$2:$C$294,'Hilfstabelle Sport Saisonziele'!$B$2:$B$294),2,FALSE)=0,"",VLOOKUP(K$8&$A24,CHOOSE({1,2},'Hilfstabelle Sport Saisonziele'!$A$2:$A$294&'Hilfstabelle Sport Saisonziele'!$C$2:$C$294,'Hilfstabelle Sport Saisonziele'!$B$2:$B$294),2,FALSE)),"") ->  | K24: =IFERROR(IF(VLOOKUP(K$8&$A24,CHOOSE({1,2},'Hilfstabelle Sport Saisonziele'!$A$2:$A$148&'Hilfstabelle Sport Saisonziele'!$C$2:$C$148,'Hilfstabelle Sport Saisonziele'!$D$2:$D$148),2,FALSE)=0,"",VLOOKUP(K$8&$A24,CHOOSE({1,2},'Hilfstabelle Sport Saisonziele'!$A$2:$A$148&'Hilfstabelle Sport Saisonziele'!$C$2:$C$148,'Hilfstabelle Sport Saisonziele'!$D$2:$D$148),2,FALSE)),"") ->  | N24: =IFERROR(IF(VLOOKUP(O$8&$A24,CHOOSE({1,2},'Hilfstabelle Sport Saisonziele'!$A$2:$A$294&'Hilfstabelle Sport Saisonziele'!$C$2:$C$294,'Hilfstabelle Sport Saisonziele'!$B$2:$B$294),2,FALSE)=0,"",VLOOKUP(O$8&$A24,CHOOSE({1,2},'Hilfstabelle Sport Saisonziele'!$A$2:$A$294&'Hilfstabelle Sport Saisonziele'!$C$2:$C$294,'Hilfstabelle Sport Saisonziele'!$B$2:$B$294),2,FALSE)),"") ->  | O24: =IFERROR(IF(VLOOKUP(O$8&$A24,CHOOSE({1,2},'Hilfstabelle Sport Saisonziele'!$A$2:$A$148&'Hilfstabelle Sport Saisonziele'!$C$2:$C$148,'Hilfstabelle Sport Saisonziele'!$D$2:$D$148),2,FALSE)=0,"",VLOOKUP(O$8&$A24,CHOOSE({1,2},'Hilfstabelle Sport Saisonziele'!$A$2:$A$148&'Hilfstabelle Sport Saisonziele'!$C$2:$C$148,'Hilfstabelle Sport Saisonziele'!$D$2:$D$148),2,FALSE)),"") -> 
A56: Planung Ausbildung
A57: Alle Felder werden automatisch ausgefüllt. Dafür musst du die Tabellenblätter "Personenstammblatt" und "Planung Ausbildung" vollständig ausfüllen.
C59: ='Planung Ausbildung'!I8 -> 2023 | G59: ='Planung Ausbildung'!I9 -> 2024 | K59: ='Planung Ausbildung'!I10 -> 2025 | O59: ='Planung Ausbildung'!I11 -> 2026
C60: =DATE(C59,1,1) -> 2023-01-01 | G60: =DATE(G59,1,1) -> 2024-01-01 | K60: =DATE(K59,1,1) -> 2025-01-01 | O60: =DATE(O59,1,1) -> 2026-01-01
A62: Ausbildung | C62: =VLOOKUP(C$59,'Hilfstabelle Schule Ausbildung'!$A$1:$B$22,2,0) -> 0 | G62: =VLOOKUP(G$59,'Hilfstabelle Schule Ausbildung'!$A$1:$B$22,2,0) -> 0 | K62: =VLOOKUP(K$59,'Hilfstabelle Schule Ausbildung'!$A$1:$B$22,2,0) -> 0 | O62: =VLOOKUP(O$59,'Hilfstabelle Schule Ausbildung'!$A$1:$B$22,2,0) -> 0
A63: Meilensteine
A64: Termin 1 | B64: =IFERROR(IF(VLOOKUP(C$59&$A64,CHOOSE({1,2},'Hilfstabelle Schule Meilenstein'!$A$2:$A$210&'Hilfstabelle Schule Meilenstein'!$C$2:$C$210,'Hilfstabelle Schule Meilenstein'!$B$2:$B$210),2,FALSE)=0,"",VLOOKUP(C$59&$A64,CHOOSE({1,2},'Hilfstabelle Schule Meilenstein'!$A$2:$A$210&'Hilfstabelle Schule Meilenstein'!$C$2:$C$210,'Hilfstabelle Schule Meilenstein'!$B$2:$B$210),2,FALSE)),"") ->  | C64: =IFERROR(IF(VLOOKUP(C$59&$A64,CHOOSE({1,2},'Hilfstabelle Schule Meilenstein'!$A$2:$A$106&'Hilfstabelle Schule Meilenstein'!$C$2:$C$106,'Hilfstabelle Schule Meilenstein'!$D$2:$D$106),2,FALSE)=0,"",VLOOKUP(C$59&$A64,CHOOSE({1,2},'Hilfstabelle Schule Meilenstein'!$A$2:$A$106&'Hilfstabelle Schule Meilenstein'!$C$2:$C$106,'Hilfstabelle Schule Meilenstein'!$D$2:$D$106),2,FALSE)),"") ->  | F64: =IFERROR(IF(VLOOKUP(G$59&$A64,CHOOSE({1,2},'Hilfstabelle Schule Meilenstein'!$A$2:$A$210&'Hilfstabelle Schule Meilenstein'!$C$2:$C$210,'Hilfstabelle Schule Meilenstein'!$B$2:$B$210),2,FALSE)=0,"",VLOOKUP(G$59&$A64,CHOOSE({1,2},'Hilfstabelle Schule Meilenstein'!$A$2:$A$210&'Hilfstabelle Schule Meilenstein'!$C$2:$C$210,'Hilfstabelle Schule Meilenstein'!$B$2:$B$210),2,FALSE)),"") ->  | G64: =IFERROR(IF(VLOOKUP(G$59&$A64,CHOOSE({1,2},'Hilfstabelle Schule Meilenstein'!$A$2:$A$106&'Hilfstabelle Schule Meilenstein'!$C$2:$C$106,'Hilfstabelle Schule Meilenstein'!$D$2:$D$106),2,FALSE)=0,"",VLOOKUP(G$59&$A64,CHOOSE({1,2},'Hilfstabelle Schule Meilenstein'!$A$2:$A$106&'Hilfstabelle Schule Meilenstein'!$C$2:$C$106,'Hilfstabelle Schule Meilenstein'!$D$2:$D$106),2,FALSE)),"") ->  | J64: =IFERROR(IF(VLOOKUP(K$59&$A64,CHOOSE({1,2},'Hilfstabelle Schule Meilenstein'!$A$2:$A$210&'Hilfstabelle Schule Meilenstein'!$C$2:$C$210,'Hilfstabelle Schule Meilenstein'!$B$2:$B$210),2,FALSE)=0,"",VLOOKUP(K$59&$A64,CHOOSE({1,2},'Hilfstabelle Schule Meilenstein'!$A$2:$A$210&'Hilfstabelle Schule Meilenstein'!$C$2:$C$210,'Hilfstabelle Schule Meilenstein'!$B$2:$B$210),2,FALSE)),"") ->  | K64: =IFERROR(IF(VLOOKUP(K$59&$A64,CHOOSE({1,2},'Hilfstabelle Schule Meilenstein'!$A$2:$A$106&'Hilfstabelle Schule Meilenstein'!$C$2:$C$106,'Hilfstabelle Schule Meilenstein'!$D$2:$D$106),2,FALSE)=0,"",VLOOKUP(K$59&$A64,CHOOSE({1,2},'Hilfstabelle Schule Meilenstein'!$A$2:$A$106&'Hilfstabelle Schule Meilenstein'!$C$2:$C$106,'Hilfstabelle Schule Meilenstein'!$D$2:$D$106),2,FALSE)),"") ->  | N64: =IFERROR(IF(VLOOKUP(O$59&$A64,CHOOSE({1,2},'Hilfstabelle Schule Meilenstein'!$A$2:$A$210&'Hilfstabelle Schule Meilenstein'!$C$2:$C$210,'Hilfstabelle Schule Meilenstein'!$B$2:$B$210),2,FALSE)=0,"",VLOOKUP(O$59&$A64,CHOOSE({1,2},'Hilfstabelle Schule Meilenstein'!$A$2:$A$210&'Hilfstabelle Schule Meilenstein'!$C$2:$C$210,'Hilfstabelle Schule Meilenstein'!$B$2:$B$210),2,FALSE)),"") ->  | O64: =IFERROR(IF(VLOOKUP(O$59&$A64,CHOOSE({1,2},'Hilfstabelle Schule Meilenstein'!$A$2:$A$106&'Hilfstabelle Schule Meilenstein'!$C$2:$C$106,'Hilfstabelle Schule Meilenstein'!$D$2:$D$106),2,FALSE)=0,"",VLOOKUP(O$59&$A64,CHOOSE({1,2},'Hilfstabelle Schule Meilenstein'!$A$2:$A$106&'Hilfstabelle Schule Meilenstein'!$C$2:$C$106,'Hilfstabelle Schule Meilenstein'!$D$2:$D$106),2,FALSE)),"") -> 
A65: Termin 2 | B65: =IFERROR(IF(VLOOKUP(C$59&$A65,CHOOSE({1,2},'Hilfstabelle Schule Meilenstein'!$A$2:$A$210&'Hilfstabelle Schule Meilenstein'!$C$2:$C$210,'Hilfstabelle Schule Meilenstein'!$B$2:$B$210),2,FALSE)=0,"",VLOOKUP(C$59&$A65,CHOOSE({1,2},'Hilfstabelle Schule Meilenstein'!$A$2:$A$210&'Hilfstabelle Schule Meilenstein'!$C$2:$C$210,'Hilfstabelle Schule Meilenstein'!$B$2:$B$210),2,FALSE)),"") ->  | C65: =IFERROR(IF(VLOOKUP(C$59&$A65,CHOOSE({1,2},'Hilfstabelle Schule Meilenstein'!$A$2:$A$106&'Hilfstabelle Schule Meilenstein'!$C$2:$C$106,'Hilfstabelle Schule Meilenstein'!$D$2:$D$106),2,FALSE)=0,"",VLOOKUP(C$59&$A65,CHOOSE({1,2},'Hilfstabelle Schule Meilenstein'!$A$2:$A$106&'Hilfstabelle Schule Meilenstein'!$C$2:$C$106,'Hilfstabelle Schule Meilenstein'!$D$2:$D$106),2,FALSE)),"") ->  | F65: =IFERROR(IF(VLOOKUP(G$59&$A65,CHOOSE({1,2},'Hilfstabelle Schule Meilenstein'!$A$2:$A$210&'Hilfstabelle Schule Meilenstein'!$C$2:$C$210,'Hilfstabelle Schule Meilenstein'!$B$2:$B$210),2,FALSE)=0,"",VLOOKUP(G$59&$A65,CHOOSE({1,2},'Hilfstabelle Schule Meilenstein'!$A$2:$A$210&'Hilfstabelle Schule Meilenstein'!$C$2:$C$210,'Hilfstabelle Schule Meilenstein'!$B$2:$B$210),2,FALSE)),"") ->  | G65: =IFERROR(IF(VLOOKUP(G$59&$A65,CHOOSE({1,2},'Hilfstabelle Schule Meilenstein'!$A$2:$A$106&'Hilfstabelle Schule Meilenstein'!$C$2:$C$106,'Hilfstabelle Schule Meilenstein'!$D$2:$D$106),2,FALSE)=0,"",VLOOKUP(G$59&$A65,CHOOSE({1,2},'Hilfstabelle Schule Meilenstein'!$A$2:$A$106&'Hilfstabelle Schule Meilenstein'!$C$2:$C$106,'Hilfstabelle Schule Meilenstein'!$D$2:$D$106),2,FALSE)),"") ->  | J65: =IFERROR(IF(VLOOKUP(K$59&$A65,CHOOSE({1,2},'Hilfstabelle Schule Meilenstein'!$A$2:$A$210&'Hilfstabelle Schule Meilenstein'!$C$2:$C$210,'Hilfstabelle Schule Meilenstein'!$B$2:$B$210),2,FALSE)=0,"",VLOOKUP(K$59&$A65,CHOOSE({1,2},'Hilfstabelle Schule Meilenstein'!$A$2:$A$210&'Hilfstabelle Schule Meilenstein'!$C$2:$C$210,'Hilfstabelle Schule Meilenstein'!$B$2:$B$210),2,FALSE)),"") ->  | K65: =IFERROR(IF(VLOOKUP(K$59&$A65,CHOOSE({1,2},'Hilfstabelle Schule Meilenstein'!$A$2:$A$106&'Hilfstabelle Schule Meilenstein'!$C$2:$C$106,'Hilfstabelle Schule Meilenstein'!$D$2:$D$106),2,FALSE)=0,"",VLOOKUP(K$59&$A65,CHOOSE({1,2},'Hilfstabelle Schule Meilenstein'!$A$2:$A$106&'Hilfstabelle Schule Meilenstein'!$C$2:$C$106,'Hilfstabelle Schule Meilenstein'!$D$2:$D$106),2,FALSE)),"") ->  | N65: =IFERROR(IF(VLOOKUP(O$59&$A65,CHOOSE({1,2},'Hilfstabelle Schule Meilenstein'!$A$2:$A$210&'Hilfstabelle Schule Meilenstein'!$C$2:$C$210,'Hilfstabelle Schule Meilenstein'!$B$2:$B$210),2,FALSE)=0,"",VLOOKUP(O$59&$A65,CHOOSE({1,2},'Hilfstabelle Schule Meilenstein'!$A$2:$A$210&'Hilfstabelle Schule Meilenstein'!$C$2:$C$210,'Hilfstabelle Schule Meilenstein'!$B$2:$B$210),2,FALSE)),"") ->  | O65: =IFERROR(IF(VLOOKUP(O$59&$A65,CHOOSE({1,2},'Hilfstabelle Schule Meilenstein'!$A$2:$A$106&'Hilfstabelle Schule Meilenstein'!$C$2:$C$106,'Hilfstabelle Schule Meilenstein'!$D$2:$D$106),2,FALSE)=0,"",VLOOKUP(O$59&$A65,CHOOSE({1,2},'Hilfstabelle Schule Meilenstein'!$A$2:$A$106&'Hilfstabelle Schule Meilenstein'!$C$2:$C$106,'Hilfstabelle Schule Meilenstein'!$D$2:$D$106),2,FALSE)),"") -> 
A66: Termin 3 | B66: =IFERROR(IF(VLOOKUP(C$59&$A66,CHOOSE({1,2},'Hilfstabelle Schule Meilenstein'!$A$2:$A$210&'Hilfstabelle Schule Meilenstein'!$C$2:$C$210,'Hilfstabelle Schule Meilenstein'!$B$2:$B$210),2,FALSE)=0,"",VLOOKUP(C$59&$A66,CHOOSE({1,2},'Hilfstabelle Schule Meilenstein'!$A$2:$A$210&'Hilfstabelle Schule Meilenstein'!$C$2:$C$210,'Hilfstabelle Schule Meilenstein'!$B$2:$B$210),2,FALSE)),"") ->  | C66: =IFERROR(IF(VLOOKUP(C$59&$A66,CHOOSE({1,2},'Hilfstabelle Schule Meilenstein'!$A$2:$A$106&'Hilfstabelle Schule Meilenstein'!$C$2:$C$106,'Hilfstabelle Schule Meilenstein'!$D$2:$D$106),2,FALSE)=0,"",VLOOKUP(C$59&$A66,CHOOSE({1,2},'Hilfstabelle Schule Meilenstein'!$A$2:$A$106&'Hilfstabelle Schule Meilenstein'!$C$2:$C$106,'Hilfstabelle Schule Meilenstein'!$D$2:$D$106),2,FALSE)),"") ->  | F66: =IFERROR(IF(VLOOKUP(G$59&$A66,CHOOSE({1,2},'Hilfstabelle Schule Meilenstein'!$A$2:$A$210&'Hilfstabelle Schule Meilenstein'!$C$2:$C$210,'Hilfstabelle Schule Meilenstein'!$B$2:$B$210),2,FALSE)=0,"",VLOOKUP(G$59&$A66,CHOOSE({1,2},'Hilfstabelle Schule Meilenstein'!$A$2:$A$210&'Hilfstabelle Schule Meilenstein'!$C$2:$C$210,'Hilfstabelle Schule Meilenstein'!$B$2:$B$210),2,FALSE)),"") ->  | G66: =IFERROR(IF(VLOOKUP(G$59&$A66,CHOOSE({1,2},'Hilfstabelle Schule Meilenstein'!$A$2:$A$106&'Hilfstabelle Schule Meilenstein'!$C$2:$C$106,'Hilfstabelle Schule Meilenstein'!$D$2:$D$106),2,FALSE)=0,"",VLOOKUP(G$59&$A66,CHOOSE({1,2},'Hilfstabelle Schule Meilenstein'!$A$2:$A$106&'Hilfstabelle Schule Meilenstein'!$C$2:$C$106,'Hilfstabelle Schule Meilenstein'!$D$2:$D$106),2,FALSE)),"") ->  | J66: =IFERROR(IF(VLOOKUP(K$59&$A66,CHOOSE({1,2},'Hilfstabelle Schule Meilenstein'!$A$2:$A$210&'Hilfstabelle Schule Meilenstein'!$C$2:$C$210,'Hilfstabelle Schule Meilenstein'!$B$2:$B$210),2,FALSE)=0,"",VLOOKUP(K$59&$A66,CHOOSE({1,2},'Hilfstabelle Schule Meilenstein'!$A$2:$A$210&'Hilfstabelle Schule Meilenstein'!$C$2:$C$210,'Hilfstabelle Schule Meilenstein'!$B$2:$B$210),2,FALSE)),"") ->  | K66: =IFERROR(IF(VLOOKUP(K$59&$A66,CHOOSE({1,2},'Hilfstabelle Schule Meilenstein'!$A$2:$A$106&'Hilfstabelle Schule Meilenstein'!$C$2:$C$106,'Hilfstabelle Schule Meilenstein'!$D$2:$D$106),2,FALSE)=0,"",VLOOKUP(K$59&$A66,CHOOSE({1,2},'Hilfstabelle Schule Meilenstein'!$A$2:$A$106&'Hilfstabelle Schule Meilenstein'!$C$2:$C$106,'Hilfstabelle Schule Meilenstein'!$D$2:$D$106),2,FALSE)),"") ->  | N66: =IFERROR(IF(VLOOKUP(O$59&$A66,CHOOSE({1,2},'Hilfstabelle Schule Meilenstein'!$A$2:$A$210&'Hilfstabelle Schule Meilenstein'!$C$2:$C$210,'Hilfstabelle Schule Meilenstein'!$B$2:$B$210),2,FALSE)=0,"",VLOOKUP(O$59&$A66,CHOOSE({1,2},'Hilfstabelle Schule Meilenstein'!$A$2:$A$210&'Hilfstabelle Schule Meilenstein'!$C$2:$C$210,'Hilfstabelle Schule Meilenstein'!$B$2:$B$210),2,FALSE)),"") ->  | O66: =IFERROR(IF(VLOOKUP(O$59&$A66,CHOOSE({1,2},'Hilfstabelle Schule Meilenstein'!$A$2:$A$106&'Hilfstabelle Schule Meilenstein'!$C$2:$C$106,'Hilfstabelle Schule Meilenstein'!$D$2:$D$106),2,FALSE)=0,"",VLOOKUP(O$59&$A66,CHOOSE({1,2},'Hilfstabelle Schule Meilenstein'!$A$2:$A$106&'Hilfstabelle Schule Meilenstein'!$C$2:$C$106,'Hilfstabelle Schule Meilenstein'!$D$2:$D$106),2,FALSE)),"") -> 
A67: Termin 4 | B67: =IFERROR(IF(VLOOKUP(C$59&$A67,CHOOSE({1,2},'Hilfstabelle Schule Meilenstein'!$A$2:$A$210&'Hilfstabelle Schule Meilenstein'!$C$2:$C$210,'Hilfstabelle Schule Meilenstein'!$B$2:$B$210),2,FALSE)=0,"",VLOOKUP(C$59&$A67,CHOOSE({1,2},'Hilfstabelle Schule Meilenstein'!$A$2:$A$210&'Hilfstabelle Schule Meilenstein'!$C$2:$C$210,'Hilfstabelle Schule Meilenstein'!$B$2:$B$210),2,FALSE)),"") ->  | C67: =IFERROR(IF(VLOOKUP(C$59&$A67,CHOOSE({1,2},'Hilfstabelle Schule Meilenstein'!$A$2:$A$106&'Hilfstabelle Schule Meilenstein'!$C$2:$C$106,'Hilfstabelle Schule Meilenstein'!$D$2:$D$106),2,FALSE)=0,"",VLOOKUP(C$59&$A67,CHOOSE({1,2},'Hilfstabelle Schule Meilenstein'!$A$2:$A$106&'Hilfstabelle Schule Meilenstein'!$C$2:$C$106,'Hilfstabelle Schule Meilenstein'!$D$2:$D$106),2,FALSE)),"") ->  | F67: =IFERROR(IF(VLOOKUP(G$59&$A67,CHOOSE({1,2},'Hilfstabelle Schule Meilenstein'!$A$2:$A$210&'Hilfstabelle Schule Meilenstein'!$C$2:$C$210,'Hilfstabelle Schule Meilenstein'!$B$2:$B$210),2,FALSE)=0,"",VLOOKUP(G$59&$A67,CHOOSE({1,2},'Hilfstabelle Schule Meilenstein'!$A$2:$A$210&'Hilfstabelle Schule Meilenstein'!$C$2:$C$210,'Hilfstabelle Schule Meilenstein'!$B$2:$B$210),2,FALSE)),"") ->  | G67: =IFERROR(IF(VLOOKUP(G$59&$A67,CHOOSE({1,2},'Hilfstabelle Schule Meilenstein'!$A$2:$A$106&'Hilfstabelle Schule Meilenstein'!$C$2:$C$106,'Hilfstabelle Schule Meilenstein'!$D$2:$D$106),2,FALSE)=0,"",VLOOKUP(G$59&$A67,CHOOSE({1,2},'Hilfstabelle Schule Meilenstein'!$A$2:$A$106&'Hilfstabelle Schule Meilenstein'!$C$2:$C$106,'Hilfstabelle Schule Meilenstein'!$D$2:$D$106),2,FALSE)),"") ->  | J67: =IFERROR(IF(VLOOKUP(K$59&$A67,CHOOSE({1,2},'Hilfstabelle Schule Meilenstein'!$A$2:$A$210&'Hilfstabelle Schule Meilenstein'!$C$2:$C$210,'Hilfstabelle Schule Meilenstein'!$B$2:$B$210),2,FALSE)=0,"",VLOOKUP(K$59&$A67,CHOOSE({1,2},'Hilfstabelle Schule Meilenstein'!$A$2:$A$210&'Hilfstabelle Schule Meilenstein'!$C$2:$C$210,'Hilfstabelle Schule Meilenstein'!$B$2:$B$210),2,FALSE)),"") ->  | K67: =IFERROR(IF(VLOOKUP(K$59&$A67,CHOOSE({1,2},'Hilfstabelle Schule Meilenstein'!$A$2:$A$106&'Hilfstabelle Schule Meilenstein'!$C$2:$C$106,'Hilfstabelle Schule Meilenstein'!$D$2:$D$106),2,FALSE)=0,"",VLOOKUP(K$59&$A67,CHOOSE({1,2},'Hilfstabelle Schule Meilenstein'!$A$2:$A$106&'Hilfstabelle Schule Meilenstein'!$C$2:$C$106,'Hilfstabelle Schule Meilenstein'!$D$2:$D$106),2,FALSE)),"") ->  | N67: =IFERROR(IF(VLOOKUP(O$59&$A67,CHOOSE({1,2},'Hilfstabelle Schule Meilenstein'!$A$2:$A$210&'Hilfstabelle Schule Meilenstein'!$C$2:$C$210,'Hilfstabelle Schule Meilenstein'!$B$2:$B$210),2,FALSE)=0,"",VLOOKUP(O$59&$A67,CHOOSE({1,2},'Hilfstabelle Schule Meilenstein'!$A$2:$A$210&'Hilfstabelle Schule Meilenstein'!$C$2:$C$210,'Hilfstabelle Schule Meilenstein'!$B$2:$B$210),2,FALSE)),"") ->  | O67: =IFERROR(IF(VLOOKUP(O$59&$A67,CHOOSE({1,2},'Hilfstabelle Schule Meilenstein'!$A$2:$A$106&'Hilfstabelle Schule Meilenstein'!$C$2:$C$106,'Hilfstabelle Schule Meilenstein'!$D$2:$D$106),2,FALSE)=0,"",VLOOKUP(O$59&$A67,CHOOSE({1,2},'Hilfstabelle Schule Meilenstein'!$A$2:$A$106&'Hilfstabelle Schule Meilenstein'!$C$2:$C$106,'Hilfstabelle Schule Meilenstein'!$D$2:$D$106),2,FALSE)),"") -> 
A68: Termin 5 | B68: =IFERROR(IF(VLOOKUP(C$59&$A68,CHOOSE({1,2},'Hilfstabelle Schule Meilenstein'!$A$2:$A$210&'Hilfstabelle Schule Meilenstein'!$C$2:$C$210,'Hilfstabelle Schule Meilenstein'!$B$2:$B$210),2,FALSE)=0,"",VLOOKUP(C$59&$A68,CHOOSE({1,2},'Hilfstabelle Schule Meilenstein'!$A$2:$A$210&'Hilfstabelle Schule Meilenstein'!$C$2:$C$210,'Hilfstabelle Schule Meilenstein'!$B$2:$B$210),2,FALSE)),"") ->  | C68: =IFERROR(IF(VLOOKUP(C$59&$A68,CHOOSE({1,2},'Hilfstabelle Schule Meilenstein'!$A$2:$A$106&'Hilfstabelle Schule Meilenstein'!$C$2:$C$106,'Hilfstabelle Schule Meilenstein'!$D$2:$D$106),2,FALSE)=0,"",VLOOKUP(C$59&$A68,CHOOSE({1,2},'Hilfstabelle Schule Meilenstein'!$A$2:$A$106&'Hilfstabelle Schule Meilenstein'!$C$2:$C$106,'Hilfstabelle Schule Meilenstein'!$D$2:$D$106),2,FALSE)),"") ->  | F68: =IFERROR(IF(VLOOKUP(G$59&$A68,CHOOSE({1,2},'Hilfstabelle Schule Meilenstein'!$A$2:$A$210&'Hilfstabelle Schule Meilenstein'!$C$2:$C$210,'Hilfstabelle Schule Meilenstein'!$B$2:$B$210),2,FALSE)=0,"",VLOOKUP(G$59&$A68,CHOOSE({1,2},'Hilfstabelle Schule Meilenstein'!$A$2:$A$210&'Hilfstabelle Schule Meilenstein'!$C$2:$C$210,'Hilfstabelle Schule Meilenstein'!$B$2:$B$210),2,FALSE)),"") ->  | G68: =IFERROR(IF(VLOOKUP(G$59&$A68,CHOOSE({1,2},'Hilfstabelle Schule Meilenstein'!$A$2:$A$106&'Hilfstabelle Schule Meilenstein'!$C$2:$C$106,'Hilfstabelle Schule Meilenstein'!$D$2:$D$106),2,FALSE)=0,"",VLOOKUP(G$59&$A68,CHOOSE({1,2},'Hilfstabelle Schule Meilenstein'!$A$2:$A$106&'Hilfstabelle Schule Meilenstein'!$C$2:$C$106,'Hilfstabelle Schule Meilenstein'!$D$2:$D$106),2,FALSE)),"") ->  | J68: =IFERROR(IF(VLOOKUP(K$59&$A68,CHOOSE({1,2},'Hilfstabelle Schule Meilenstein'!$A$2:$A$210&'Hilfstabelle Schule Meilenstein'!$C$2:$C$210,'Hilfstabelle Schule Meilenstein'!$B$2:$B$210),2,FALSE)=0,"",VLOOKUP(K$59&$A68,CHOOSE({1,2},'Hilfstabelle Schule Meilenstein'!$A$2:$A$210&'Hilfstabelle Schule Meilenstein'!$C$2:$C$210,'Hilfstabelle Schule Meilenstein'!$B$2:$B$210),2,FALSE)),"") ->  | K68: =IFERROR(IF(VLOOKUP(K$59&$A68,CHOOSE({1,2},'Hilfstabelle Schule Meilenstein'!$A$2:$A$106&'Hilfstabelle Schule Meilenstein'!$C$2:$C$106,'Hilfstabelle Schule Meilenstein'!$D$2:$D$106),2,FALSE)=0,"",VLOOKUP(K$59&$A68,CHOOSE({1,2},'Hilfstabelle Schule Meilenstein'!$A$2:$A$106&'Hilfstabelle Schule Meilenstein'!$C$2:$C$106,'Hilfstabelle Schule Meilenstein'!$D$2:$D$106),2,FALSE)),"") ->  | N68: =IFERROR(IF(VLOOKUP(O$59&$A68,CHOOSE({1,2},'Hilfstabelle Schule Meilenstein'!$A$2:$A$210&'Hilfstabelle Schule Meilenstein'!$C$2:$C$210,'Hilfstabelle Schule Meilenstein'!$B$2:$B$210),2,FALSE)=0,"",VLOOKUP(O$59&$A68,CHOOSE({1,2},'Hilfstabelle Schule Meilenstein'!$A$2:$A$210&'Hilfstabelle Schule Meilenstein'!$C$2:$C$210,'Hilfstabelle Schule Meilenstein'!$B$2:$B$210),2,FALSE)),"") ->  | O68: =IFERROR(IF(VLOOKUP(O$59&$A68,CHOOSE({1,2},'Hilfstabelle Schule Meilenstein'!$A$2:$A$106&'Hilfstabelle Schule Meilenstein'!$C$2:$C$106,'Hilfstabelle Schule Meilenstein'!$D$2:$D$106),2,FALSE)=0,"",VLOOKUP(O$59&$A68,CHOOSE({1,2},'Hilfstabelle Schule Meilenstein'!$A$2:$A$106&'Hilfstabelle Schule Meilenstein'!$C$2:$C$106,'Hilfstabelle Schule Meilenstein'!$D$2:$D$106),2,FALSE)),"") -> 

Sheet Hilfsblatt Zeitstrahl (hidden)
A1: Jahr | B1: Datum | C1: Meilenstein | D1: Hilfspalte 2 | E1: Hilfspalte 1 | G1: Jahr | H1: Datum | I1: Meilenstein | J1: Hilfspalte 2 | K1: Hilfspalte 1
A2: ='Planung Ausbildung'!$I$8 -> 2023 | B2: =DATE(A2,1,1) -> 2023-01-01 | C2: =IFERROR(IF(VLOOKUP($B2,Übersichtsblatt!$B$64:$E$68,2,FALSE)=0,"",VLOOKUP($B2,Übersichtsblatt!$B$64:$E$68,2,FALSE)),"") ->  | D2: =IF($C2="",0,$E2) -> 0 | E2: -3.5 | G2: ='Planung Sport'!$G$8 -> 2023 | H2: =DATE(G2,1,1) -> 2023-01-01 | I2: =IFERROR(IF(VLOOKUP($H2,Übersichtsblatt!$B$14:$E$24,2,FALSE)=0,"",VLOOKUP(H2,Übersichtsblatt!$B$14:$E$24,2,FALSE)),"") ->  | J2: =IF($I2="",0,$K2) -> 0 | K2: 3.5
A3: =YEAR(B3) -> 2023 | B3: =B2+1 -> 2023-01-02 | C3: =IFERROR(IF(VLOOKUP($B3,Übersichtsblatt!$B$64:$E$68,2,FALSE)=0,"",VLOOKUP($B3,Übersichtsblatt!$B$64:$E$68,2,FALSE)),"") ->  | D3: =IF($C3="",0,$E3) -> 0 | E3: -3.5 | G3: =YEAR(H3) -> 2023 | H3: =H2+1 -> 2023-01-02 | I3: =IFERROR(IF(VLOOKUP($H3,Übersichtsblatt!$B$14:$E$24,2,FALSE)=0,"",VLOOKUP(H3,Übersichtsblatt!$B$14:$E$24,2,FALSE)),"") ->  | J3: =IF($I3="",0,$K3) -> 0 | K3: 3.5
A4: =YEAR(B4) -> 2023 | B4: =B3+1 -> 2023-01-03 | C4: =IFERROR(IF(VLOOKUP($B4,Übersichtsblatt!$B$64:$E$68,2,FALSE)=0,"",VLOOKUP($B4,Übersichtsblatt!$B$64:$E$68,2,FALSE)),"") ->  | D4: 0 | E4: -3.5 | G4: =YEAR(H4) -> 2023 | H4: =H3+1 -> 2023-01-03 | I4: =IFERROR(IF(VLOOKUP($H4,Übersichtsblatt!$B$14:$E$24,2,FALSE)=0,"",VLOOKUP(H4,Übersichtsblatt!$B$14:$E$24,2,FALSE)),"") ->  | J4: 0 | K4: 3.5
A5: 2023 | B5: 2023-01-04 | C5: =IFERROR(IF(VLOOKUP($B5,Übersichtsblatt!$B$64:$E$68,2,FALSE)=0,"",VLOOKUP($B5,Übersichtsblatt!$B$64:$E$68,2,FALSE)),"") ->  | D5: 0 | E5: -3.5 | G5: 2023 | H5: 2023-01-04 | I5: =IFERROR(IF(VLOOKUP($H5,Übersichtsblatt!$B$14:$E$24,2,FALSE)=0,"",VLOOKUP(H5,Übersichtsblatt!$B$14:$E$24,2,FALSE)),"") ->  | J5: 0 | K5: 3.5
A6: 2023 | B6: 2023-01-05 | C6: =IFERROR(IF(VLOOKUP($B6,Übersichtsblatt!$B$64:$E$68,2,FALSE)=0,"",VLOOKUP($B6,Übersichtsblatt!$B$64:$E$68,2,FALSE)),"") ->  | D6: 0 | E6: -3.5 | G6: 2023 | H6: 2023-01-05 | I6: =IFERROR(IF(VLOOKUP($H6,Übersichtsblatt!$B$14:$E$24,2,FALSE)=0,"",VLOOKUP(H6,Übersichtsblatt!$B$14:$E$24,2,FALSE)),"") ->  | J6: 0 | K6: 3.5
A7: 2023 | B7: 2023-01-06 | C7: =IFERROR(IF(VLOOKUP($B7,Übersichtsblatt!$B$64:$E$68,2,FALSE)=0,"",VLOOKUP($B7,Übersichtsblatt!$B$64:$E$68,2,FALSE)),"") ->  | D7: 0 | E7: -3.5 | G7: 2023 | H7: 2023-01-06 | I7: =IFERROR(IF(VLOOKUP($H7,Übersichtsblatt!$B$14:$E$24,2,FALSE)=0,"",VLOOKUP(H7,Übersichtsblatt!$B$14:$E$24,2,FALSE)),"") ->  | J7: 0 | K7: 3.5
A8: 2023 | B8: 2023-01-07 | C8: =IFERROR(IF(VLOOKUP($B8,Übersichtsblatt!$B$64:$E$68,2,FALSE)=0,"",VLOOKUP($B8,Übersichtsblatt!$B$64:$E$68,2,FALSE)),"") ->  | D8: 0 | E8: -3.5 | G8: 2023 | H8: 2023-01-07 | I8: =IFERROR(IF(VLOOKUP($H8,Übersichtsblatt!$B$14:$E$24,2,FALSE)=0,"",VLOOKUP(H8,Übersichtsblatt!$B$14:$E$24,2,FALSE)),"") ->  | J8: 0 | K8: 3.5
A9: 2023 | B9: 2023-01-08 | C9: =IFERROR(IF(VLOOKUP($B9,Übersichtsblatt!$B$64:$E$68,2,FALSE)=0,"",VLOOKUP($B9,Übersichtsblatt!$B$64:$E$68,2,FALSE)),"") ->  | D9: 0 | E9: -3.5 | G9: 2023 | H9: 2023-01-08 | I9: =IFERROR(IF(VLOOKUP($H9,Übersichtsblatt!$B$14:$E$24,2,FALSE)=0,"",VLOOKUP(H9,Übersichtsblatt!$B$14:$E$24,2,FALSE)),"") ->  | J9: 0 | K9: 3.5
A10: 2023 | B10: 2023-01-09 | C10: =IFERROR(IF(VLOOKUP($B10,Übersichtsblatt!$B$64:$E$68,2,FALSE)=0,"",VLOOKUP($B10,Übersichtsblatt!$B$64:$E$68,2,FALSE)),"") ->  | D10: 0 | E10: -3.5 | G10: 2023 | H10: 2023-01-09 | I10: =IFERROR(IF(VLOOKUP($H10,Übersichtsblatt!$B$14:$E$24,2,FALSE)=0,"",VLOOKUP(H10,Übersichtsblatt!$B$14:$E$24,2,FALSE)),"") ->  | J10: 0 | K10: 3.5
A11: 2023 | B11: 2023-01-10 | C11: =IFERROR(IF(VLOOKUP($B11,Übersichtsblatt!$B$64:$E$68,2,FALSE)=0,"",VLOOKUP($B11,Übersichtsblatt!$B$64:$E$68,2,FALSE)),"") ->  | D11: 0 | E11: -3.5 | G11: 2023 | H11: 2023-01-10 | I11: =IFERROR(IF(VLOOKUP($H11,Übersichtsblatt!$B$14:$E$24,2,FALSE)=0,"",VLOOKUP(H11,Übersichtsblatt!$B$14:$E$24,2,FALSE)),"") ->  | J11: 0 | K11: 3.5
A12: 2023 | B12: 2023-01-11 | C12: =IFERROR(IF(VLOOKUP($B12,Übersichtsblatt!$B$64:$E$68,2,FALSE)=0,"",VLOOKUP($B12,Übersichtsblatt!$B$64:$E$68,2,FALSE)),"") ->  | D12: 0 | E12: -3.5 | G12: 2023 | H12: 2023-01-11 | I12: =IFERROR(IF(VLOOKUP($H12,Übersichtsblatt!$B$14:$E$24,2,FALSE)=0,"",VLOOKUP(H12,Übersichtsblatt!$B$14:$E$24,2,FALSE)),"") ->  | J12: 0 | K12: 3.5
A13: 2023 | B13: 2023-01-12 | C13: =IFERROR(IF(VLOOKUP($B13,Übersichtsblatt!$B$64:$E$68,2,FALSE)=0,"",VLOOKUP($B13,Übersichtsblatt!$B$64:$E$68,2,FALSE)),"") ->  | D13: 0 | E13: -3.5 | G13: 2023 | H13: 2023-01-12 | I13: =IFERROR(IF(VLOOKUP($H13,Übersichtsblatt!$B$14:$E$24,2,FALSE)=0,"",VLOOKUP(H13,Übersichtsblatt!$B$14:$E$24,2,FALSE)),"") ->  | J13: 0 | K13: 3.5
A14: 2023 | B14: 2023-01-13 | C14: =IFERROR(IF(VLOOKUP($B14,Übersichtsblatt!$B$64:$E$68,2,FALSE)=0,"",VLOOKUP($B14,Übersichtsblatt!$B$64:$E$68,2,FALSE)),"") ->  | D14: 0 | E14: -3.5 | G14: 2023 | H14: 2023-01-13 | I14: =IFERROR(IF(VLOOKUP($H14,Übersichtsblatt!$B$14:$E$24,2,FALSE)=0,"",VLOOKUP(H14,Übersichtsblatt!$B$14:$E$24,2,FALSE)),"") ->  | J14: 0 | K14: 3.5
A15: 2023 | B15: 2023-01-14 | C15: =IFERROR(IF(VLOOKUP($B15,Übersichtsblatt!$B$64:$E$68,2,FALSE)=0,"",VLOOKUP($B15,Übersichtsblatt!$B$64:$E$68,2,FALSE)),"") ->  | D15: 0 | E15: -3.5 | G15: 2023 | H15: 2023-01-14 | I15: =IFERROR(IF(VLOOKUP($H15,Übersichtsblatt!$B$14:$E$24,2,FALSE)=0,"",VLOOKUP(H15,Übersichtsblatt!$B$14:$E$24,2,FALSE)),"") ->  | J15: 0 | K15: 3.5
A16: 2023 | B16: 2023-01-15 | C16: =IFERROR(IF(VLOOKUP($B16,Übersichtsblatt!$B$64:$E$68,2,FALSE)=0,"",VLOOKUP($B16,Übersichtsblatt!$B$64:$E$68,2,FALSE)),"") ->  | D16: 0 | E16: -3.5 | G16: 2023 | H16: 2023-01-15 | I16: =IFERROR(IF(VLOOKUP($H16,Übersichtsblatt!$B$14:$E$24,2,FALSE)=0,"",VLOOKUP(H16,Übersichtsblatt!$B$14:$E$24,2,FALSE)),"") ->  | J16: 0 | K16: 3.5
A17: 2023 | B17: 2023-01-16 | C17: =IFERROR(IF(VLOOKUP($B17,Übersichtsblatt!$B$64:$E$68,2,FALSE)=0,"",VLOOKUP($B17,Übersichtsblatt!$B$64:$E$68,2,FALSE)),"") ->  | D17: 0 | E17: -3.5 | G17: 2023 | H17: 2023-01-16 | I17: =IFERROR(IF(VLOOKUP($H17,Übersichtsblatt!$B$14:$E$24,2,FALSE)=0,"",VLOOKUP(H17,Übersichtsblatt!$B$14:$E$24,2,FALSE)),"") ->  | J17: 0 | K17: 3.5
A18: 2023 | B18: 2023-01-17 | C18: =IFERROR(IF(VLOOKUP($B18,Übersichtsblatt!$B$64:$E$68,2,FALSE)=0,"",VLOOKUP($B18,Übersichtsblatt!$B$64:$E$68,2,FALSE)),"") ->  | D18: 0 | E18: -3.5 | G18: 2023 | H18: 2023-01-17 | I18: =IFERROR(IF(VLOOKUP($H18,Übersichtsblatt!$B$14:$E$24,2,FALSE)=0,"",VLOOKUP(H18,Übersichtsblatt!$B$14:$E$24,2,FALSE)),"") ->  | J18: 0 | K18: 3.5
A19: 2023 | B19: 2023-01-18 | C19: =IFERROR(IF(VLOOKUP($B19,Übersichtsblatt!$B$64:$E$68,2,FALSE)=0,"",VLOOKUP($B19,Übersichtsblatt!$B$64:$E$68,2,FALSE)),"") ->  | D19: 0 | E19: -3.5 | G19: 2023 | H19: 2023-01-18 | I19: =IFERROR(IF(VLOOKUP($H19,Übersichtsblatt!$B$14:$E$24,2,FALSE)=0,"",VLOOKUP(H19,Übersichtsblatt!$B$14:$E$24,2,FALSE)),"") ->  | J19: 0 | K19: 3.5
A20: 2023 | B20: 2023-01-19 | C20: =IFERROR(IF(VLOOKUP($B20,Übersichtsblatt!$B$64:$E$68,2,FALSE)=0,"",VLOOKUP($B20,Übersichtsblatt!$B$64:$E$68,2,FALSE)),"") ->  | D20: 0 | E20: -3.5 | G20: 2023 | H20: 2023-01-19 | I20: =IFERROR(IF(VLOOKUP($H20,Übersichtsblatt!$B$14:$E$24,2,FALSE)=0,"",VLOOKUP(H20,Übersichtsblatt!$B$14:$E$24,2,FALSE)),"") ->  | J20: 0 | K20: 3.5
A21: 2023 | B21: 2023-01-20 | C21: =IFERROR(IF(VLOOKUP($B21,Übersichtsblatt!$B$64:$E$68,2,FALSE)=0,"",VLOOKUP($B21,Übersichtsblatt!$B$64:$E$68,2,FALSE)),"") ->  | D21: 0 | E21: -3.5 | G21: 2023 | H21: 2023-01-20 | I21: =IFERROR(IF(VLOOKUP($H21,Übersichtsblatt!$B$14:$E$24,2,FALSE)=0,"",VLOOKUP(H21,Übersichtsblatt!$B$14:$E$24,2,FALSE)),"") ->  | J21: 0 | K21: 3.5
A22: 2023 | B22: 2023-01-21 | C22: =IFERROR(IF(VLOOKUP($B22,Übersichtsblatt!$B$64:$E$68,2,FALSE)=0,"",VLOOKUP($B22,Übersichtsblatt!$B$64:$E$68,2,FALSE)),"") ->  | D22: 0 | E22: -3.5 | G22: 2023 | H22: 2023-01-21 | I22: =IFERROR(IF(VLOOKUP($H22,Übersichtsblatt!$B$14:$E$24,2,FALSE)=0,"",VLOOKUP(H22,Übersichtsblatt!$B$14:$E$24,2,FALSE)),"") ->  | J22: 0 | K22: 3.5
A23: 2023 | B23: 2023-01-22 | C23: =IFERROR(IF(VLOOKUP($B23,Übersichtsblatt!$B$64:$E$68,2,FALSE)=0,"",VLOOKUP($B23,Übersichtsblatt!$B$64:$E$68,2,FALSE)),"") ->  | D23: 0 | E23: -3.5 | G23: 2023 | H23: 2023-01-22 | I23: =IFERROR(IF(VLOOKUP($H23,Übersichtsblatt!$B$14:$E$24,2,FALSE)=0,"",VLOOKUP(H23,Übersichtsblatt!$B$14:$E$24,2,FALSE)),"") ->  | J23: 0 | K23: 3.5
A24: 2023 | B24: 2023-01-23 | C24: =IFERROR(IF(VLOOKUP($B24,Übersichtsblatt!$B$64:$E$68,2,FALSE)=0,"",VLOOKUP($B24,Übersichtsblatt!$B$64:$E$68,2,FALSE)),"") ->  | D24: 0 | E24: -3.5 | G24: 2023 | H24: 2023-01-23 | I24: =IFERROR(IF(VLOOKUP($H24,Übersichtsblatt!$B$14:$E$24,2,FALSE)=0,"",VLOOKUP(H24,Übersichtsblatt!$B$14:$E$24,2,FALSE)),"") ->  | J24: 0 | K24: 3.5
A25: 2023 | B25: 2023-01-24 | C25: =IFERROR(IF(VLOOKUP($B25,Übersichtsblatt!$B$64:$E$68,2,FALSE)=0,"",VLOOKUP($B25,Übersichtsblatt!$B$64:$E$68,2,FALSE)),"") ->  | D25: 0 | E25: -3.5 | G25: 2023 | H25: 2023-01-24 | I25: =IFERROR(IF(VLOOKUP($H25,Übersichtsblatt!$B$14:$E$24,2,FALSE)=0,"",VLOOKUP(H25,Übersichtsblatt!$B$14:$E$24,2,FALSE)),"") ->  | J25: 0 | K25: 3.5
A26: 2023 | B26: 2023-01-25 | C26: =IFERROR(IF(VLOOKUP($B26,Übersichtsblatt!$B$64:$E$68,2,FALSE)=0,"",VLOOKUP($B26,Übersichtsblatt!$B$64:$E$68,2,FALSE)),"") ->  | D26: 0 | E26: -3.5 | G26: 2023 | H26: 2023-01-25 | I26: =IFERROR(IF(VLOOKUP($H26,Übersichtsblatt!$B$14:$E$24,2,FALSE)=0,"",VLOOKUP(H26,Übersichtsblatt!$B$14:$E$24,2,FALSE)),"") ->  | J26: 0 | K26: 3.5
A27: 2023 | B27: 2023-01-26 | C27: =IFERROR(IF(VLOOKUP($B27,Übersichtsblatt!$B$64:$E$68,2,FALSE)=0,"",VLOOKUP($B27,Übersichtsblatt!$B$64:$E$68,2,FALSE)),"") ->  | D27: 0 | E27: -3.5 | G27: 2023 | H27: 2023-01-26 | I27: =IFERROR(IF(VLOOKUP($H27,Übersichtsblatt!$B$14:$E$24,2,FALSE)=0,"",VLOOKUP(H27,Übersichtsblatt!$B$14:$E$24,2,FALSE)),"") ->  | J27: 0 | K27: 3.5
A28: 2023 | B28: 2023-01-27 | C28: =IFERROR(IF(VLOOKUP($B28,Übersichtsblatt!$B$64:$E$68,2,FALSE)=0,"",VLOOKUP($B28,Übersichtsblatt!$B$64:$E$68,2,FALSE)),"") ->  | D28: 0 | E28: -3.5 | G28: 2023 | H28: 2023-01-27 | I28: =IFERROR(IF(VLOOKUP($H28,Übersichtsblatt!$B$14:$E$24,2,FALSE)=0,"",VLOOKUP(H28,Übersichtsblatt!$B$14:$E$24,2,FALSE)),"") ->  | J28: 0 | K28: 3.5
A29: 2023 | B29: 2023-01-28 | C29: =IFERROR(IF(VLOOKUP($B29,Übersichtsblatt!$B$64:$E$68,2,FALSE)=0,"",VLOOKUP($B29,Übersichtsblatt!$B$64:$E$68,2,FALSE)),"") ->  | D29: 0 | E29: -3.5 | G29: 2023 | H29: 2023-01-28 | I29: =IFERROR(IF(VLOOKUP($H29,Übersichtsblatt!$B$14:$E$24,2,FALSE)=0,"",VLOOKUP(H29,Übersichtsblatt!$B$14:$E$24,2,FALSE)),"") ->  | J29: 0 | K29: 3.5
A30: 2023 | B30: 2023-01-29 | C30: =IFERROR(IF(VLOOKUP($B30,Übersichtsblatt!$B$64:$E$68,2,FALSE)=0,"",VLOOKUP($B30,Übersichtsblatt!$B$64:$E$68,2,FALSE)),"") ->  | D30: 0 | E30: -3.5 | G30: 2023 | H30: 2023-01-29 | I30: =IFERROR(IF(VLOOKUP($H30,Übersichtsblatt!$B$14:$E$24,2,FALSE)=0,"",VLOOKUP(H30,Übersichtsblatt!$B$14:$E$24,2,FALSE)),"") ->  | J30: 0 | K30: 3.5
A31: 2023 | B31: 2023-01-30 | C31: =IFERROR(IF(VLOOKUP($B31,Übersichtsblatt!$B$64:$E$68,2,FALSE)=0,"",VLOOKUP($B31,Übersichtsblatt!$B$64:$E$68,2,FALSE)),"") ->  | D31: 0 | E31: -3.5 | G31: 2023 | H31: 2023-01-30 | I31: =IFERROR(IF(VLOOKUP($H31,Übersichtsblatt!$B$14:$E$24,2,FALSE)=0,"",VLOOKUP(H31,Übersichtsblatt!$B$14:$E$24,2,FALSE)),"") ->  | J31: 0 | K31: 3.5
A32: 2023 | B32: 2023-01-31 | C32: =IFERROR(IF(VLOOKUP($B32,Übersichtsblatt!$B$64:$E$68,2,FALSE)=0,"",VLOOKUP($B32,Übersichtsblatt!$B$64:$E$68,2,FALSE)),"") ->  | D32: 0 | E32: -3.5 | G32: 2023 | H32: 2023-01-31 | I32: =IFERROR(IF(VLOOKUP($H32,Übersichtsblatt!$B$14:$E$24,2,FALSE)=0,"",VLOOKUP(H32,Übersichtsblatt!$B$14:$E$24,2,FALSE)),"") ->  | J32: 0 | K32: 3.5
A33: 2023 | B33: 2023-02-01 | C33: =IFERROR(IF(VLOOKUP($B33,Übersichtsblatt!$B$64:$E$68,2,FALSE)=0,"",VLOOKUP($B33,Übersichtsblatt!$B$64:$E$68,2,FALSE)),"") ->  | D33: 0 | E33: -12.5 | G33: 2023 | H33: 2023-02-01 | I33: =IFERROR(IF(VLOOKUP($H33,Übersichtsblatt!$B$14:$E$24,2,FALSE)=0,"",VLOOKUP(H33,Übersichtsblatt!$B$14:$E$24,2,FALSE)),"") ->  | J33: 0 | K33: 12.5
A34: 2023 | B34: 2023-02-02 | C34: =IFERROR(IF(VLOOKUP($B34,Übersichtsblatt!$B$64:$E$68,2,FALSE)=0,"",VLOOKUP($B34,Übersichtsblatt!$B$64:$E$68,2,FALSE)),"") ->  | D34: 0 | E34: -12.5 | G34: 2023 | H34: 2023-02-02 | I34: =IFERROR(IF(VLOOKUP($H34,Übersichtsblatt!$B$14:$E$24,2,FALSE)=0,"",VLOOKUP(H34,Übersichtsblatt!$B$14:$E$24,2,FALSE)),"") ->  | J34: 0 | K34: 12.5
A35: 2023 | B35: 2023-02-03 | C35: =IFERROR(IF(VLOOKUP($B35,Übersichtsblatt!$B$64:$E$68,2,FALSE)=0,"",VLOOKUP($B35,Übersichtsblatt!$B$64:$E$68,2,FALSE)),"") ->  | D35: 0 | E35: -12.5 | G35: 2023 | H35: 2023-02-03 | I35: =IFERROR(IF(VLOOKUP($H35,Übersichtsblatt!$B$14:$E$24,2,FALSE)=0,"",VLOOKUP(H35,Übersichtsblatt!$B$14:$E$24,2,FALSE)),"") ->  | J35: 0 | K35: 12.5
A36: 2023 | B36: 2023-02-04 | C36: =IFERROR(IF(VLOOKUP($B36,Übersichtsblatt!$B$64:$E$68,2,FALSE)=0,"",VLOOKUP($B36,Übersichtsblatt!$B$64:$E$68,2,FALSE)),"") ->  | D36: 0 | E36: -12.5 | G36: 2023 | H36: 2023-02-04 | I36: =IFERROR(IF(VLOOKUP($H36,Übersichtsblatt!$B$14:$E$24,2,FALSE)=0,"",VLOOKUP(H36,Übersichtsblatt!$B$14:$E$24,2,FALSE)),"") ->  | J36: 0 | K36: 12.5
A37: 2023 | B37: 2023-02-05 | C37: =IFERROR(IF(VLOOKUP($B37,Übersichtsblatt!$B$64:$E$68,2,FALSE)=0,"",VLOOKUP($B37,Übersichtsblatt!$B$64:$E$68,2,FALSE)),"") ->  | D37: 0 | E37: -12.5 | G37: 2023 | H37: 2023-02-05 | I37: =IFERROR(IF(VLOOKUP($H37,Übersichtsblatt!$B$14:$E$24,2,FALSE)=0,"",VLOOKUP(H37,Übersichtsblatt!$B$14:$E$24,2,FALSE)),"") ->  | J37: 0 | K37: 12.5
A38: 2023 | B38: 2023-02-06 | C38: =IFERROR(IF(VLOOKUP($B38,Übersichtsblatt!$B$64:$E$68,2,FALSE)=0,"",VLOOKUP($B38,Übersichtsblatt!$B$64:$E$68,2,FALSE)),"") ->  | D38: 0 | E38: -12.5 | G38: 2023 | H38: 2023-02-06 | I38: =IFERROR(IF(VLOOKUP($H38,Übersichtsblatt!$B$14:$E$24,2,FALSE)=0,"",VLOOKUP(H38,Übersichtsblatt!$B$14:$E$24,2,FALSE)),"") ->  | J38: 0 | K38: 12.5
A39: 2023 | B39: 2023-02-07 | C39: =IFERROR(IF(VLOOKUP($B39,Übersichtsblatt!$B$64:$E$68,2,FALSE)=0,"",VLOOKUP($B39,Übersichtsblatt!$B$64:$E$68,2,FALSE)),"") ->  | D39: 0 | E39: -12.5 | G39: 2023 | H39: 2023-02-07 | I39: =IFERROR(IF(VLOOKUP($H39,Übersichtsblatt!$B$14:$E$24,2,FALSE)=0,"",VLOOKUP(H39,Übersichtsblatt!$B$14:$E$24,2,FALSE)),"") ->  | J39: 0 | K39: 12.5
A40: 2023 | B40: 2023-02-08 | C40: =IFERROR(IF(VLOOKUP($B40,Übersichtsblatt!$B$64:$E$68,2,FALSE)=0,"",VLOOKUP($B40,Übersichtsblatt!$B$64:$E$68,2,FALSE)),"") ->  | D40: 0 | E40: -12.5 | G40: 2023 | H40: 2023-02-08 | I40: =IFERROR(IF(VLOOKUP($H40,Übersichtsblatt!$B$14:$E$24,2,FALSE)=0,"",VLOOKUP(H40,Übersichtsblatt!$B$14:$E$24,2,FALSE)),"") ->  | J40: 0 | K40: 12.5
A41: 2023 | B41: 2023-02-09 | C41: =IFERROR(IF(VLOOKUP($B41,Übersichtsblatt!$B$64:$E$68,2,FALSE)=0,"",VLOOKUP($B41,Übersichtsblatt!$B$64:$E$68,2,FALSE)),"") ->  | D41: 0 | E41: -12.5 | G41: 2023 | H41: 2023-02-09 | I41: =IFERROR(IF(VLOOKUP($H41,Übersichtsblatt!$B$14:$E$24,2,FALSE)=0,"",VLOOKUP(H41,Übersichtsblatt!$B$14:$E$24,2,FALSE)),"") ->  | J41: 0 | K41: 12.5
A42: 2023 | B42: 2023-02-10 | C42: =IFERROR(IF(VLOOKUP($B42,Übersichtsblatt!$B$64:$E$68,2,FALSE)=0,"",VLOOKUP($B42,Übersichtsblatt!$B$64:$E$68,2,FALSE)),"") ->  | D42: 0 | E42: -12.5 | G42: 2023 | H42: 2023-02-10 | I42: =IFERROR(IF(VLOOKUP($H42,Übersichtsblatt!$B$14:$E$24,2,FALSE)=0,"",VLOOKUP(H42,Übersichtsblatt!$B$14:$E$24,2,FALSE)),"") ->  | J42: 0 | K42: 12.5
A43: 2023 | B43: 2023-02-11 | C43: =IFERROR(IF(VLOOKUP($B43,Übersichtsblatt!$B$64:$E$68,2,FALSE)=0,"",VLOOKUP($B43,Übersichtsblatt!$B$64:$E$68,2,FALSE)),"") ->  | D43: 0 | E43: -12.5 | G43: 2023 | H43: 2023-02-11 | I43: =IFERROR(IF(VLOOKUP($H43,Übersichtsblatt!$B$14:$E$24,2,FALSE)=0,"",VLOOKUP(H43,Übersichtsblatt!$B$14:$E$24,2,FALSE)),"") ->  | J43: 0 | K43: 12.5
A44: 2023 | B44: 2023-02-12 | C44: =IFERROR(IF(VLOOKUP($B44,Übersichtsblatt!$B$64:$E$68,2,FALSE)=0,"",VLOOKUP($B44,Übersichtsblatt!$B$64:$E$68,2,FALSE)),"") ->  | D44: 0 | E44: -12.5 | G44: 2023 | H44: 2023-02-12 | I44: =IFERROR(IF(VLOOKUP($H44,Übersichtsblatt!$B$14:$E$24,2,FALSE)=0,"",VLOOKUP(H44,Übersichtsblatt!$B$14:$E$24,2,FALSE)),"") ->  | J44: 0 | K44: 12.5
A45: 2023 | B45: 2023-02-13 | C45: =IFERROR(IF(VLOOKUP($B45,Übersichtsblatt!$B$64:$E$68,2,FALSE)=0,"",VLOOKUP($B45,Übersichtsblatt!$B$64:$E$68,2,FALSE)),"") ->  | D45: 0 | E45: -12.5 | G45: 2023 | H45: 2023-02-13 | I45: =IFERROR(IF(VLOOKUP($H45,Übersichtsblatt!$B$14:$E$24,2,FALSE)=0,"",VLOOKUP(H45,Übersichtsblatt!$B$14:$E$24,2,FALSE)),"") ->  | J45: 0 | K45: 12.5
A46: 2023 | B46: 2023-02-14 | C46: =IFERROR(IF(VLOOKUP($B46,Übersichtsblatt!$B$64:$E$68,2,FALSE)=0,"",VLOOKUP($B46,Übersichtsblatt!$B$64:$E$68,2,FALSE)),"") ->  | D46: 0 | E46: -12.5 | G46: 2023 | H46: 2023-02-14 | I46: =IFERROR(IF(VLOOKUP($H46,Übersichtsblatt!$B$14:$E$24,2,FALSE)=0,"",VLOOKUP(H46,Übersichtsblatt!$B$14:$E$24,2,FALSE)),"") ->  | J46: 0 | K46: 12.5
A47: 2023 | B47: 2023-02-15 | C47: =IFERROR(IF(VLOOKUP($B47,Übersichtsblatt!$B$64:$E$68,2,FALSE)=0,"",VLOOKUP($B47,Übersichtsblatt!$B$64:$E$68,2,FALSE)),"") ->  | D47: 0 | E47: -12.5 | G47: 2023 | H47: 2023-02-15 | I47: =IFERROR(IF(VLOOKUP($H47,Übersichtsblatt!$B$14:$E$24,2,FALSE)=0,"",VLOOKUP(H47,Übersichtsblatt!$B$14:$E$24,2,FALSE)),"") ->  | J47: 0 | K47: 12.5
A48: 2023 | B48: 2023-02-16 | C48: =IFERROR(IF(VLOOKUP($B48,Übersichtsblatt!$B$64:$E$68,2,FALSE)=0,"",VLOOKUP($B48,Übersichtsblatt!$B$64:$E$68,2,FALSE)),"") ->  | D48: 0 | E48: -12.5 | G48: 2023 | H48: 2023-02-16 | I48: =IFERROR(IF(VLOOKUP($H48,Übersichtsblatt!$B$14:$E$24,2,FALSE)=0,"",VLOOKUP(H48,Übersichtsblatt!$B$14:$E$24,2,FALSE)),"") ->  | J48: 0 | K48: 12.5
A49: 2023 | B49: 2023-02-17 | C49: =IFERROR(IF(VLOOKUP($B49,Übersichtsblatt!$B$64:$E$68,2,FALSE)=0,"",VLOOKUP($B49,Übersichtsblatt!$B$64:$E$68,2,FALSE)),"") ->  | D49: 0 | E49: -12.5 | G49: 2023 | H49: 2023-02-17 | I49: =IFERROR(IF(VLOOKUP($H49,Übersichtsblatt!$B$14:$E$24,2,FALSE)=0,"",VLOOKUP(H49,Übersichtsblatt!$B$14:$E$24,2,FALSE)),"") ->  | J49: 0 | K49: 12.5
A50: 2023 | B50: 2023-02-18 | C50: =IFERROR(IF(VLOOKUP($B50,Übersichtsblatt!$B$64:$E$68,2,FALSE)=0,"",VLOOKUP($B50,Übersichtsblatt!$B$64:$E$68,2,FALSE)),"") ->  | D50: 0 | E50: -12.5 | G50: 2023 | H50: 2023-02-18 | I50: =IFERROR(IF(VLOOKUP($H50,Übersichtsblatt!$B$14:$E$24,2,FALSE)=0,"",VLOOKUP(H50,Übersichtsblatt!$B$14:$E$24,2,FALSE)),"") ->  | J50: 0 | K50: 12.5
A51: 2023 | B51: 2023-02-19 | C51: =IFERROR(IF(VLOOKUP($B51,Übersichtsblatt!$B$64:$E$68,2,FALSE)=0,"",VLOOKUP($B51,Übersichtsblatt!$B$64:$E$68,2,FALSE)),"") ->  | D51: 0 | E51: -12.5 | G51: 2023 | H51: 2023-02-19 | I51: =IFERROR(IF(VLOOKUP($H51,Übersichtsblatt!$B$14:$E$24,2,FALSE)=0,"",VLOOKUP(H51,Übersichtsblatt!$B$14:$E$24,2,FALSE)),"") ->  | J51: 0 | K51: 12.5
A52: 2023 | B52: 2023-02-20 | C52: =IFERROR(IF(VLOOKUP($B52,Übersichtsblatt!$B$64:$E$68,2,FALSE)=0,"",VLOOKUP($B52,Übersichtsblatt!$B$64:$E$68,2,FALSE)),"") ->  | D52: 0 | E52: -12.5 | G52: 2023 | H52: 2023-02-20 | I52: =IFERROR(IF(VLOOKUP($H52,Übersichtsblatt!$B$14:$E$24,2,FALSE)=0,"",VLOOKUP(H52,Übersichtsblatt!$B$14:$E$24,2,FALSE)),"") ->  | J52: 0 | K52: 12.5
A53: 2023 | B53: 2023-02-21 | C53: =IFERROR(IF(VLOOKUP($B53,Übersichtsblatt!$B$64:$E$68,2,FALSE)=0,"",VLOOKUP($B53,Übersichtsblatt!$B$64:$E$68,2,FALSE)),"") ->  | D53: 0 | E53: -12.5 | G53: 2023 | H53: 2023-02-21 | I53: =IFERROR(IF(VLOOKUP($H53,Übersichtsblatt!$B$14:$E$24,2,FALSE)=0,"",VLOOKUP(H53,Übersichtsblatt!$B$14:$E$24,2,FALSE)),"") ->  | J53: 0 | K53: 12.5
A54: 2023 | B54: 2023-02-22 | C54: =IFERROR(IF(VLOOKUP($B54,Übersichtsblatt!$B$64:$E$68,2,FALSE)=0,"",VLOOKUP($B54,Übersichtsblatt!$B$64:$E$68,2,FALSE)),"") ->  | D54: 0 | E54: -12.5 | G54: 2023 | H54: 2023-02-22 | I54: =IFERROR(IF(VLOOKUP($H54,Übersichtsblatt!$B$14:$E$24,2,FALSE)=0,"",VLOOKUP(H54,Übersichtsblatt!$B$14:$E$24,2,FALSE)),"") ->  | J54: 0 | K54: 12.5
A55: 2023 | B55: 2023-02-23 | C55: =IFERROR(IF(VLOOKUP($B55,Übersichtsblatt!$B$64:$E$68,2,FALSE)=0,"",VLOOKUP($B55,Übersichtsblatt!$B$64:$E$68,2,FALSE)),"") ->  | D55: 0 | E55: -12.5 | G55: 2023 | H55: 2023-02-23 | I55: =IFERROR(IF(VLOOKUP($H55,Übersichtsblatt!$B$14:$E$24,2,FALSE)=0,"",VLOOKUP(H55,Übersichtsblatt!$B$14:$E$24,2,FALSE)),"") ->  | J55: 0 | K55: 12.5
A56: 2023 | B56: 2023-02-24 | C56: =IFERROR(IF(VLOOKUP($B56,Übersichtsblatt!$B$64:$E$68,2,FALSE)=0,"",VLOOKUP($B56,Übersichtsblatt!$B$64:$E$68,2,FALSE)),"") ->  | D56: 0 | E56: -12.5 | G56: 2023 | H56: 2023-02-24 | I56: =IFERROR(IF(VLOOKUP($H56,Übersichtsblatt!$B$14:$E$24,2,FALSE)=0,"",VLOOKUP(H56,Übersichtsblatt!$B$14:$E$24,2,FALSE)),"") ->  | J56: 0 | K56: 12.5
A57: 2023 | B57: 2023-02-25 | C57: =IFERROR(IF(VLOOKUP($B57,Übersichtsblatt!$B$64:$E$68,2,FALSE)=0,"",VLOOKUP($B57,Übersichtsblatt!$B$64:$E$68,2,FALSE)),"") ->  | D57: 0 | E57: -12.5 | G57: 2023 | H57: 2023-02-25 | I57: =IFERROR(IF(VLOOKUP($H57,Übersichtsblatt!$B$14:$E$24,2,FALSE)=0,"",VLOOKUP(H57,Übersichtsblatt!$B$14:$E$24,2,FALSE)),"") ->  | J57: 0 | K57: 12.5
A58: 2023 | B58: 2023-02-26 | C58: =IFERROR(IF(VLOOKUP($B58,Übersichtsblatt!$B$64:$E$68,2,FALSE)=0,"",VLOOKUP($B58,Übersichtsblatt!$B$64:$E$68,2,FALSE)),"") ->  | D58: 0 | E58: -12.5 | G58: 2023 | H58: 2023-02-26 | I58: =IFERROR(IF(VLOOKUP($H58,Übersichtsblatt!$B$14:$E$24,2,FALSE)=0,"",VLOOKUP(H58,Übersichtsblatt!$B$14:$E$24,2,FALSE)),"") ->  | J58: 0 | K58: 12.5
A59: 2023 | B59: 2023-02-27 | C59: =IFERROR(IF(VLOOKUP($B59,Übersichtsblatt!$B$64:$E$68,2,FALSE)=0,"",VLOOKUP($B59,Übersichtsblatt!$B$64:$E$68,2,FALSE)),"") ->  | D59: 0 | E59: -12.5 | G59: 2023 | H59: 2023-02-27 | I59: =IFERROR(IF(VLOOKUP($H59,Übersichtsblatt!$B$14:$E$24,2,FALSE)=0,"",VLOOKUP(H59,Übersichtsblatt!$B$14:$E$24,2,FALSE)),"") ->  | J59: 0 | K59: 12.5
A60: 2023 | B60: 2023-02-28 | C60: =IFERROR(IF(VLOOKUP($B60,Übersichtsblatt!$B$64:$E$68,2,FALSE)=0,"",VLOOKUP($B60,Übersichtsblatt!$B$64:$E$68,2,FALSE)),"") ->  | D60: 0 | E60: -12.5 | G60: 2023 | H60: 2023-02-28 | I60: =IFERROR(IF(VLOOKUP($H60,Übersichtsblatt!$B$14:$E$24,2,FALSE)=0,"",VLOOKUP(H60,Übersichtsblatt!$B$14:$E$24,2,FALSE)),"") ->  | J60: 0 | K60: 12.5
A61: 2023 | B61: 2023-03-01 | C61: =IFERROR(IF(VLOOKUP($B61,Übersichtsblatt!$B$64:$E$68,2,FALSE)=0,"",VLOOKUP($B61,Übersichtsblatt!$B$64:$E$68,2,FALSE)),"") ->  | D61: 0 | E61: -12.5 | G61: 2023 | H61: 2023-03-01 | J61: 0 | K61: 12.5
A62: 2023 | B62: =DATE(A2,3,1) -> 2023-03-01 | C62: =IFERROR(IF(VLOOKUP($B62,Übersichtsblatt!$B$64:$E$68,2,FALSE)=0,"",VLOOKUP($B62,Übersichtsblatt!$B$64:$E$68,2,FALSE)),"") ->  | D62: 0 | E62: -6.5 | G62: 2023 | H62: =DATE(G2,3,1) -> 2023-03-01 | I62: =IFERROR(IF(VLOOKUP($H62,Übersichtsblatt!$B$14:$E$24,2,FALSE)=0,"",VLOOKUP(H62,Übersichtsblatt!$B$14:$E$24,2,FALSE)),"") ->  | J62: 0 | K62: 6.5
A63: 2023 | B63: 2023-03-02 | C63: =IFERROR(IF(VLOOKUP($B63,Übersichtsblatt!$B$64:$E$68,2,FALSE)=0,"",VLOOKUP($B63,Übersichtsblatt!$B$64:$E$68,2,FALSE)),"") ->  | D63: 0 | E63: -6.5 | G63: 2023 | H63: 2023-03-02 | I63: =IFERROR(IF(VLOOKUP($H63,Übersichtsblatt!$B$14:$E$24,2,FALSE)=0,"",VLOOKUP(H63,Übersichtsblatt!$B$14:$E$24,2,FALSE)),"") ->  | J63: 0 | K63: 6.5
A64: 2023 | B64: 2023-03-03 | C64: =IFERROR(IF(VLOOKUP($B64,Übersichtsblatt!$B$64:$E$68,2,FALSE)=0,"",VLOOKUP($B64,Übersichtsblatt!$B$64:$E$68,2,FALSE)),"") ->  | D64: 0 | E64: -6.5 | G64: 2023 | H64: 2023-03-03 | I64: =IFERROR(IF(VLOOKUP($H64,Übersichtsblatt!$B$14:$E$24,2,FALSE)=0,"",VLOOKUP(H64,Übersichtsblatt!$B$14:$E$24,2,FALSE)),"") ->  | J64: 0 | K64: 6.5
A65: 2023 | B65: 2023-03-04 | C65: =IFERROR(IF(VLOOKUP($B65,Übersichtsblatt!$B$64:$E$68,2,FALSE)=0,"",VLOOKUP($B65,Übersichtsblatt!$B$64:$E$68,2,FALSE)),"") ->  | D65: 0 | E65: -6.5 | G65: 2023 | H65: 2023-03-04 | I65: =IFERROR(IF(VLOOKUP($H65,Übersichtsblatt!$B$14:$E$24,2,FALSE)=0,"",VLOOKUP(H65,Übersichtsblatt!$B$14:$E$24,2,FALSE)),"") ->  | J65: 0 | K65: 6.5
A66: 2023 | B66: 2023-03-05 | C66: =IFERROR(IF(VLOOKUP($B66,Übersichtsblatt!$B$64:$E$68,2,FALSE)=0,"",VLOOKUP($B66,Übersichtsblatt!$B$64:$E$68,2,FALSE)),"") ->  | D66: 0 | E66: -6.5 | G66: 2023 | H66: 2023-03-05 | I66: =IFERROR(IF(VLOOKUP($H66,Übersichtsblatt!$B$14:$E$24,2,FALSE)=0,"",VLOOKUP(H66,Übersichtsblatt!$B$14:$E$24,2,FALSE)),"") ->  | J66: 0 | K66: 6.5
A67: 2023 | B67: 2023-03-06 | C67: =IFERROR(IF(VLOOKUP($B67,Übersichtsblatt!$B$64:$E$68,2,FALSE)=0,"",VLOOKUP($B67,Übersichtsblatt!$B$64:$E$68,2,FALSE)),"") ->  | D67: 0 | E67: -6.5 | G67: 2023 | H67: 2023-03-06 | I67: =IFERROR(IF(VLOOKUP($H67,Übersichtsblatt!$B$14:$E$24,2,FALSE)=0,"",VLOOKUP(H67,Übersichtsblatt!$B$14:$E$24,2,FALSE)),"") ->  | J67: 0 | K67: 6.5
A68: 2023 | B68: 2023-03-07 | C68: =IFERROR(IF(VLOOKUP($B68,Übersichtsblatt!$B$64:$E$68,2,FALSE)=0,"",VLOOKUP($B68,Übersichtsblatt!$B$64:$E$68,2,FALSE)),"") ->  | D68: =IF($C68="",0,$E68) -> 0 | E68: -6.5 | G68: 2023 | H68: 2023-03-07 | I68: =IFERROR(IF(VLOOKUP($H68,Übersichtsblatt!$B$14:$E$24,2,FALSE)=0,"",VLOOKUP(H68,Übersichtsblatt!$B$14:$E$24,2,FALSE)),"") ->  | J68: =IF($I68="",0,$K68) -> 0 | K68: 6.5
A69: =YEAR(B69) -> 2023 | B69: =B68+1 -> 2023-03-08 | C69: =IFERROR(IF(VLOOKUP($B69,Übersichtsblatt!$B$64:$E$68,2,FALSE)=0,"",VLOOKUP($B69,Übersichtsblatt!$B$64:$E$68,2,FALSE)),"") ->  | D69: 0 | E69: -6.5 | G69: =YEAR(H69) -> 2023 | H69: =H68+1 -> 2023-03-08 | I69: =IFERROR(IF(VLOOKUP($H69,Übersichtsblatt!$B$14:$E$24,2,FALSE)=0,"",VLOOKUP(H69,Übersichtsblatt!$B$14:$E$24,2,FALSE)),"") ->  | J69: 0 | K69: 6.5
A70: 2023 | B70: 2023-03-09 | C70: =IFERROR(IF(VLOOKUP($B70,Übersichtsblatt!$B$64:$E$68,2,FALSE)=0,"",VLOOKUP($B70,Übersichtsblatt!$B$64:$E$68,2,FALSE)),"") ->  | D70: 0 | E70: -6.5 | G70: 2023 | H70: 2023-03-09 | I70: =IFERROR(IF(VLOOKUP($H70,Übersichtsblatt!$B$14:$E$24,2,FALSE)=0,"",VLOOKUP(H70,Übersichtsblatt!$B$14:$E$24,2,FALSE)),"") ->  | J70: 0 | K70: 6.5
A71: 2023 | B71: 2023-03-10 | C71: =IFERROR(IF(VLOOKUP($B71,Übersichtsblatt!$B$64:$E$68,2,FALSE)=0,"",VLOOKUP($B71,Übersichtsblatt!$B$64:$E$68,2,FALSE)),"") ->  | D71: 0 | E71: -6.5 | G71: 2023 | H71: 2023-03-10 | I71: =IFERROR(IF(VLOOKUP($H71,Übersichtsblatt!$B$14:$E$24,2,FALSE)=0,"",VLOOKUP(H71,Übersichtsblatt!$B$14:$E$24,2,FALSE)),"") ->  | J71: 0 | K71: 6.5
A72: 2023 | B72: 2023-03-11 | C72: =IFERROR(IF(VLOOKUP($B72,Übersichtsblatt!$B$64:$E$68,2,FALSE)=0,"",VLOOKUP($B72,Übersichtsblatt!$B$64:$E$68,2,FALSE)),"") ->  | D72: 0 | E72: -6.5 | G72: 2023 | H72: 2023-03-11 | I72: =IFERROR(IF(VLOOKUP($H72,Übersichtsblatt!$B$14:$E$24,2,FALSE)=0,"",VLOOKUP(H72,Übersichtsblatt!$B$14:$E$24,2,FALSE)),"") ->  | J72: 0 | K72: 6.5
A73: 2023 | B73: 2023-03-12 | C73: =IFERROR(IF(VLOOKUP($B73,Übersichtsblatt!$B$64:$E$68,2,FALSE)=0,"",VLOOKUP($B73,Übersichtsblatt!$B$64:$E$68,2,FALSE)),"") ->  | D73: 0 | E73: -6.5 | G73: 2023 | H73: 2023-03-12 | I73: =IFERROR(IF(VLOOKUP($H73,Übersichtsblatt!$B$14:$E$24,2,FALSE)=0,"",VLOOKUP(H73,Übersichtsblatt!$B$14:$E$24,2,FALSE)),"") ->  | J73: 0 | K73: 6.5
A74: 2023 | B74: 2023-03-13 | C74: =IFERROR(IF(VLOOKUP($B74,Übersichtsblatt!$B$64:$E$68,2,FALSE)=0,"",VLOOKUP($B74,Übersichtsblatt!$B$64:$E$68,2,FALSE)),"") ->  | D74: 0 | E74: -6.5 | G74: 2023 | H74: 2023-03-13 | I74: =IFERROR(IF(VLOOKUP($H74,Übersichtsblatt!$B$14:$E$24,2,FALSE)=0,"",VLOOKUP(H74,Übersichtsblatt!$B$14:$E$24,2,FALSE)),"") ->  | J74: 0 | K74: 6.5
A75: 2023 | B75: 2023-03-14 | C75: =IFERROR(IF(VLOOKUP($B75,Übersichtsblatt!$B$64:$E$68,2,FALSE)=0,"",VLOOKUP($B75,Übersichtsblatt!$B$64:$E$68,2,FALSE)),"") ->  | D75: 0 | E75: -6.5 | G75: 2023 | H75: 2023-03-14 | I75: =IFERROR(IF(VLOOKUP($H75,Übersichtsblatt!$B$14:$E$24,2,FALSE)=0,"",VLOOKUP(H75,Übersichtsblatt!$B$14:$E$24,2,FALSE)),"") ->  | J75: 0 | K75: 6.5
A76: 2023 | B76: 2023-03-15 | C76: =IFERROR(IF(VLOOKUP($B76,Übersichtsblatt!$B$64:$E$68,2,FALSE)=0,"",VLOOKUP($B76,Übersichtsblatt!$B$64:$E$68,2,FALSE)),"") ->  | D76: 0 | E76: -6.5 | G76: 2023 | H76: 2023-03-15 | I76: =IFERROR(IF(VLOOKUP($H76,Übersichtsblatt!$B$14:$E$24,2,FALSE)=0,"",VLOOKUP(H76,Übersichtsblatt!$B$14:$E$24,2,FALSE)),"") ->  | J76: 0 | K76: 6.5
A77: 2023 | B77: 2023-03-16 | C77: =IFERROR(IF(VLOOKUP($B77,Übersichtsblatt!$B$64:$E$68,2,FALSE)=0,"",VLOOKUP($B77,Übersichtsblatt!$B$64:$E$68,2,FALSE)),"") ->  | D77: 0 | E77: -6.5 | G77: 2023 | H77: 2023-03-16 | I77: =IFERROR(IF(VLOOKUP($H77,Übersichtsblatt!$B$14:$E$24,2,FALSE)=0,"",VLOOKUP(H77,Übersichtsblatt!$B$14:$E$24,2,FALSE)),"") ->  | J77: 0 | K77: 6.5
A78: 2023 | B78: 2023-03-17 | C78: =IFERROR(IF(VLOOKUP($B78,Übersichtsblatt!$B$64:$E$68,2,FALSE)=0,"",VLOOKUP($B78,Übersichtsblatt!$B$64:$E$68,2,FALSE)),"") ->  | D78: 0 | E78: -6.5 | G78: 2023 | H78: 2023-03-17 | I78: =IFERROR(IF(VLOOKUP($H78,Übersichtsblatt!$B$14:$E$24,2,FALSE)=0,"",VLOOKUP(H78,Übersichtsblatt!$B$14:$E$24,2,FALSE)),"") ->  | J78: 0 | K78: 6.5
A79: 2023 | B79: 2023-03-18 | C79: =IFERROR(IF(VLOOKUP($B79,Übersichtsblatt!$B$64:$E$68,2,FALSE)=0,"",VLOOKUP($B79,Übersichtsblatt!$B$64:$E$68,2,FALSE)),"") ->  | D79: 0 | E79: -6.5 | G79: 2023 | H79: 2023-03-18 | I79: =IFERROR(IF(VLOOKUP($H79,Übersichtsblatt!$B$14:$E$24,2,FALSE)=0,"",VLOOKUP(H79,Übersichtsblatt!$B$14:$E$24,2,FALSE)),"") ->  | J79: 0 | K79: 6.5
A80: 2023 | B80: 2023-03-19 | C80: =IFERROR(IF(VLOOKUP($B80,Übersichtsblatt!$B$64:$E$68,2,FALSE)=0,"",VLOOKUP($B80,Übersichtsblatt!$B$64:$E$68,2,FALSE)),"") ->  | D80: 0 | E80: -6.5 | G80: 2023 | H80: 2023-03-19 | I80: =IFERROR(IF(VLOOKUP($H80,Übersichtsblatt!$B$14:$E$24,2,FALSE)=0,"",VLOOKUP(H80,Übersichtsblatt!$B$14:$E$24,2,FALSE)),"") ->  | J80: 0 | K80: 6.5
A81: 2023 | B81: 2023-03-20 | C81: =IFERROR(IF(VLOOKUP($B81,Übersichtsblatt!$B$64:$E$68,2,FALSE)=0,"",VLOOKUP($B81,Übersichtsblatt!$B$64:$E$68,2,FALSE)),"") ->  | D81: 0 | E81: -6.5 | G81: 2023 | H81: 2023-03-20 | I81: =IFERROR(IF(VLOOKUP($H81,Übersichtsblatt!$B$14:$E$24,2,FALSE)=0,"",VLOOKUP(H81,Übersichtsblatt!$B$14:$E$24,2,FALSE)),"") ->  | J81: 0 | K81: 6.5
A82: 2023 | B82: 2023-03-21 | C82: =IFERROR(IF(VLOOKUP($B82,Übersichtsblatt!$B$64:$E$68,2,FALSE)=0,"",VLOOKUP($B82,Übersichtsblatt!$B$64:$E$68,2,FALSE)),"") ->  | D82: 0 | E82: -6.5 | G82: 2023 | H82: 2023-03-21 | I82: =IFERROR(IF(VLOOKUP($H82,Übersichtsblatt!$B$14:$E$24,2,FALSE)=0,"",VLOOKUP(H82,Übersichtsblatt!$B$14:$E$24,2,FALSE)),"") ->  | J82: 0 | K82: 6.5
A83: 2023 | B83: 2023-03-22 | C83: =IFERROR(IF(VLOOKUP($B83,Übersichtsblatt!$B$64:$E$68,2,FALSE)=0,"",VLOOKUP($B83,Übersichtsblatt!$B$64:$E$68,2,FALSE)),"") ->  | D83: 0 | E83: -6.5 | G83: 2023 | H83: 2023-03-22 | I83: =IFERROR(IF(VLOOKUP($H83,Übersichtsblatt!$B$14:$E$24,2,FALSE)=0,"",VLOOKUP(H83,Übersichtsblatt!$B$14:$E$24,2,FALSE)),"") ->  | J83: 0 | K83: 6.5
A84: 2023 | B84: 2023-03-23 | C84: =IFERROR(IF(VLOOKUP($B84,Übersichtsblatt!$B$64:$E$68,2,FALSE)=0,"",VLOOKUP($B84,Übersichtsblatt!$B$64:$E$68,2,FALSE)),"") ->  | D84: 0 | E84: -6.5 | G84: 2023 | H84: 2023-03-23 | I84: =IFERROR(IF(VLOOKUP($H84,Übersichtsblatt!$B$14:$E$24,2,FALSE)=0,"",VLOOKUP(H84,Übersichtsblatt!$B$14:$E$24,2,FALSE)),"") ->  | J84: 0 | K84: 6.5
A85: 2023 | B85: 2023-03-24 | C85: =IFERROR(IF(VLOOKUP($B85,Übersichtsblatt!$B$64:$E$68,2,FALSE)=0,"",VLOOKUP($B85,Übersichtsblatt!$B$64:$E$68,2,FALSE)),"") ->  | D85: 0 | E85: -6.5 | G85: 2023 | H85: 2023-03-24 | I85: =IFERROR(IF(VLOOKUP($H85,Übersichtsblatt!$B$14:$E$24,2,FALSE)=0,"",VLOOKUP(H85,Übersichtsblatt!$B$14:$E$24,2,FALSE)),"") ->  | J85: 0 | K85: 6.5
A86: 2023 | B86: 2023-03-25 | C86: =IFERROR(IF(VLOOKUP($B86,Übersichtsblatt!$B$64:$E$68,2,FALSE)=0,"",VLOOKUP($B86,Übersichtsblatt!$B$64:$E$68,2,FALSE)),"") ->  | D86: 0 | E86: -6.5 | G86: 2023 | H86: 2023-03-25 | I86: =IFERROR(IF(VLOOKUP($H86,Übersichtsblatt!$B$14:$E$24,2,FALSE)=0,"",VLOOKUP(H86,Übersichtsblatt!$B$14:$E$24,2,FALSE)),"") ->  | J86: 0 | K86: 6.5
A87: 2023 | B87: 2023-03-26 | C87: =IFERROR(IF(VLOOKUP($B87,Übersichtsblatt!$B$64:$E$68,2,FALSE)=0,"",VLOOKUP($B87,Übersichtsblatt!$B$64:$E$68,2,FALSE)),"") ->  | D87: 0 | E87: -6.5 | G87: 2023 | H87: 2023-03-26 | I87: =IFERROR(IF(VLOOKUP($H87,Übersichtsblatt!$B$14:$E$24,2,FALSE)=0,"",VLOOKUP(H87,Übersichtsblatt!$B$14:$E$24,2,FALSE)),"") ->  | J87: 0 | K87: 6.5
A88: 2023 | B88: 2023-03-27 | C88: =IFERROR(IF(VLOOKUP($B88,Übersichtsblatt!$B$64:$E$68,2,FALSE)=0,"",VLOOKUP($B88,Übersichtsblatt!$B$64:$E$68,2,FALSE)),"") ->  | D88: 0 | E88: -6.5 | G88: 2023 | H88: 2023-03-27 | I88: =IFERROR(IF(VLOOKUP($H88,Übersichtsblatt!$B$14:$E$24,2,FALSE)=0,"",VLOOKUP(H88,Übersichtsblatt!$B$14:$E$24,2,FALSE)),"") ->  | J88: 0 | K88: 6.5
A89: 2023 | B89: 2023-03-28 | C89: =IFERROR(IF(VLOOKUP($B89,Übersichtsblatt!$B$64:$E$68,2,FALSE)=0,"",VLOOKUP($B89,Übersichtsblatt!$B$64:$E$68,2,FALSE)),"") ->  | D89: 0 | E89: -6.5 | G89: 2023 | H89: 2023-03-28 | I89: =IFERROR(IF(VLOOKUP($H89,Übersichtsblatt!$B$14:$E$24,2,FALSE)=0,"",VLOOKUP(H89,Übersichtsblatt!$B$14:$E$24,2,FALSE)),"") ->  | J89: 0 | K89: 6.5
A90: 2023 | B90: 2023-03-29 | C90: =IFERROR(IF(VLOOKUP($B90,Übersichtsblatt!$B$64:$E$68,2,FALSE)=0,"",VLOOKUP($B90,Übersichtsblatt!$B$64:$E$68,2,FALSE)),"") ->  | D90: 0 | E90: -6.5 | G90: 2023 | H90: 2023-03-29 | I90: =IFERROR(IF(VLOOKUP($H90,Übersichtsblatt!$B$14:$E$24,2,FALSE)=0,"",VLOOKUP(H90,Übersichtsblatt!$B$14:$E$24,2,FALSE)),"") ->  | J90: 0 | K90: 6.5
A91: 2023 | B91: 2023-03-30 | C91: =IFERROR(IF(VLOOKUP($B91,Übersichtsblatt!$B$64:$E$68,2,FALSE)=0,"",VLOOKUP($B91,Übersichtsblatt!$B$64:$E$68,2,FALSE)),"") ->  | D91: 0 | E91: -6.5 | G91: 2023 | H91: 2023-03-30 | I91: =IFERROR(IF(VLOOKUP($H91,Übersichtsblatt!$B$14:$E$24,2,FALSE)=0,"",VLOOKUP(H91,Übersichtsblatt!$B$14:$E$24,2,FALSE)),"") ->  | J91: 0 | K91: 6.5
A92: 2023 | B92: 2023-03-31 | C92: =IFERROR(IF(VLOOKUP($B92,Übersichtsblatt!$B$64:$E$68,2,FALSE)=0,"",VLOOKUP($B92,Übersichtsblatt!$B$64:$E$68,2,FALSE)),"") ->  | D92: 0 | E92: -6.5 | G92: 2023 | H92: 2023-03-31 | I92: =IFERROR(IF(VLOOKUP($H92,Übersichtsblatt!$B$14:$E$24,2,FALSE)=0,"",VLOOKUP(H92,Übersichtsblatt!$B$14:$E$24,2,FALSE)),"") ->  | J92: 0 | K92: 6.5
A93: 2023 | B93: 2023-04-01 | C93: =IFERROR(IF(VLOOKUP($B93,Übersichtsblatt!$B$64:$E$68,2,FALSE)=0,"",VLOOKUP($B93,Übersichtsblatt!$B$64:$E$68,2,FALSE)),"") ->  | D93: 0 | E93: -9.5 | G93: 2023 | H93: 2023-04-01 | I93: =IFERROR(IF(VLOOKUP($H93,Übersichtsblatt!$B$14:$E$24,2,FALSE)=0,"",VLOOKUP(H93,Übersichtsblatt!$B$14:$E$24,2,FALSE)),"") ->  | J93: 0 | K93: 9.5
A94: 2023 | B94: 2023-04-02 | C94: =IFERROR(IF(VLOOKUP($B94,Übersichtsblatt!$B$64:$E$68,2,FALSE)=0,"",VLOOKUP($B94,Übersichtsblatt!$B$64:$E$68,2,FALSE)),"") ->  | D94: 0 | E94: -9.5 | G94: 2023 | H94: 2023-04-02 | I94: =IFERROR(IF(VLOOKUP($H94,Übersichtsblatt!$B$14:$E$24,2,FALSE)=0,"",VLOOKUP(H94,Übersichtsblatt!$B$14:$E$24,2,FALSE)),"") ->  | J94: 0 | K94: 9.5
A95: 2023 | B95: 2023-04-03 | C95: =IFERROR(IF(VLOOKUP($B95,Übersichtsblatt!$B$64:$E$68,2,FALSE)=0,"",VLOOKUP($B95,Übersichtsblatt!$B$64:$E$68,2,FALSE)),"") ->  | D95: 0 | E95: -9.5 | G95: 2023 | H95: 2023-04-03 | I95: =IFERROR(IF(VLOOKUP($H95,Übersichtsblatt!$B$14:$E$24,2,FALSE)=0,"",VLOOKUP(H95,Übersichtsblatt!$B$14:$E$24,2,FALSE)),"") ->  | J95: 0 | K95: 9.5
A96: 2023 | B96: 2023-04-04 | C96: =IFERROR(IF(VLOOKUP($B96,Übersichtsblatt!$B$64:$E$68,2,FALSE)=0,"",VLOOKUP($B96,Übersichtsblatt!$B$64:$E$68,2,FALSE)),"") ->  | D96: 0 | E96: -9.5 | G96: 2023 | H96: 2023-04-04 | I96: =IFERROR(IF(VLOOKUP($H96,Übersichtsblatt!$B$14:$E$24,2,FALSE)=0,"",VLOOKUP(H96,Übersichtsblatt!$B$14:$E$24,2,FALSE)),"") ->  | J96: 0 | K96: 9.5
A97: 2023 | B97: 2023-04-05 | C97: =IFERROR(IF(VLOOKUP($B97,Übersichtsblatt!$B$64:$E$68,2,FALSE)=0,"",VLOOKUP($B97,Übersichtsblatt!$B$64:$E$68,2,FALSE)),"") ->  | D97: 0 | E97: -9.5 | G97: 2023 | H97: 2023-04-05 | I97: =IFERROR(IF(VLOOKUP($H97,Übersichtsblatt!$B$14:$E$24,2,FALSE)=0,"",VLOOKUP(H97,Übersichtsblatt!$B$14:$E$24,2,FALSE)),"") ->  | J97: 0 | K97: 9.5
A98: 2023 | B98: 2023-04-06 | C98: =IFERROR(IF(VLOOKUP($B98,Übersichtsblatt!$B$64:$E$68,2,FALSE)=0,"",VLOOKUP($B98,Übersichtsblatt!$B$64:$E$68,2,FALSE)),"") ->  | D98: 0 | E98: -9.5 | G98: 2023 | H98: 2023-04-06 | I98: =IFERROR(IF(VLOOKUP($H98,Übersichtsblatt!$B$14:$E$24,2,FALSE)=0,"",VLOOKUP(H98,Übersichtsblatt!$B$14:$E$24,2,FALSE)),"") ->  | J98: 0 | K98: 9.5
A99: 2023 | B99: 2023-04-07 | C99: =IFERROR(IF(VLOOKUP($B99,Übersichtsblatt!$B$64:$E$68,2,FALSE)=0,"",VLOOKUP($B99,Übersichtsblatt!$B$64:$E$68,2,FALSE)),"") ->  | D99: 0 | E99: -9.5 | G99: 2023 | H99: 2023-04-07 | I99: =IFERROR(IF(VLOOKUP($H99,Übersichtsblatt!$B$14:$E$24,2,FALSE)=0,"",VLOOKUP(H99,Übersichtsblatt!$B$14:$E$24,2,FALSE)),"") ->  | J99: 0 | K99: 9.5
A100: 2023 | B100: 2023-04-08 | C100: =IFERROR(IF(VLOOKUP($B100,Übersichtsblatt!$B$64:$E$68,2,FALSE)=0,"",VLOOKUP($B100,Übersichtsblatt!$B$64:$E$68,2,FALSE)),"") ->  | D100: 0 | E100: -9.5 | G100: 2023 | H100: 2023-04-08 | I100: =IFERROR(IF(VLOOKUP($H100,Übersichtsblatt!$B$14:$E$24,2,FALSE)=0,"",VLOOKUP(H100,Übersichtsblatt!$B$14:$E$24,2,FALSE)),"") ->  | J100: 0 | K100: 9.5
A101: 2023 | B101: 2023-04-09 | C101: =IFERROR(IF(VLOOKUP($B101,Übersichtsblatt!$B$64:$E$68,2,FALSE)=0,"",VLOOKUP($B101,Übersichtsblatt!$B$64:$E$68,2,FALSE)),"") ->  | D101: 0 | E101: -9.5 | G101: 2023 | H101: 2023-04-09 | I101: =IFERROR(IF(VLOOKUP($H101,Übersichtsblatt!$B$14:$E$24,2,FALSE)=0,"",VLOOKUP(H101,Übersichtsblatt!$B$14:$E$24,2,FALSE)),"") ->  | J101: 0 | K101: 9.5
A102: 2023 | B102: 2023-04-10 | C102: =IFERROR(IF(VLOOKUP($B102,Übersichtsblatt!$B$64:$E$68,2,FALSE)=0,"",VLOOKUP($B102,Übersichtsblatt!$B$64:$E$68,2,FALSE)),"") ->  | D102: 0 | E102: -9.5 | G102: 2023 | H102: 2023-04-10 | I102: =IFERROR(IF(VLOOKUP($H102,Übersichtsblatt!$B$14:$E$24,2,FALSE)=0,"",VLOOKUP(H102,Übersichtsblatt!$B$14:$E$24,2,FALSE)),"") ->  | J102: 0 | K102: 9.5
A103: 2023 | B103: 2023-04-11 | C103: =IFERROR(IF(VLOOKUP($B103,Übersichtsblatt!$B$64:$E$68,2,FALSE)=0,"",VLOOKUP($B103,Übersichtsblatt!$B$64:$E$68,2,FALSE)),"") ->  | D103: 0 | E103: -9.5 | G103: 2023 | H103: 2023-04-11 | I103: =IFERROR(IF(VLOOKUP($H103,Übersichtsblatt!$B$14:$E$24,2,FALSE)=0,"",VLOOKUP(H103,Übersichtsblatt!$B$14:$E$24,2,FALSE)),"") ->  | J103: 0 | K103: 9.5
A104: 2023 | B104: 2023-04-12 | C104: =IFERROR(IF(VLOOKUP($B104,Übersichtsblatt!$B$64:$E$68,2,FALSE)=0,"",VLOOKUP($B104,Übersichtsblatt!$B$64:$E$68,2,FALSE)),"") ->  | D104: 0 | E104: -9.5 | G104: 2023 | H104: 2023-04-12 | I104: =IFERROR(IF(VLOOKUP($H104,Übersichtsblatt!$B$14:$E$24,2,FALSE)=0,"",VLOOKUP(H104,Übersichtsblatt!$B$14:$E$24,2,FALSE)),"") ->  | J104: 0 | K104: 9.5
A105: 2023 | B105: 2023-04-13 | C105: =IFERROR(IF(VLOOKUP($B105,Übersichtsblatt!$B$64:$E$68,2,FALSE)=0,"",VLOOKUP($B105,Übersichtsblatt!$B$64:$E$68,2,FALSE)),"") ->  | D105: 0 | E105: -9.5 | G105: 2023 | H105: 2023-04-13 | I105: =IFERROR(IF(VLOOKUP($H105,Übersichtsblatt!$B$14:$E$24,2,FALSE)=0,"",VLOOKUP(H105,Übersichtsblatt!$B$14:$E$24,2,FALSE)),"") ->  | J105: 0 | K105: 9.5
A106: 2023 | B106: 2023-04-14 | C106: =IFERROR(IF(VLOOKUP($B106,Übersichtsblatt!$B$64:$E$68,2,FALSE)=0,"",VLOOKUP($B106,Übersichtsblatt!$B$64:$E$68,2,FALSE)),"") ->  | D106: 0 | E106: -9.5 | G106: 2023 | H106: 2023-04-14 | I106: =IFERROR(IF(VLOOKUP($H106,Übersichtsblatt!$B$14:$E$24,2,FALSE)=0,"",VLOOKUP(H106,Übersichtsblatt!$B$14:$E$24,2,FALSE)),"") ->  | J106: 0 | K106: 9.5
A107: 2023 | B107: 2023-04-15 | C107: =IFERROR(IF(VLOOKUP($B107,Übersichtsblatt!$B$64:$E$68,2,FALSE)=0,"",VLOOKUP($B107,Übersichtsblatt!$B$64:$E$68,2,FALSE)),"") ->  | D107: 0 | E107: -9.5 | G107: 2023 | H107: 2023-04-15 | I107: =IFERROR(IF(VLOOKUP($H107,Übersichtsblatt!$B$14:$E$24,2,FALSE)=0,"",VLOOKUP(H107,Übersichtsblatt!$B$14:$E$24,2,FALSE)),"") ->  | J107: 0 | K107: 9.5
A108: 2023 | B108: 2023-04-16 | C108: =IFERROR(IF(VLOOKUP($B108,Übersichtsblatt!$B$64:$E$68,2,FALSE)=0,"",VLOOKUP($B108,Übersichtsblatt!$B$64:$E$68,2,FALSE)),"") ->  | D108: 0 | E108: -9.5 | G108: 2023 | H108: 2023-04-16 | I108: =IFERROR(IF(VLOOKUP($H108,Übersichtsblatt!$B$14:$E$24,2,FALSE)=0,"",VLOOKUP(H108,Übersichtsblatt!$B$14:$E$24,2,FALSE)),"") ->  | J108: 0 | K108: 9.5
A109: 2023 | B109: 2023-04-17 | C109: =IFERROR(IF(VLOOKUP($B109,Übersichtsblatt!$B$64:$E$68,2,FALSE)=0,"",VLOOKUP($B109,Übersichtsblatt!$B$64:$E$68,2,FALSE)),"") ->  | D109: 0 | E109: -9.5 | G109: 2023 | H109: 2023-04-17 | I109: =IFERROR(IF(VLOOKUP($H109,Übersichtsblatt!$B$14:$E$24,2,FALSE)=0,"",VLOOKUP(H109,Übersichtsblatt!$B$14:$E$24,2,FALSE)),"") ->  | J109: 0 | K109: 9.5
A110: 2023 | B110: 2023-04-18 | C110: =IFERROR(IF(VLOOKUP($B110,Übersichtsblatt!$B$64:$E$68,2,FALSE)=0,"",VLOOKUP($B110,Übersichtsblatt!$B$64:$E$68,2,FALSE)),"") ->  | D110: 0 | E110: -9.5 | G110: 2023 | H110: 2023-04-18 | I110: =IFERROR(IF(VLOOKUP($H110,Übersichtsblatt!$B$14:$E$24,2,FALSE)=0,"",VLOOKUP(H110,Übersichtsblatt!$B$14:$E$24,2,FALSE)),"") ->  | J110: 0 | K110: 9.5
A111: 2023 | B111: 2023-04-19 | C111: =IFERROR(IF(VLOOKUP($B111,Übersichtsblatt!$B$64:$E$68,2,FALSE)=0,"",VLOOKUP($B111,Übersichtsblatt!$B$64:$E$68,2,FALSE)),"") ->  | D111: 0 | E111: -9.5 | G111: 2023 | H111: 2023-04-19 | I111: =IFERROR(IF(VLOOKUP($H111,Übersichtsblatt!$B$14:$E$24,2,FALSE)=0,"",VLOOKUP(H111,Übersichtsblatt!$B$14:$E$24,2,FALSE)),"") ->  | J111: 0 | K111: 9.5
A112: 2023 | B112: 2023-04-20 | C112: =IFERROR(IF(VLOOKUP($B112,Übersichtsblatt!$B$64:$E$68,2,FALSE)=0,"",VLOOKUP($B112,Übersichtsblatt!$B$64:$E$68,2,FALSE)),"") ->  | D112: 0 | E112: -9.5 | G112: 2023 | H112: 2023-04-20 | I112: =IFERROR(IF(VLOOKUP($H112,Übersichtsblatt!$B$14:$E$24,2,FALSE)=0,"",VLOOKUP(H112,Übersichtsblatt!$B$14:$E$24,2,FALSE)),"") ->  | J112: 0 | K112: 9.5
A113: 2023 | B113: 2023-04-21 | C113: =IFERROR(IF(VLOOKUP($B113,Übersichtsblatt!$B$64:$E$68,2,FALSE)=0,"",VLOOKUP($B113,Übersichtsblatt!$B$64:$E$68,2,FALSE)),"") ->  | D113: 0 | E113: -9.5 | G113: 2023 | H113: 2023-04-21 | I113: =IFERROR(IF(VLOOKUP($H113,Übersichtsblatt!$B$14:$E$24,2,FALSE)=0,"",VLOOKUP(H113,Übersichtsblatt!$B$14:$E$24,2,FALSE)),"") ->  | J113: 0 | K113: 9.5
A114: 2023 | B114: 2023-04-22 | C114: =IFERROR(IF(VLOOKUP($B114,Übersichtsblatt!$B$64:$E$68,2,FALSE)=0,"",VLOOKUP($B114,Übersichtsblatt!$B$64:$E$68,2,FALSE)),"") ->  | D114: 0 | E114: -9.5 | G114: 2023 | H114: 2023-04-22 | I114: =IFERROR(IF(VLOOKUP($H114,Übersichtsblatt!$B$14:$E$24,2,FALSE)=0,"",VLOOKUP(H114,Übersichtsblatt!$B$14:$E$24,2,FALSE)),"") ->  | J114: 0 | K114: 9.5
A115: 2023 | B115: 2023-04-23 | C115: =IFERROR(IF(VLOOKUP($B115,Übersichtsblatt!$B$64:$E$68,2,FALSE)=0,"",VLOOKUP($B115,Übersichtsblatt!$B$64:$E$68,2,FALSE)),"") ->  | D115: 0 | E115: -9.5 | G115: 2023 | H115: 2023-04-23 | I115: =IFERROR(IF(VLOOKUP($H115,Übersichtsblatt!$B$14:$E$24,2,FALSE)=0,"",VLOOKUP(H115,Übersichtsblatt!$B$14:$E$24,2,FALSE)),"") ->  | J115: 0 | K115: 9.5
A116: 2023 | B116: 2023-04-24 | C116: =IFERROR(IF(VLOOKUP($B116,Übersichtsblatt!$B$64:$E$68,2,FALSE)=0,"",VLOOKUP($B116,Übersichtsblatt!$B$64:$E$68,2,FALSE)),"") ->  | D116: 0 | E116: -9.5 | G116: 2023 | H116: 2023-04-24 | I116: =IFERROR(IF(VLOOKUP($H116,Übersichtsblatt!$B$14:$E$24,2,FALSE)=0,"",VLOOKUP(H116,Übersichtsblatt!$B$14:$E$24,2,FALSE)),"") ->  | J116: 0 | K116: 9.5
A117: 2023 | B117: 2023-04-25 | C117: =IFERROR(IF(VLOOKUP($B117,Übersichtsblatt!$B$64:$E$68,2,FALSE)=0,"",VLOOKUP($B117,Übersichtsblatt!$B$64:$E$68,2,FALSE)),"") ->  | D117: 0 | E117: -9.5 | G117: 2023 | H117: 2023-04-25 | I117: =IFERROR(IF(VLOOKUP($H117,Übersichtsblatt!$B$14:$E$24,2,FALSE)=0,"",VLOOKUP(H117,Übersichtsblatt!$B$14:$E$24,2,FALSE)),"") ->  | J117: 0 | K117: 9.5
A118: 2023 | B118: 2023-04-26 | C118: =IFERROR(IF(VLOOKUP($B118,Übersichtsblatt!$B$64:$E$68,2,FALSE)=0,"",VLOOKUP($B118,Übersichtsblatt!$B$64:$E$68,2,FALSE)),"") ->  | D118: 0 | E118: -9.5 | G118: 2023 | H118: 2023-04-26 | I118: =IFERROR(IF(VLOOKUP($H118,Übersichtsblatt!$B$14:$E$24,2,FALSE)=0,"",VLOOKUP(H118,Übersichtsblatt!$B$14:$E$24,2,FALSE)),"") ->  | J118: 0 | K118: 9.5
A119: 2023 | B119: 2023-04-27 | C119: =IFERROR(IF(VLOOKUP($B119,Übersichtsblatt!$B$64:$E$68,2,FALSE)=0,"",VLOOKUP($B119,Übersichtsblatt!$B$64:$E$68,2,FALSE)),"") ->  | D119: 0 | E119: -9.5 | G119: 2023 | H119: 2023-04-27 | I119: =IFERROR(IF(VLOOKUP($H119,Übersichtsblatt!$B$14:$E$24,2,FALSE)=0,"",VLOOKUP(H119,Übersichtsblatt!$B$14:$E$24,2,FALSE)),"") ->  | J119: 0 | K119: 9.5
A120: 2023 | B120: 2023-04-28 | C120: =IFERROR(IF(VLOOKUP($B120,Übersichtsblatt!$B$64:$E$68,2,FALSE)=0,"",VLOOKUP($B120,Übersichtsblatt!$B$64:$E$68,2,FALSE)),"") ->  | D120: 0 | E120: -9.5 | G120: 2023 | H120: 2023-04-28 | I120: =IFERROR(IF(VLOOKUP($H120,Übersichtsblatt!$B$14:$E$24,2,FALSE)=0,"",VLOOKUP(H120,Übersichtsblatt!$B$14:$E$24,2,FALSE)),"") ->  | J120: 0 | K120: 9.5
A121: 2023 | B121: 2023-04-29 | C121: =IFERROR(IF(VLOOKUP($B121,Übersichtsblatt!$B$64:$E$68,2,FALSE)=0,"",VLOOKUP($B121,Übersichtsblatt!$B$64:$E$68,2,FALSE)),"") ->  | D121: 0 | E121: -9.5 | G121: 2023 | H121: 2023-04-29 | I121: =IFERROR(IF(VLOOKUP($H121,Übersichtsblatt!$B$14:$E$24,2,FALSE)=0,"",VLOOKUP(H121,Übersichtsblatt!$B$14:$E$24,2,FALSE)),"") ->  | J121: 0 | K121: 9.5
A122: 2023 | B122: 2023-04-30 | C122: =IFERROR(IF(VLOOKUP($B122,Übersichtsblatt!$B$64:$E$68,2,FALSE)=0,"",VLOOKUP($B122,Übersichtsblatt!$B$64:$E$68,2,FALSE)),"") ->  | D122: 0 | E122: -9.5 | G122: 2023 | H122: 2023-04-30 | I122: =IFERROR(IF(VLOOKUP($H122,Übersichtsblatt!$B$14:$E$24,2,FALSE)=0,"",VLOOKUP(H122,Übersichtsblatt!$B$14:$E$24,2,FALSE)),"") ->  | J122: 0 | K122: 9.5
A123: 2023 | B123: 2023-05-01 | C123: =IFERROR(IF(VLOOKUP($B123,Übersichtsblatt!$B$64:$E$68,2,FALSE)=0,"",VLOOKUP($B123,Übersichtsblatt!$B$64:$E$68,2,FALSE)),"") ->  | D123: 0 | E123: -11.5 | G123: 2023 | H123: 2023-05-01 | I123: =IFERROR(IF(VLOOKUP($H123,Übersichtsblatt!$B$14:$E$24,2,FALSE)=0,"",VLOOKUP(H123,Übersichtsblatt!$B$14:$E$24,2,FALSE)),"") ->  | J123: 0 | K123: 11.5
A124: 2023 | B124: 2023-05-02 | C124: =IFERROR(IF(VLOOKUP($B124,Übersichtsblatt!$B$64:$E$68,2,FALSE)=0,"",VLOOKUP($B124,Übersichtsblatt!$B$64:$E$68,2,FALSE)),"") ->  | D124: 0 | E124: -11.5 | G124: 2023 | H124: 2023-05-02 | I124: =IFERROR(IF(VLOOKUP($H124,Übersichtsblatt!$B$14:$E$24,2,FALSE)=0,"",VLOOKUP(H124,Übersichtsblatt!$B$14:$E$24,2,FALSE)),"") ->  | J124: 0 | K124: 11.5
A125: 2023 | B125: 2023-05-03 | C125: =IFERROR(IF(VLOOKUP($B125,Übersichtsblatt!$B$64:$E$68,2,FALSE)=0,"",VLOOKUP($B125,Übersichtsblatt!$B$64:$E$68,2,FALSE)),"") ->  | D125: 0 | E125: -11.5 | G125: 2023 | H125: 2023-05-03 | I125: =IFERROR(IF(VLOOKUP($H125,Übersichtsblatt!$B$14:$E$24,2,FALSE)=0,"",VLOOKUP(H125,Übersichtsblatt!$B$14:$E$24,2,FALSE)),"") ->  | J125: 0 | K125: 11.5
A126: 2023 | B126: 2023-05-04 | C126: =IFERROR(IF(VLOOKUP($B126,Übersichtsblatt!$B$64:$E$68,2,FALSE)=0,"",VLOOKUP($B126,Übersichtsblatt!$B$64:$E$68,2,FALSE)),"") ->  | D126: 0 | E126: -11.5 | G126: 2023 | H126: 2023-05-04 | I126: =IFERROR(IF(VLOOKUP($H126,Übersichtsblatt!$B$14:$E$24,2,FALSE)=0,"",VLOOKUP(H126,Übersichtsblatt!$B$14:$E$24,2,FALSE)),"") ->  | J126: 0 | K126: 11.5
A127: 2023 | B127: 2023-05-05 | C127: =IFERROR(IF(VLOOKUP($B127,Übersichtsblatt!$B$64:$E$68,2,FALSE)=0,"",VLOOKUP($B127,Übersichtsblatt!$B$64:$E$68,2,FALSE)),"") ->  | D127: 0 | E127: -11.5 | G127: 2023 | H127: 2023-05-05 | I127: =IFERROR(IF(VLOOKUP($H127,Übersichtsblatt!$B$14:$E$24,2,FALSE)=0,"",VLOOKUP(H127,Übersichtsblatt!$B$14:$E$24,2,FALSE)),"") ->  | J127: 0 | K127: 11.5
A128: 2023 | B128: 2023-05-06 | C128: =IFERROR(IF(VLOOKUP($B128,Übersichtsblatt!$B$64:$E$68,2,FALSE)=0,"",VLOOKUP($B128,Übersichtsblatt!$B$64:$E$68,2,FALSE)),"") ->  | D128: 0 | E128: -11.5 | G128: 2023 | H128: 2023-05-06 | I128: =IFERROR(IF(VLOOKUP($H128,Übersichtsblatt!$B$14:$E$24,2,FALSE)=0,"",VLOOKUP(H128,Übersichtsblatt!$B$14:$E$24,2,FALSE)),"") ->  | J128: 0 | K128: 11.5
A129: 2023 | B129: 2023-05-07 | C129: =IFERROR(IF(VLOOKUP($B129,Übersichtsblatt!$B$64:$E$68,2,FALSE)=0,"",VLOOKUP($B129,Übersichtsblatt!$B$64:$E$68,2,FALSE)),"") ->  | D129: 0 | E129: -11.5 | G129: 2023 | H129: 2023-05-07 | I129: =IFERROR(IF(VLOOKUP($H129,Übersichtsblatt!$B$14:$E$24,2,FALSE)=0,"",VLOOKUP(H129,Übersichtsblatt!$B$14:$E$24,2,FALSE)),"") ->  | J129: 0 | K129: 11.5
A130: 2023 | B130: 2023-05-08 | C130: =IFERROR(IF(VLOOKUP($B130,Übersichtsblatt!$B$64:$E$68,2,FALSE)=0,"",VLOOKUP($B130,Übersichtsblatt!$B$64:$E$68,2,FALSE)),"") ->  | D130: 0 | E130: -11.5 | G130: 2023 | H130: 2023-05-08 | I130: =IFERROR(IF(VLOOKUP($H130,Übersichtsblatt!$B$14:$E$24,2,FALSE)=0,"",VLOOKUP(H130,Übersichtsblatt!$B$14:$E$24,2,FALSE)),"") ->  | J130: 0 | K130: 11.5
A131: 2023 | B131: 2023-05-09 | C131: =IFERROR(IF(VLOOKUP($B131,Übersichtsblatt!$B$64:$E$68,2,FALSE)=0,"",VLOOKUP($B131,Übersichtsblatt!$B$64:$E$68,2,FALSE)),"") ->  | D131: 0 | E131: -11.5 | G131: 2023 | H131: 2023-05-09 | I131: =IFERROR(IF(VLOOKUP($H131,Übersichtsblatt!$B$14:$E$24,2,FALSE)=0,"",VLOOKUP(H131,Übersichtsblatt!$B$14:$E$24,2,FALSE)),"") ->  | J131: 0 | K131: 11.5
A132: 2023 | B132: 2023-05-10 | C132: =IFERROR(IF(VLOOKUP($B132,Übersichtsblatt!$B$64:$E$68,2,FALSE)=0,"",VLOOKUP($B132,Übersichtsblatt!$B$64:$E$68,2,FALSE)),"") ->  | D132: =IF($C132="",0,$E132) -> 0 | E132: -11.5 | G132: 2023 | H132: 2023-05-10 | I132: =IFERROR(IF(VLOOKUP($H132,Übersichtsblatt!$B$14:$E$24,2,FALSE)=0,"",VLOOKUP(H132,Übersichtsblatt!$B$14:$E$24,2,FALSE)),"") ->  | J132: =IF($I132="",0,$K132) -> 0 | K132: 11.5
A133: =YEAR(B133) -> 2023 | B133: =B132+1 -> 2023-05-11 | C133: =IFERROR(IF(VLOOKUP($B133,Übersichtsblatt!$B$64:$E$68,2,FALSE)=0,"",VLOOKUP($B133,Übersichtsblatt!$B$64:$E$68,2,FALSE)),"") ->  | D133: 0 | E133: -11.5 | G133: =YEAR(H133) -> 2023 | H133: =H132+1 -> 2023-05-11 | I133: =IFERROR(IF(VLOOKUP($H133,Übersichtsblatt!$B$14:$E$24,2,FALSE)=0,"",VLOOKUP(H133,Übersichtsblatt!$B$14:$E$24,2,FALSE)),"") ->  | J133: 0 | K133: 11.5
A134: 2023 | B134: 2023-05-12 | C134: =IFERROR(IF(VLOOKUP($B134,Übersichtsblatt!$B$64:$E$68,2,FALSE)=0,"",VLOOKUP($B134,Übersichtsblatt!$B$64:$E$68,2,FALSE)),"") ->  | D134: 0 | E134: -11.5 | G134: 2023 | H134: 2023-05-12 | I134: =IFERROR(IF(VLOOKUP($H134,Übersichtsblatt!$B$14:$E$24,2,FALSE)=0,"",VLOOKUP(H134,Übersichtsblatt!$B$14:$E$24,2,FALSE)),"") ->  | J134: 0 | K134: 11.5
A135: 2023 | B135: 2023-05-13 | C135: =IFERROR(IF(VLOOKUP($B135,Übersichtsblatt!$B$64:$E$68,2,FALSE)=0,"",VLOOKUP($B135,Übersichtsblatt!$B$64:$E$68,2,FALSE)),"") ->  | D135: 0 | E135: -11.5 | G135: 2023 | H135: 2023-05-13 | I135: =IFERROR(IF(VLOOKUP($H135,Übersichtsblatt!$B$14:$E$24,2,FALSE)=0,"",VLOOKUP(H135,Übersichtsblatt!$B$14:$E$24,2,FALSE)),"") ->  | J135: 0 | K135: 11.5
A136: 2023 | B136: 2023-05-14 | C136: =IFERROR(IF(VLOOKUP($B136,Übersichtsblatt!$B$64:$E$68,2,FALSE)=0,"",VLOOKUP($B136,Übersichtsblatt!$B$64:$E$68,2,FALSE)),"") ->  | D136: 0 | E136: -11.5 | G136: 2023 | H136: 2023-05-14 | I136: =IFERROR(IF(VLOOKUP($H136,Übersichtsblatt!$B$14:$E$24,2,FALSE)=0,"",VLOOKUP(H136,Übersichtsblatt!$B$14:$E$24,2,FALSE)),"") ->  | J136: 0 | K136: 11.5
A137: 2023 | B137: 2023-05-15 | C137: =IFERROR(IF(VLOOKUP($B137,Übersichtsblatt!$B$64:$E$68,2,FALSE)=0,"",VLOOKUP($B137,Übersichtsblatt!$B$64:$E$68,2,FALSE)),"") ->  | D137: 0 | E137: -11.5 | G137: 2023 | H137: 2023-05-15 | I137: =IFERROR(IF(VLOOKUP($H137,Übersichtsblatt!$B$14:$E$24,2,FALSE)=0,"",VLOOKUP(H137,Übersichtsblatt!$B$14:$E$24,2,FALSE)),"") ->  | J137: 0 | K137: 11.5
A138: 2023 | B138: 2023-05-16 | C138: =IFERROR(IF(VLOOKUP($B138,Übersichtsblatt!$B$64:$E$68,2,FALSE)=0,"",VLOOKUP($B138,Übersichtsblatt!$B$64:$E$68,2,FALSE)),"") ->  | D138: 0 | E138: -11.5 | G138: 2023 | H138: 2023-05-16 | I138: =IFERROR(IF(VLOOKUP($H138,Übersichtsblatt!$B$14:$E$24,2,FALSE)=0,"",VLOOKUP(H138,Übersichtsblatt!$B$14:$E$24,2,FALSE)),"") ->  | J138: 0 | K138: 11.5
A139: 2023 | B139: 2023-05-17 | C139: =IFERROR(IF(VLOOKUP($B139,Übersichtsblatt!$B$64:$E$68,2,FALSE)=0,"",VLOOKUP($B139,Übersichtsblatt!$B$64:$E$68,2,FALSE)),"") ->  | D139: 0 | E139: -11.5 | G139: 2023 | H139: 2023-05-17 | I139: =IFERROR(IF(VLOOKUP($H139,Übersichtsblatt!$B$14:$E$24,2,FALSE)=0,"",VLOOKUP(H139,Übersichtsblatt!$B$14:$E$24,2,FALSE)),"") ->  | J139: 0 | K139: 11.5
A140: 2023 | B140: 2023-05-18 | C140: =IFERROR(IF(VLOOKUP($B140,Übersichtsblatt!$B$64:$E$68,2,FALSE)=0,"",VLOOKUP($B140,Übersichtsblatt!$B$64:$E$68,2,FALSE)),"") ->  | D140: 0 | E140: -11.5 | G140: 2023 | H140: 2023-05-18 | I140: =IFERROR(IF(VLOOKUP($H140,Übersichtsblatt!$B$14:$E$24,2,FALSE)=0,"",VLOOKUP(H140,Übersichtsblatt!$B$14:$E$24,2,FALSE)),"") ->  | J140: 0 | K140: 11.5
A141: 2023 | B141: 2023-05-19 | C141: =IFERROR(IF(VLOOKUP($B141,Übersichtsblatt!$B$64:$E$68,2,FALSE)=0,"",VLOOKUP($B141,Übersichtsblatt!$B$64:$E$68,2,FALSE)),"") ->  | D141: 0 | E141: -11.5 | G141: 2023 | H141: 2023-05-19 | I141: =IFERROR(IF(VLOOKUP($H141,Übersichtsblatt!$B$14:$E$24,2,FALSE)=0,"",VLOOKUP(H141,Übersichtsblatt!$B$14:$E$24,2,FALSE)),"") ->  | J141: 0 | K141: 11.5
A142: 2023 | B142: 2023-05-20 | C142: =IFERROR(IF(VLOOKUP($B142,Übersichtsblatt!$B$64:$E$68,2,FALSE)=0,"",VLOOKUP($B142,Übersichtsblatt!$B$64:$E$68,2,FALSE)),"") ->  | D142: 0 | E142: -11.5 | G142: 2023 | H142: 2023-05-20 | I142: =IFERROR(IF(VLOOKUP($H142,Übersichtsblatt!$B$14:$E$24,2,FALSE)=0,"",VLOOKUP(H142,Übersichtsblatt!$B$14:$E$24,2,FALSE)),"") ->  | J142: 0 | K142: 11.5
A143: 2023 | B143: 2023-05-21 | C143: =IFERROR(IF(VLOOKUP($B143,Übersichtsblatt!$B$64:$E$68,2,FALSE)=0,"",VLOOKUP($B143,Übersichtsblatt!$B$64:$E$68,2,FALSE)),"") ->  | D143: 0 | E143: -11.5 | G143: 2023 | H143: 2023-05-21 | I143: =IFERROR(IF(VLOOKUP($H143,Übersichtsblatt!$B$14:$E$24,2,FALSE)=0,"",VLOOKUP(H143,Übersichtsblatt!$B$14:$E$24,2,FALSE)),"") ->  | J143: 0 | K143: 11.5
A144: 2023 | B144: 2023-05-22 | C144: =IFERROR(IF(VLOOKUP($B144,Übersichtsblatt!$B$64:$E$68,2,FALSE)=0,"",VLOOKUP($B144,Übersichtsblatt!$B$64:$E$68,2,FALSE)),"") ->  | D144: 0 | E144: -11.5 | G144: 2023 | H144: 2023-05-22 | I144: =IFERROR(IF(VLOOKUP($H144,Übersichtsblatt!$B$14:$E$24,2,FALSE)=0,"",VLOOKUP(H144,Übersichtsblatt!$B$14:$E$24,2,FALSE)),"") ->  | J144: 0 | K144: 11.5
A145: 2023 | B145: 2023-05-23 | C145: =IFERROR(IF(VLOOKUP($B145,Übersichtsblatt!$B$64:$E$68,2,FALSE)=0,"",VLOOKUP($B145,Übersichtsblatt!$B$64:$E$68,2,FALSE)),"") ->  | D145: 0 | E145: -11.5 | G145: 2023 | H145: 2023-05-23 | I145: =IFERROR(IF(VLOOKUP($H145,Übersichtsblatt!$B$14:$E$24,2,FALSE)=0,"",VLOOKUP(H145,Übersichtsblatt!$B$14:$E$24,2,FALSE)),"") ->  | J145: 0 | K145: 11.5
A146: 2023 | B146: 2023-05-24 | C146: =IFERROR(IF(VLOOKUP($B146,Übersichtsblatt!$B$64:$E$68,2,FALSE)=0,"",VLOOKUP($B146,Übersichtsblatt!$B$64:$E$68,2,FALSE)),"") ->  | D146: 0 | E146: -11.5 | G146: 2023 | H146: 2023-05-24 | I146: =IFERROR(IF(VLOOKUP($H146,Übersichtsblatt!$B$14:$E$24,2,FALSE)=0,"",VLOOKUP(H146,Übersichtsblatt!$B$14:$E$24,2,FALSE)),"") ->  | J146: 0 | K146: 11.5
A147: 2023 | B147: 2023-05-25 | C147: =IFERROR(IF(VLOOKUP($B147,Übersichtsblatt!$B$64:$E$68,2,FALSE)=0,"",VLOOKUP($B147,Übersichtsblatt!$B$64:$E$68,2,FALSE)),"") ->  | D147: 0 | E147: -11.5 | G147: 2023 | H147: 2023-05-25 | I147: =IFERROR(IF(VLOOKUP($H147,Übersichtsblatt!$B$14:$E$24,2,FALSE)=0,"",VLOOKUP(H147,Übersichtsblatt!$B$14:$E$24,2,FALSE)),"") ->  | J147: 0 | K147: 11.5
A148: 2023 | B148: 2023-05-26 | C148: =IFERROR(IF(VLOOKUP($B148,Übersichtsblatt!$B$64:$E$68,2,FALSE)=0,"",VLOOKUP($B148,Übersichtsblatt!$B$64:$E$68,2,FALSE)),"") ->  | D148: 0 | E148: -11.5 | G148: 2023 | H148: 2023-05-26 | I148: =IFERROR(IF(VLOOKUP($H148,Übersichtsblatt!$B$14:$E$24,2,FALSE)=0,"",VLOOKUP(H148,Übersichtsblatt!$B$14:$E$24,2,FALSE)),"") ->  | J148: 0 | K148: 11.5
A149: 2023 | B149: 2023-05-27 | C149: =IFERROR(IF(VLOOKUP($B149,Übersichtsblatt!$B$64:$E$68,2,FALSE)=0,"",VLOOKUP($B149,Übersichtsblatt!$B$64:$E$68,2,FALSE)),"") ->  | D149: 0 | E149: -11.5 | G149: 2023 | H149: 2023-05-27 | I149: =IFERROR(IF(VLOOKUP($H149,Übersichtsblatt!$B$14:$E$24,2,FALSE)=0,"",VLOOKUP(H149,Übersichtsblatt!$B$14:$E$24,2,FALSE)),"") ->  | J149: 0 | K149: 11.5
A150: 2023 | B150: 2023-05-28 | C150: =IFERROR(IF(VLOOKUP($B150,Übersichtsblatt!$B$64:$E$68,2,FALSE)=0,"",VLOOKUP($B150,Übersichtsblatt!$B$64:$E$68,2,FALSE)),"") ->  | D150: 0 | E150: -11.5 | G150: 2023 | H150: 2023-05-28 | I150: =IFERROR(IF(VLOOKUP($H150,Übersichtsblatt!$B$14:$E$24,2,FALSE)=0,"",VLOOKUP(H150,Übersichtsblatt!$B$14:$E$24,2,FALSE)),"") ->  | J150: 0 | K150: 11.5
A151: 2023 | B151: 2023-05-29 | C151: =IFERROR(IF(VLOOKUP($B151,Übersichtsblatt!$B$64:$E$68,2,FALSE)=0,"",VLOOKUP($B151,Übersichtsblatt!$B$64:$E$68,2,FALSE)),"") ->  | D151: 0 | E151: -11.5 | G151: 2023 | H151: 2023-05-29 | I151: =IFERROR(IF(VLOOKUP($H151,Übersichtsblatt!$B$14:$E$24,2,FALSE)=0,"",VLOOKUP(H151,Übersichtsblatt!$B$14:$E$24,2,FALSE)),"") ->  | J151: 0 | K151: 11.5
A152: 2023 | B152: 2023-05-30 | C152: =IFERROR(IF(VLOOKUP($B152,Übersichtsblatt!$B$64:$E$68,2,FALSE)=0,"",VLOOKUP($B152,Übersichtsblatt!$B$64:$E$68,2,FALSE)),"") ->  | D152: 0 | E152: -11.5 | G152: 2023 | H152: 2023-05-30 | I152: =IFERROR(IF(VLOOKUP($H152,Übersichtsblatt!$B$14:$E$24,2,FALSE)=0,"",VLOOKUP(H152,Übersichtsblatt!$B$14:$E$24,2,FALSE)),"") ->  | J152: 0 | K152: 11.5
A153: 2023 | B153: 2023-05-31 | C153: =IFERROR(IF(VLOOKUP($B153,Übersichtsblatt!$B$64:$E$68,2,FALSE)=0,"",VLOOKUP($B153,Übersichtsblatt!$B$64:$E$68,2,FALSE)),"") ->  | D153: 0 | E153: -11.5 | G153: 2023 | H153: 2023-05-31 | I153: =IFERROR(IF(VLOOKUP($H153,Übersichtsblatt!$B$14:$E$24,2,FALSE)=0,"",VLOOKUP(H153,Übersichtsblatt!$B$14:$E$24,2,FALSE)),"") ->  | J153: 0 | K153: 11.5
A154: 2023 | B154: 2023-06-01 | C154: =IFERROR(IF(VLOOKUP($B154,Übersichtsblatt!$B$64:$E$68,2,FALSE)=0,"",VLOOKUP($B154,Übersichtsblatt!$B$64:$E$68,2,FALSE)),"") ->  | D154: 0 | E154: -4.5 | G154: 2023 | H154: 2023-06-01 | I154: =IFERROR(IF(VLOOKUP($H154,Übersichtsblatt!$B$14:$E$24,2,FALSE)=0,"",VLOOKUP(H154,Übersichtsblatt!$B$14:$E$24,2,FALSE)),"") ->  | J154: 0 | K154: 4.5
A155: 2023 | B155: 2023-06-02 | C155: =IFERROR(IF(VLOOKUP($B155,Übersichtsblatt!$B$64:$E$68,2,FALSE)=0,"",VLOOKUP($B155,Übersichtsblatt!$B$64:$E$68,2,FALSE)),"") ->  | D155: 0 | E155: -4.5 | G155: 2023 | H155: 2023-06-02 | I155: =IFERROR(IF(VLOOKUP($H155,Übersichtsblatt!$B$14:$E$24,2,FALSE)=0,"",VLOOKUP(H155,Übersichtsblatt!$B$14:$E$24,2,FALSE)),"") ->  | J155: 0 | K155: 4.5
A156: 2023 | B156: 2023-06-03 | C156: =IFERROR(IF(VLOOKUP($B156,Übersichtsblatt!$B$64:$E$68,2,FALSE)=0,"",VLOOKUP($B156,Übersichtsblatt!$B$64:$E$68,2,FALSE)),"") ->  | D156: 0 | E156: -4.5 | G156: 2023 | H156: 2023-06-03 | I156: =IFERROR(IF(VLOOKUP($H156,Übersichtsblatt!$B$14:$E$24,2,FALSE)=0,"",VLOOKUP(H156,Übersichtsblatt!$B$14:$E$24,2,FALSE)),"") ->  | J156: 0 | K156: 4.5
A157: 2023 | B157: 2023-06-04 | C157: =IFERROR(IF(VLOOKUP($B157,Übersichtsblatt!$B$64:$E$68,2,FALSE)=0,"",VLOOKUP($B157,Übersichtsblatt!$B$64:$E$68,2,FALSE)),"") ->  | D157: 0 | E157: -4.5 | G157: 2023 | H157: 2023-06-04 | I157: =IFERROR(IF(VLOOKUP($H157,Übersichtsblatt!$B$14:$E$24,2,FALSE)=0,"",VLOOKUP(H157,Übersichtsblatt!$B$14:$E$24,2,FALSE)),"") ->  | J157: 0 | K157: 4.5
A158: 2023 | B158: 2023-06-05 | C158: =IFERROR(IF(VLOOKUP($B158,Übersichtsblatt!$B$64:$E$68,2,FALSE)=0,"",VLOOKUP($B158,Übersichtsblatt!$B$64:$E$68,2,FALSE)),"") ->  | D158: 0 | E158: -4.5 | G158: 2023 | H158: 2023-06-05 | I158: =IFERROR(IF(VLOOKUP($H158,Übersichtsblatt!$B$14:$E$24,2,FALSE)=0,"",VLOOKUP(H158,Übersichtsblatt!$B$14:$E$24,2,FALSE)),"") ->  | J158: 0 | K158: 4.5
A159: 2023 | B159: 2023-06-06 | C159: =IFERROR(IF(VLOOKUP($B159,Übersichtsblatt!$B$64:$E$68,2,FALSE)=0,"",VLOOKUP($B159,Übersichtsblatt!$B$64:$E$68,2,FALSE)),"") ->  | D159: 0 | E159: -4.5 | G159: 2023 | H159: 2023-06-06 | I159: =IFERROR(IF(VLOOKUP($H159,Übersichtsblatt!$B$14:$E$24,2,FALSE)=0,"",VLOOKUP(H159,Übersichtsblatt!$B$14:$E$24,2,FALSE)),"") ->  | J159: 0 | K159: 4.5
A160: 2023 | B160: 2023-06-07 | C160: =IFERROR(IF(VLOOKUP($B160,Übersichtsblatt!$B$64:$E$68,2,FALSE)=0,"",VLOOKUP($B160,Übersichtsblatt!$B$64:$E$68,2,FALSE)),"") ->  | D160: 0 | E160: -4.5 | G160: 2023 | H160: 2023-06-07 | I160: =IFERROR(IF(VLOOKUP($H160,Übersichtsblatt!$B$14:$E$24,2,FALSE)=0,"",VLOOKUP(H160,Übersichtsblatt!$B$14:$E$24,2,FALSE)),"") ->  | J160: 0 | K160: 4.5
A161: 2023 | B161: 2023-06-08 | C161: =IFERROR(IF(VLOOKUP($B161,Übersichtsblatt!$B$64:$E$68,2,FALSE)=0,"",VLOOKUP($B161,Übersichtsblatt!$B$64:$E$68,2,FALSE)),"") ->  | D161: 0 | E161: -4.5 | G161: 2023 | H161: 2023-06-08 | I161: =IFERROR(IF(VLOOKUP($H161,Übersichtsblatt!$B$14:$E$24,2,FALSE)=0,"",VLOOKUP(H161,Übersichtsblatt!$B$14:$E$24,2,FALSE)),"") ->  | J161: 0 | K161: 4.5
A162: 2023 | B162: 2023-06-09 | C162: =IFERROR(IF(VLOOKUP($B162,Übersichtsblatt!$B$64:$E$68,2,FALSE)=0,"",VLOOKUP($B162,Übersichtsblatt!$B$64:$E$68,2,FALSE)),"") ->  | D162: 0 | E162: -4.5 | G162: 2023 | H162: 2023-06-09 | I162: =IFERROR(IF(VLOOKUP($H162,Übersichtsblatt!$B$14:$E$24,2,FALSE)=0,"",VLOOKUP(H162,Übersichtsblatt!$B$14:$E$24,2,FALSE)),"") ->  | J162: 0 | K162: 4.5
A163: 2023 | B163: 2023-06-10 | C163: =IFERROR(IF(VLOOKUP($B163,Übersichtsblatt!$B$64:$E$68,2,FALSE)=0,"",VLOOKUP($B163,Übersichtsblatt!$B$64:$E$68,2,FALSE)),"") ->  | D163: 0 | E163: -4.5 | G163: 2023 | H163: 2023-06-10 | I163: =IFERROR(IF(VLOOKUP($H163,Übersichtsblatt!$B$14:$E$24,2,FALSE)=0,"",VLOOKUP(H163,Übersichtsblatt!$B$14:$E$24,2,FALSE)),"") ->  | J163: 0 | K163: 4.5
A164: 2023 | B164: 2023-06-11 | C164: =IFERROR(IF(VLOOKUP($B164,Übersichtsblatt!$B$64:$E$68,2,FALSE)=0,"",VLOOKUP($B164,Übersichtsblatt!$B$64:$E$68,2,FALSE)),"") ->  | D164: 0 | E164: -4.5 | G164: 2023 | H164: 2023-06-11 | I164: =IFERROR(IF(VLOOKUP($H164,Übersichtsblatt!$B$14:$E$24,2,FALSE)=0,"",VLOOKUP(H164,Übersichtsblatt!$B$14:$E$24,2,FALSE)),"") ->  | J164: 0 | K164: 4.5
A165: 2023 | B165: 2023-06-12 | C165: =IFERROR(IF(VLOOKUP($B165,Übersichtsblatt!$B$64:$E$68,2,FALSE)=0,"",VLOOKUP($B165,Übersichtsblatt!$B$64:$E$68,2,FALSE)),"") ->  | D165: 0 | E165: -4.5 | G165: 2023 | H165: 2023-06-12 | I165: =IFERROR(IF(VLOOKUP($H165,Übersichtsblatt!$B$14:$E$24,2,FALSE)=0,"",VLOOKUP(H165,Übersichtsblatt!$B$14:$E$24,2,FALSE)),"") ->  | J165: 0 | K165: 4.5
A166: 2023 | B166: 2023-06-13 | C166: =IFERROR(IF(VLOOKUP($B166,Übersichtsblatt!$B$64:$E$68,2,FALSE)=0,"",VLOOKUP($B166,Übersichtsblatt!$B$64:$E$68,2,FALSE)),"") ->  | D166: 0 | E166: -4.5 | G166: 2023 | H166: 2023-06-13 | I166: =IFERROR(IF(VLOOKUP($H166,Übersichtsblatt!$B$14:$E$24,2,FALSE)=0,"",VLOOKUP(H166,Übersichtsblatt!$B$14:$E$24,2,FALSE)),"") ->  | J166: 0 | K166: 4.5
A167: 2023 | B167: 2023-06-14 | C167: =IFERROR(IF(VLOOKUP($B167,Übersichtsblatt!$B$64:$E$68,2,FALSE)=0,"",VLOOKUP($B167,Übersichtsblatt!$B$64:$E$68,2,FALSE)),"") ->  | D167: 0 | E167: -4.5 | G167: 2023 | H167: 2023-06-14 | I167: =IFERROR(IF(VLOOKUP($H167,Übersichtsblatt!$B$14:$E$24,2,FALSE)=0,"",VLOOKUP(H167,Übersichtsblatt!$B$14:$E$24,2,FALSE)),"") ->  | J167: 0 | K167: 4.5
A168: 2023 | B168: 2023-06-15 | C168: =IFERROR(IF(VLOOKUP($B168,Übersichtsblatt!$B$64:$E$68,2,FALSE)=0,"",VLOOKUP($B168,Übersichtsblatt!$B$64:$E$68,2,FALSE)),"") ->  | D168: 0 | E168: -4.5 | G168: 2023 | H168: 2023-06-15 | I168: =IFERROR(IF(VLOOKUP($H168,Übersichtsblatt!$B$14:$E$24,2,FALSE)=0,"",VLOOKUP(H168,Übersichtsblatt!$B$14:$E$24,2,FALSE)),"") ->  | J168: 0 | K168: 4.5
A169: 2023 | B169: 2023-06-16 | C169: =IFERROR(IF(VLOOKUP($B169,Übersichtsblatt!$B$64:$E$68,2,FALSE)=0,"",VLOOKUP($B169,Übersichtsblatt!$B$64:$E$68,2,FALSE)),"") ->  | D169: 0 | E169: -4.5 | G169: 2023 | H169: 2023-06-16 | I169: =IFERROR(IF(VLOOKUP($H169,Übersichtsblatt!$B$14:$E$24,2,FALSE)=0,"",VLOOKUP(H169,Übersichtsblatt!$B$14:$E$24,2,FALSE)),"") ->  | J169: 0 | K169: 4.5
A170: 2023 | B170: 2023-06-17 | C170: =IFERROR(IF(VLOOKUP($B170,Übersichtsblatt!$B$64:$E$68,2,FALSE)=0,"",VLOOKUP($B170,Übersichtsblatt!$B$64:$E$68,2,FALSE)),"") ->  | D170: 0 | E170: -4.5 | G170: 2023 | H170: 2023-06-17 | I170: =IFERROR(IF(VLOOKUP($H170,Übersichtsblatt!$B$14:$E$24,2,FALSE)=0,"",VLOOKUP(H170,Übersichtsblatt!$B$14:$E$24,2,FALSE)),"") ->  | J170: 0 | K170: 4.5
A171: 2023 | B171: 2023-06-18 | C171: =IFERROR(IF(VLOOKUP($B171,Übersichtsblatt!$B$64:$E$68,2,FALSE)=0,"",VLOOKUP($B171,Übersichtsblatt!$B$64:$E$68,2,FALSE)),"") ->  | D171: 0 | E171: -4.5 | G171: 2023 | H171: 2023-06-18 | I171: =IFERROR(IF(VLOOKUP($H171,Übersichtsblatt!$B$14:$E$24,2,FALSE)=0,"",VLOOKUP(H171,Übersichtsblatt!$B$14:$E$24,2,FALSE)),"") ->  | J171: 0 | K171: 4.5
A172: 2023 | B172: 2023-06-19 | C172: =IFERROR(IF(VLOOKUP($B172,Übersichtsblatt!$B$64:$E$68,2,FALSE)=0,"",VLOOKUP($B172,Übersichtsblatt!$B$64:$E$68,2,FALSE)),"") ->  | D172: 0 | E172: -4.5 | G172: 2023 | H172: 2023-06-19 | I172: =IFERROR(IF(VLOOKUP($H172,Übersichtsblatt!$B$14:$E$24,2,FALSE)=0,"",VLOOKUP(H172,Übersichtsblatt!$B$14:$E$24,2,FALSE)),"") ->  | J172: 0 | K172: 4.5
A173: 2023 | B173: 2023-06-20 | C173: =IFERROR(IF(VLOOKUP($B173,Übersichtsblatt!$B$64:$E$68,2,FALSE)=0,"",VLOOKUP($B173,Übersichtsblatt!$B$64:$E$68,2,FALSE)),"") ->  | D173: 0 | E173: -4.5 | G173: 2023 | H173: 2023-06-20 | I173: =IFERROR(IF(VLOOKUP($H173,Übersichtsblatt!$B$14:$E$24,2,FALSE)=0,"",VLOOKUP(H173,Übersichtsblatt!$B$14:$E$24,2,FALSE)),"") ->  | J173: 0 | K173: 4.5
A174: 2023 | B174: 2023-06-21 | C174: =IFERROR(IF(VLOOKUP($B174,Übersichtsblatt!$B$64:$E$68,2,FALSE)=0,"",VLOOKUP($B174,Übersichtsblatt!$B$64:$E$68,2,FALSE)),"") ->  | D174: 0 | E174: -4.5 | G174: 2023 | H174: 2023-06-21 | I174: =IFERROR(IF(VLOOKUP($H174,Übersichtsblatt!$B$14:$E$24,2,FALSE)=0,"",VLOOKUP(H174,Übersichtsblatt!$B$14:$E$24,2,FALSE)),"") ->  | J174: 0 | K174: 4.5
A175: 2023 | B175: 2023-06-22 | C175: =IFERROR(IF(VLOOKUP($B175,Übersichtsblatt!$B$64:$E$68,2,FALSE)=0,"",VLOOKUP($B175,Übersichtsblatt!$B$64:$E$68,2,FALSE)),"") ->  | D175: 0 | E175: -4.5 | G175: 2023 | H175: 2023-06-22 | I175: =IFERROR(IF(VLOOKUP($H175,Übersichtsblatt!$B$14:$E$24,2,FALSE)=0,"",VLOOKUP(H175,Übersichtsblatt!$B$14:$E$24,2,FALSE)),"") ->  | J175: 0 | K175: 4.5
A176: 2023 | B176: 2023-06-23 | C176: =IFERROR(IF(VLOOKUP($B176,Übersichtsblatt!$B$64:$E$68,2,FALSE)=0,"",VLOOKUP($B176,Übersichtsblatt!$B$64:$E$68,2,FALSE)),"") ->  | D176: 0 | E176: -4.5 | G176: 2023 | H176: 2023-06-23 | I176: =IFERROR(IF(VLOOKUP($H176,Übersichtsblatt!$B$14:$E$24,2,FALSE)=0,"",VLOOKUP(H176,Übersichtsblatt!$B$14:$E$24,2,FALSE)),"") ->  | J176: 0 | K176: 4.5
A177: 2023 | B177: 2023-06-24 | C177: =IFERROR(IF(VLOOKUP($B177,Übersichtsblatt!$B$64:$E$68,2,FALSE)=0,"",VLOOKUP($B177,Übersichtsblatt!$B$64:$E$68,2,FALSE)),"") ->  | D177: 0 | E177: -4.5 | G177: 2023 | H177: 2023-06-24 | I177: =IFERROR(IF(VLOOKUP($H177,Übersichtsblatt!$B$14:$E$24,2,FALSE)=0,"",VLOOKUP(H177,Übersichtsblatt!$B$14:$E$24,2,FALSE)),"") ->  | J177: 0 | K177: 4.5
A178: 2023 | B178: 2023-06-25 | C178: =IFERROR(IF(VLOOKUP($B178,Übersichtsblatt!$B$64:$E$68,2,FALSE)=0,"",VLOOKUP($B178,Übersichtsblatt!$B$64:$E$68,2,FALSE)),"") ->  | D178: 0 | E178: -4.5 | G178: 2023 | H178: 2023-06-25 | I178: =IFERROR(IF(VLOOKUP($H178,Übersichtsblatt!$B$14:$E$24,2,FALSE)=0,"",VLOOKUP(H178,Übersichtsblatt!$B$14:$E$24,2,FALSE)),"") ->  | J178: 0 | K178: 4.5
A179: 2023 | B179: 2023-06-26 | C179: =IFERROR(IF(VLOOKUP($B179,Übersichtsblatt!$B$64:$E$68,2,FALSE)=0,"",VLOOKUP($B179,Übersichtsblatt!$B$64:$E$68,2,FALSE)),"") ->  | D179: 0 | E179: -4.5 | G179: 2023 | H179: 2023-06-26 | I179: =IFERROR(IF(VLOOKUP($H179,Übersichtsblatt!$B$14:$E$24,2,FALSE)=0,"",VLOOKUP(H179,Übersichtsblatt!$B$14:$E$24,2,FALSE)),"") ->  | J179: 0 | K179: 4.5
A180: 2023 | B180: 2023-06-27 | C180: =IFERROR(IF(VLOOKUP($B180,Übersichtsblatt!$B$64:$E$68,2,FALSE)=0,"",VLOOKUP($B180,Übersichtsblatt!$B$64:$E$68,2,FALSE)),"") ->  | D180: 0 | E180: -4.5 | G180: 2023 | H180: 2023-06-27 | I180: =IFERROR(IF(VLOOKUP($H180,Übersichtsblatt!$B$14:$E$24,2,FALSE)=0,"",VLOOKUP(H180,Übersichtsblatt!$B$14:$E$24,2,FALSE)),"") ->  | J180: 0 | K180: 4.5
A181: 2023 | B181: 2023-06-28 | C181: =IFERROR(IF(VLOOKUP($B181,Übersichtsblatt!$B$64:$E$68,2,FALSE)=0,"",VLOOKUP($B181,Übersichtsblatt!$B$64:$E$68,2,FALSE)),"") ->  | D181: 0 | E181: -4.5 | G181: 2023 | H181: 2023-06-28 | I181: =IFERROR(IF(VLOOKUP($H181,Übersichtsblatt!$B$14:$E$24,2,FALSE)=0,"",VLOOKUP(H181,Übersichtsblatt!$B$14:$E$24,2,FALSE)),"") ->  | J181: 0 | K181: 4.5
A182: 2023 | B182: 2023-06-29 | C182: =IFERROR(IF(VLOOKUP($B182,Übersichtsblatt!$B$64:$E$68,2,FALSE)=0,"",VLOOKUP($B182,Übersichtsblatt!$B$64:$E$68,2,FALSE)),"") ->  | D182: 0 | E182: -4.5 | G182: 2023 | H182: 2023-06-29 | I182: =IFERROR(IF(VLOOKUP($H182,Übersichtsblatt!$B$14:$E$24,2,FALSE)=0,"",VLOOKUP(H182,Übersichtsblatt!$B$14:$E$24,2,FALSE)),"") ->  | J182: 0 | K182: 4.5
A183: 2023 | B183: 2023-06-30 | C183: =IFERROR(IF(VLOOKUP($B183,Übersichtsblatt!$B$64:$E$68,2,FALSE)=0,"",VLOOKUP($B183,Übersichtsblatt!$B$64:$E$68,2,FALSE)),"") ->  | D183: 0 | E183: -4.5 | G183: 2023 | H183: 2023-06-30 | I183: =IFERROR(IF(VLOOKUP($H183,Übersichtsblatt!$B$14:$E$24,2,FALSE)=0,"",VLOOKUP(H183,Übersichtsblatt!$B$14:$E$24,2,FALSE)),"") ->  | J183: 0 | K183: 4.5
A184: 2023 | B184: 2023-07-01 | C184: =IFERROR(IF(VLOOKUP($B184,Übersichtsblatt!$B$64:$E$68,2,FALSE)=0,"",VLOOKUP($B184,Übersichtsblatt!$B$64:$E$68,2,FALSE)),"") ->  | D184: 0 | E184: -8.5 | G184: 2023 | H184: 2023-07-01 | I184: =IFERROR(IF(VLOOKUP($H184,Übersichtsblatt!$B$14:$E$24,2,FALSE)=0,"",VLOOKUP(H184,Übersichtsblatt!$B$14:$E$24,2,FALSE)),"") ->  | J184: 0 | K184: 8.5
A185: 2023 | B185: 2023-07-02 | C185: =IFERROR(IF(VLOOKUP($B185,Übersichtsblatt!$B$64:$E$68,2,FALSE)=0,"",VLOOKUP($B185,Übersichtsblatt!$B$64:$E$68,2,FALSE)),"") ->  | D185: 0 | E185: -8.5 | G185: 2023 | H185: 2023-07-02 | I185: =IFERROR(IF(VLOOKUP($H185,Übersichtsblatt!$B$14:$E$24,2,FALSE)=0,"",VLOOKUP(H185,Übersichtsblatt!$B$14:$E$24,2,FALSE)),"") ->  | J185: 0 | K185: 8.5
A186: 2023 | B186: 2023-07-03 | C186: =IFERROR(IF(VLOOKUP($B186,Übersichtsblatt!$B$64:$E$68,2,FALSE)=0,"",VLOOKUP($B186,Übersichtsblatt!$B$64:$E$68,2,FALSE)),"") ->  | D186: 0 | E186: -8.5 | G186: 2023 | H186: 2023-07-03 | I186: =IFERROR(IF(VLOOKUP($H186,Übersichtsblatt!$B$14:$E$24,2,FALSE)=0,"",VLOOKUP(H186,Übersichtsblatt!$B$14:$E$24,2,FALSE)),"") ->  | J186: 0 | K186: 8.5
A187: 2023 | B187: 2023-07-04 | C187: =IFERROR(IF(VLOOKUP($B187,Übersichtsblatt!$B$64:$E$68,2,FALSE)=0,"",VLOOKUP($B187,Übersichtsblatt!$B$64:$E$68,2,FALSE)),"") ->  | D187: 0 | E187: -8.5 | G187: 2023 | H187: 2023-07-04 | I187: =IFERROR(IF(VLOOKUP($H187,Übersichtsblatt!$B$14:$E$24,2,FALSE)=0,"",VLOOKUP(H187,Übersichtsblatt!$B$14:$E$24,2,FALSE)),"") ->  | J187: 0 | K187: 8.5
A188: 2023 | B188: 2023-07-05 | C188: =IFERROR(IF(VLOOKUP($B188,Übersichtsblatt!$B$64:$E$68,2,FALSE)=0,"",VLOOKUP($B188,Übersichtsblatt!$B$64:$E$68,2,FALSE)),"") ->  | D188: 0 | E188: -8.5 | G188: 2023 | H188: 2023-07-05 | I188: =IFERROR(IF(VLOOKUP($H188,Übersichtsblatt!$B$14:$E$24,2,FALSE)=0,"",VLOOKUP(H188,Übersichtsblatt!$B$14:$E$24,2,FALSE)),"") ->  | J188: 0 | K188: 8.5
A189: 2023 | B189: 2023-07-06 | C189: =IFERROR(IF(VLOOKUP($B189,Übersichtsblatt!$B$64:$E$68,2,FALSE)=0,"",VLOOKUP($B189,Übersichtsblatt!$B$64:$E$68,2,FALSE)),"") ->  | D189: 0 | E189: -8.5 | G189: 2023 | H189: 2023-07-06 | I189: =IFERROR(IF(VLOOKUP($H189,Übersichtsblatt!$B$14:$E$24,2,FALSE)=0,"",VLOOKUP(H189,Übersichtsblatt!$B$14:$E$24,2,FALSE)),"") ->  | J189: 0 | K189: 8.5
A190: 2023 | B190: 2023-07-07 | C190: =IFERROR(IF(VLOOKUP($B190,Übersichtsblatt!$B$64:$E$68,2,FALSE)=0,"",VLOOKUP($B190,Übersichtsblatt!$B$64:$E$68,2,FALSE)),"") ->  | D190: 0 | E190: -8.5 | G190: 2023 | H190: 2023-07-07 | I190: =IFERROR(IF(VLOOKUP($H190,Übersichtsblatt!$B$14:$E$24,2,FALSE)=0,"",VLOOKUP(H190,Übersichtsblatt!$B$14:$E$24,2,FALSE)),"") ->  | J190: 0 | K190: 8.5
A191: 2023 | B191: 2023-07-08 | C191: =IFERROR(IF(VLOOKUP($B191,Übersichtsblatt!$B$64:$E$68,2,FALSE)=0,"",VLOOKUP($B191,Übersichtsblatt!$B$64:$E$68,2,FALSE)),"") ->  | D191: 0 | E191: -8.5 | G191: 2023 | H191: 2023-07-08 | I191: =IFERROR(IF(VLOOKUP($H191,Übersichtsblatt!$B$14:$E$24,2,FALSE)=0,"",VLOOKUP(H191,Übersichtsblatt!$B$14:$E$24,2,FALSE)),"") ->  | J191: 0 | K191: 8.5
A192: 2023 | B192: 2023-07-09 | C192: =IFERROR(IF(VLOOKUP($B192,Übersichtsblatt!$B$64:$E$68,2,FALSE)=0,"",VLOOKUP($B192,Übersichtsblatt!$B$64:$E$68,2,FALSE)),"") ->  | D192: 0 | E192: -8.5 | G192: 2023 | H192: 2023-07-09 | I192: =IFERROR(IF(VLOOKUP($H192,Übersichtsblatt!$B$14:$E$24,2,FALSE)=0,"",VLOOKUP(H192,Übersichtsblatt!$B$14:$E$24,2,FALSE)),"") ->  | J192: 0 | K192: 8.5
A193: 2023 | B193: 2023-07-10 | C193: =IFERROR(IF(VLOOKUP($B193,Übersichtsblatt!$B$64:$E$68,2,FALSE)=0,"",VLOOKUP($B193,Übersichtsblatt!$B$64:$E$68,2,FALSE)),"") ->  | D193: 0 | E193: -8.5 | G193: 2023 | H193: 2023-07-10 | I193: =IFERROR(IF(VLOOKUP($H193,Übersichtsblatt!$B$14:$E$24,2,FALSE)=0,"",VLOOKUP(H193,Übersichtsblatt!$B$14:$E$24,2,FALSE)),"") ->  | J193: 0 | K193: 8.5
A194: 2023 | B194: 2023-07-11 | C194: =IFERROR(IF(VLOOKUP($B194,Übersichtsblatt!$B$64:$E$68,2,FALSE)=0,"",VLOOKUP($B194,Übersichtsblatt!$B$64:$E$68,2,FALSE)),"") ->  | D194: 0 | E194: -8.5 | G194: 2023 | H194: 2023-07-11 | I194: =IFERROR(IF(VLOOKUP($H194,Übersichtsblatt!$B$14:$E$24,2,FALSE)=0,"",VLOOKUP(H194,Übersichtsblatt!$B$14:$E$24,2,FALSE)),"") ->  | J194: 0 | K194: 8.5
A195: 2023 | B195: 2023-07-12 | C195: =IFERROR(IF(VLOOKUP($B195,Übersichtsblatt!$B$64:$E$68,2,FALSE)=0,"",VLOOKUP($B195,Übersichtsblatt!$B$64:$E$68,2,FALSE)),"") ->  | D195: 0 | E195: -8.5 | G195: 2023 | H195: 2023-07-12 | I195: =IFERROR(IF(VLOOKUP($H195,Übersichtsblatt!$B$14:$E$24,2,FALSE)=0,"",VLOOKUP(H195,Übersichtsblatt!$B$14:$E$24,2,FALSE)),"") ->  | J195: 0 | K195: 8.5
A196: 2023 | B196: 2023-07-13 | C196: =IFERROR(IF(VLOOKUP($B196,Übersichtsblatt!$B$64:$E$68,2,FALSE)=0,"",VLOOKUP($B196,Übersichtsblatt!$B$64:$E$68,2,FALSE)),"") ->  | D196: =IF($C196="",0,$E196) -> 0 | E196: -8.5 | G196: 2023 | H196: 2023-07-13 | I196: =IFERROR(IF(VLOOKUP($H196,Übersichtsblatt!$B$14:$E$24,2,FALSE)=0,"",VLOOKUP(H196,Übersichtsblatt!$B$14:$E$24,2,FALSE)),"") ->  | J196: =IF($I196="",0,$K196) -> 0 | K196: 8.5
A197: =YEAR(B197) -> 2023 | B197: =B196+1 -> 2023-07-14 | C197: =IFERROR(IF(VLOOKUP($B197,Übersichtsblatt!$B$64:$E$68,2,FALSE)=0,"",VLOOKUP($B197,Übersichtsblatt!$B$64:$E$68,2,FALSE)),"") ->  | D197: 0 | E197: -8.5 | G197: =YEAR(H197) -> 2023 | H197: =H196+1 -> 2023-07-14 | I197: =IFERROR(IF(VLOOKUP($H197,Übersichtsblatt!$B$14:$E$24,2,FALSE)=0,"",VLOOKUP(H197,Übersichtsblatt!$B$14:$E$24,2,FALSE)),"") ->  | J197: 0 | K197: 8.5
A198: 2023 | B198: 2023-07-15 | C198: =IFERROR(IF(VLOOKUP($B198,Übersichtsblatt!$B$64:$E$68,2,FALSE)=0,"",VLOOKUP($B198,Übersichtsblatt!$B$64:$E$68,2,FALSE)),"") ->  | D198: 0 | E198: -8.5 | G198: 2023 | H198: 2023-07-15 | I198: =IFERROR(IF(VLOOKUP($H198,Übersichtsblatt!$B$14:$E$24,2,FALSE)=0,"",VLOOKUP(H198,Übersichtsblatt!$B$14:$E$24,2,FALSE)),"") ->  | J198: 0 | K198: 8.5
A199: 2023 | B199: 2023-07-16 | C199: =IFERROR(IF(VLOOKUP($B199,Übersichtsblatt!$B$64:$E$68,2,FALSE)=0,"",VLOOKUP($B199,Übersichtsblatt!$B$64:$E$68,2,FALSE)),"") ->  | D199: 0 | E199: -8.5 | G199: 2023 | H199: 2023-07-16 | I199: =IFERROR(IF(VLOOKUP($H199,Übersichtsblatt!$B$14:$E$24,2,FALSE)=0,"",VLOOKUP(H199,Übersichtsblatt!$B$14:$E$24,2,FALSE)),"") ->  | J199: 0 | K199: 8.5
A200: 2023 | B200: 2023-07-17 | C200: =IFERROR(IF(VLOOKUP($B200,Übersichtsblatt!$B$64:$E$68,2,FALSE)=0,"",VLOOKUP($B200,Übersichtsblatt!$B$64:$E$68,2,FALSE)),"") ->  | D200: 0 | E200: -8.5 | G200: 2023 | H200: 2023-07-17 | I200: =IFERROR(IF(VLOOKUP($H200,Übersichtsblatt!$B$14:$E$24,2,FALSE)=0,"",VLOOKUP(H200,Übersichtsblatt!$B$14:$E$24,2,FALSE)),"") ->  | J200: 0 | K200: 8.5
... 1268 more rows

Sheet Anhang
B2: Sportartenspezifischer Athlet*innenweg | H2: Schweizer Bildungssystem
H19: Quelle: | I19: https://www.berufsberatung.ch/
B21: Merkblatt Karriereplanung | H21: Ausbildung für Sporttalente

Sheet Hilfstabelle Alter (hidden)
A1: Jahr | B1: Datum
A2: ='Planung Sport'!B6 -> 2022 | B2: =DATE(A2,7,1) -> 2022-07-01
A3: ='Planung Sport'!B16 -> 2023 | B3: =DATE(A3,7,1) -> 2023-07-01
A4: ='Planung Sport'!B26 -> 2024 | B4: 2024-07-01
A5: ='Planung Sport'!B36 -> 2025 | B5: 2025-07-01
A6: ='Planung Sport'!B46 -> 2026 | B6: 2026-07-01
A7: ='Planung Sport'!B56 -> 2027 | B7: 2027-07-01
A8: ='Planung Sport'!B66 -> 2028 | B8: 2028-07-01
A9: ='Planung Sport'!B76 -> 2029 | B9: 2029-07-01
A10: ='Planung Sport'!B86 -> 2030 | B10: 2030-07-01
A11: ='Planung Sport'!B96 -> 2031 | B11: 2031-07-01
A12: ='Planung Sport'!B106 -> 2032 | B12: 2032-07-01
A13: ='Planung Sport'!#REF! -> 
A14: ='Planung Sport'!#REF! -> 
A15: ='Planung Sport'!#REF! -> 
A16: ='Planung Sport'!#REF! -> 
A17: ='Planung Sport'!#REF! -> 
A18: ='Planung Sport'!#REF! -> 
A19: ='Planung Sport'!#REF! -> 
A20: ='Planung Sport'!#REF! -> 
A21: ='Planung Sport'!#REF! -> 
A22: ='Planung Sport'!#REF! -> 

Sheet Hilfstabelle Sport Kategorien (hidden)
A1: Jahr | B1: Kategorie / Kader
A2: ='Planung Sport'!B6 -> 2022 | B2: ='Planung Sport'!$B$8 -> 0
A3: ='Planung Sport'!B16 -> 2023 | B3: ='Planung Sport'!$B$18 -> 0
A4: ='Planung Sport'!B26 -> 2024 | B4: ='Planung Sport'!$B$28 -> 0
A5: ='Planung Sport'!B36 -> 2025 | B5: ='Planung Sport'!$B$38 -> 0
A6: ='Planung Sport'!B46 -> 2026 | B6: ='Planung Sport'!$B$48 -> 0
A7: ='Planung Sport'!B56 -> 2027 | B7: ='Planung Sport'!$B$58 -> 0
A8: ='Planung Sport'!B66 -> 2028 | B8: ='Planung Sport'!$B$68 -> 0
A9: ='Planung Sport'!B76 -> 2029 | B9: ='Planung Sport'!$B$78 -> 0
A10: ='Planung Sport'!B86 -> 2030 | B10: ='Planung Sport'!$B$88 -> 0
A11: ='Planung Sport'!B96 -> 2031 | B11: ='Planung Sport'!$B$98 -> 0
A12: ='Planung Sport'!B106 -> 2032 | B12: ='Planung Sport'!$B$108 -> 0
A13: ='Planung Sport'!#REF! ->  | B13: ='Planung Sport'!#REF! -> 
A14: ='Planung Sport'!#REF! ->  | B14: ='Planung Sport'!#REF! -> 
A15: ='Planung Sport'!#REF! ->  | B15: ='Planung Sport'!#REF! -> 
A16: ='Planung Sport'!#REF! ->  | B16: ='Planung Sport'!#REF! -> 
A17: ='Planung Sport'!#REF! ->  | B17: ='Planung Sport'!#REF! -> 
A18: ='Planung Sport'!#REF! ->  | B18: ='Planung Sport'!#REF! -> 
A19: ='Planung Sport'!#REF! ->  | B19: ='Planung Sport'!#REF! -> 
A20: ='Planung Sport'!#REF! ->  | B20: ='Planung Sport'!#REF! -> 
A21: ='Planung Sport'!#REF! ->  | B21: ='Planung Sport'!#REF! -> 
A22: ='Planung Sport'!#REF! ->  | B22: ='Planung Sport'!#REF! -> 

Sheet Hilfstabelle Sport Saisonziele (hidden)
A1: Jahr | B1: Datum | C1: Meilenstein Bezeichnung | D1: Saisonziele
A2: ='Planung Sport'!$K$6 -> 2022 | B2: ='Planung Sport'!$K9 -> 00:00:00 | C2: ='Planung Sport'!$J9 -> Saisonziel 1 | D2: ='Planung Sport'!L9 -> 0
A3: ='Planung Sport'!$K$6 -> 2022 | B3: ='Planung Sport'!$K10 -> 00:00:00 | C3: ='Planung Sport'!$J10 -> Saisonziel 2 | D3: ='Planung Sport'!L10 -> 0
A4: ='Planung Sport'!$K$6 -> 2022 | B4: ='Planung Sport'!$K11 -> 00:00:00 | C4: ='Planung Sport'!$J11 -> Saisonziel 3 | D4: ='Planung Sport'!L11 -> 0
A5: ='Planung Sport'!$K$6 -> 2022 | B5: ='Planung Sport'!$K12 -> 00:00:00 | C5: ='Planung Sport'!$J12 -> Saisonziel 4 | D5: ='Planung Sport'!L12 -> 0
A6: ='Planung Sport'!$K$6 -> 2022 | B6: ='Planung Sport'!$K13 -> 00:00:00 | C6: ='Planung Sport'!$J13 -> Saisonziel 5 | D6: ='Planung Sport'!L13 -> 0
A7: ='Planung Sport'!$K$6 -> 2022 | B7: ='Planung Sport'!$K14 -> 00:00:00 | C7: ='Planung Sport'!$J14 -> Militärdienst Beginn | D7: ='Planung Sport'!L14 -> 0
A8: ='Planung Sport'!$K$6 -> 2022 | B8: ='Planung Sport'!$K15 -> 00:00:00 | C8: ='Planung Sport'!$J15 -> Militärdienst Ende | D8: ='Planung Sport'!L15 -> 0
A9: ='Planung Sport'!$K$16 -> 2023 | B9: ='Planung Sport'!$K19 -> 00:00:00 | C9: ='Planung Sport'!$J19 -> Saisonziel 1 | D9: ='Planung Sport'!L19 -> 0
A10: ='Planung Sport'!$K$16 -> 2023 | B10: ='Planung Sport'!$K20 -> 00:00:00 | C10: ='Planung Sport'!$J20 -> Saisonziel 2 | D10: ='Planung Sport'!L20 -> 0
A11: ='Planung Sport'!$K$16 -> 2023 | B11: ='Planung Sport'!$K21 -> 00:00:00 | C11: ='Planung Sport'!$J21 -> Saisonziel 3 | D11: ='Planung Sport'!L21 -> 0
A12: ='Planung Sport'!$K$16 -> 2023 | B12: ='Planung Sport'!$K22 -> 00:00:00 | C12: ='Planung Sport'!$J22 -> Saisonziel 4 | D12: ='Planung Sport'!L22 -> 0
A13: ='Planung Sport'!$K$16 -> 2023 | B13: ='Planung Sport'!$K23 -> 00:00:00 | C13: ='Planung Sport'!$J23 -> Saisonziel 5 | D13: ='Planung Sport'!L23 -> 0
A14: ='Planung Sport'!$K$16 -> 2023 | B14: ='Planung Sport'!$K24 -> 00:00:00 | C14: ='Planung Sport'!$J24 -> Militärdienst Beginn | D14: ='Planung Sport'!L24 -> 0
A15: ='Planung Sport'!$K$16 -> 2023 | B15: ='Planung Sport'!$K25 -> 00:00:00 | C15: ='Planung Sport'!$J25 -> Militärdienst Ende | D15: ='Planung Sport'!L25 -> 0
A16: ='Planung Sport'!$K$26 -> 2024 | B16: ='Planung Sport'!$K29 -> 00:00:00 | C16: ='Planung Sport'!$J29 -> Saisonziel 1 | D16: ='Planung Sport'!L29 -> 0
A17: ='Planung Sport'!$K$26 -> 2024 | B17: ='Planung Sport'!$K30 -> 00:00:00 | C17: ='Planung Sport'!$J30 -> Saisonziel 2 | D17: ='Planung Sport'!L30 -> 0
A18: ='Planung Sport'!$K$26 -> 2024 | B18: ='Planung Sport'!$K31 -> 00:00:00 | C18: ='Planung Sport'!$J31 -> Saisonziel 3 | D18: ='Planung Sport'!L31 -> 0
A19: ='Planung Sport'!$K$26 -> 2024 | B19: ='Planung Sport'!$K32 -> 00:00:00 | C19: ='Planung Sport'!$J32 -> Saisonziel 4 | D19: ='Planung Sport'!L32 -> 0
A20: ='Planung Sport'!$K$26 -> 2024 | B20: ='Planung Sport'!$K33 -> 00:00:00 | C20: ='Planung Sport'!$J33 -> Saisonziel 5 | D20: ='Planung Sport'!L33 -> 0
A21: ='Planung Sport'!$K$26 -> 2024 | B21: ='Planung Sport'!$K34 -> 00:00:00 | C21: ='Planung Sport'!$J34 -> Militärdienst Beginn | D21: ='Planung Sport'!L34 -> 0
A22: ='Planung Sport'!$K$26 -> 2024 | B22: ='Planung Sport'!$K35 -> 00:00:00 | C22: ='Planung Sport'!$J35 -> Militärdienst Ende | D22: ='Planung Sport'!L35 -> 0
A23: ='Planung Sport'!$K$36 -> 2025 | B23: ='Planung Sport'!$K39 -> 00:00:00 | C23: ='Planung Sport'!$J39 -> Saisonziel 1 | D23: ='Planung Sport'!L39 -> 0
A24: ='Planung Sport'!$K$36 -> 2025 | B24: ='Planung Sport'!$K40 -> 00:00:00 | C24: ='Planung Sport'!$J40 -> Saisonziel 2 | D24: ='Planung Sport'!L40 -> 0
A25: ='Planung Sport'!$K$36 -> 2025 | B25: ='Planung Sport'!$K41 -> 00:00:00 | C25: ='Planung Sport'!$J41 -> Saisonziel 3 | D25: ='Planung Sport'!L41 -> 0
A26: ='Planung Sport'!$K$36 -> 2025 | B26: ='Planung Sport'!$K42 -> 00:00:00 | C26: ='Planung Sport'!$J42 -> Saisonziel 4 | D26: ='Planung Sport'!L42 -> 0
A27: ='Planung Sport'!$K$36 -> 2025 | B27: ='Planung Sport'!$K43 -> 00:00:00 | C27: ='Planung Sport'!$J43 -> Saisonziel 5 | D27: ='Planung Sport'!L43 -> 0
A28: ='Planung Sport'!$K$36 -> 2025 | B28: ='Planung Sport'!$K44 -> 00:00:00 | C28: ='Planung Sport'!$J44 -> Militärdienst Beginn | D28: ='Planung Sport'!L44 -> 0
A29: ='Planung Sport'!$K$36 -> 2025 | B29: ='Planung Sport'!$K45 -> 00:00:00 | C29: ='Planung Sport'!$J45 -> Militärdienst Ende | D29: ='Planung Sport'!L45 -> 0
A30: ='Planung Sport'!$K$46 -> 2026 | B30: ='Planung Sport'!$K49 -> 00:00:00 | C30: ='Planung Sport'!$J49 -> Saisonziel 1 | D30: ='Planung Sport'!L49 -> 0
A31: ='Planung Sport'!$K$46 -> 2026 | B31: ='Planung Sport'!$K50 -> 00:00:00 | C31: ='Planung Sport'!$J50 -> Saisonziel 2 | D31: ='Planung Sport'!L50 -> 0
A32: ='Planung Sport'!$K$46 -> 2026 | B32: ='Planung Sport'!$K51 -> 00:00:00 | C32: ='Planung Sport'!$J51 -> Saisonziel 3 | D32: ='Planung Sport'!L51 -> 0
A33: ='Planung Sport'!$K$46 -> 2026 | B33: ='Planung Sport'!$K52 -> 00:00:00 | C33: ='Planung Sport'!$J52 -> Saisonziel 4 | D33: ='Planung Sport'!L52 -> 0
A34: ='Planung Sport'!$K$46 -> 2026 | B34: ='Planung Sport'!$K53 -> 00:00:00 | C34: ='Planung Sport'!$J53 -> Saisonziel 5 | D34: ='Planung Sport'!L53 -> 0
A35: ='Planung Sport'!$K$46 -> 2026 | B35: ='Planung Sport'!$K54 -> 00:00:00 | C35: ='Planung Sport'!$J54 -> Militärdienst Beginn | D35: ='Planung Sport'!L54 -> 0
A36: ='Planung Sport'!$K$46 -> 2026 | B36: ='Planung Sport'!$K55 -> 00:00:00 | C36: ='Planung Sport'!$J55 -> Militärdienst Ende | D36: ='Planung Sport'!L55 -> 0
A37: ='Planung Sport'!$K$56 -> 2027 | B37: ='Planung Sport'!$K59 -> 00:00:00 | C37: ='Planung Sport'!$J59 -> Saisonziel 1 | D37: ='Planung Sport'!L59 -> 0
A38: ='Planung Sport'!$K$56 -> 2027 | B38: ='Planung Sport'!$K60 -> 00:00:00 | C38: ='Planung Sport'!$J60 -> Saisonziel 2 | D38: ='Planung Sport'!L60 -> 0
A39: ='Planung Sport'!$K$56 -> 2027 | B39: ='Planung Sport'!$K61 -> 00:00:00 | C39: ='Planung Sport'!$J61 -> Saisonziel 3 | D39: ='Planung Sport'!L61 -> 0
A40: ='Planung Sport'!$K$56 -> 2027 | B40: ='Planung Sport'!$K62 -> 00:00:00 | C40: ='Planung Sport'!$J62 -> Saisonziel 4 | D40: ='Planung Sport'!L62 -> 0
A41: ='Planung Sport'!$K$56 -> 2027 | B41: ='Planung Sport'!$K63 -> 00:00:00 | C41: ='Planung Sport'!$J63 -> Saisonziel 5 | D41: ='Planung Sport'!L63 -> 0
A42: ='Planung Sport'!$K$56 -> 2027 | B42: ='Planung Sport'!$K64 -> 00:00:00 | C42: ='Planung Sport'!$J64 -> Militärdienst Beginn | D42: ='Planung Sport'!L64 -> 0
A43: ='Planung Sport'!$K$56 -> 2027 | B43: ='Planung Sport'!$K65 -> 00:00:00 | C43: ='Planung Sport'!$J65 -> Militärdienst Ende | D43: ='Planung Sport'!L65 -> 0
A44: ='Planung Sport'!$K$66 -> 2028 | B44: ='Planung Sport'!$K69 -> 00:00:00 | C44: ='Planung Sport'!$J69 -> Saisonziel 1 | D44: ='Planung Sport'!L69 -> 0
A45: ='Planung Sport'!$K$66 -> 2028 | B45: ='Planung Sport'!$K70 -> 00:00:00 | C45: ='Planung Sport'!$J70 -> Saisonziel 2 | D45: ='Planung Sport'!L70 -> 0
A46: ='Planung Sport'!$K$66 -> 2028 | B46: ='Planung Sport'!$K71 -> 00:00:00 | C46: ='Planung Sport'!$J71 -> Saisonziel 3 | D46: ='Planung Sport'!L71 -> 0
A47: ='Planung Sport'!$K$66 -> 2028 | B47: ='Planung Sport'!$K72 -> 00:00:00 | C47: ='Planung Sport'!$J72 -> Saisonziel 4 | D47: ='Planung Sport'!L72 -> 0
A48: ='Planung Sport'!$K$66 -> 2028 | B48: ='Planung Sport'!$K73 -> 00:00:00 | C48: ='Planung Sport'!$J73 -> Saisonziel 5 | D48: ='Planung Sport'!L73 -> 0
A49: ='Planung Sport'!$K$66 -> 2028 | B49: ='Planung Sport'!$K74 -> 00:00:00 | C49: ='Planung Sport'!$J74 -> Militärdienst Beginn | D49: ='Planung Sport'!L74 -> 0
A50: ='Planung Sport'!$K$66 -> 2028 | B50: ='Planung Sport'!$K75 -> 00:00:00 | C50: ='Planung Sport'!$J75 -> Militärdienst Ende | D50: ='Planung Sport'!L75 -> 0
A51: ='Planung Sport'!$K$76 -> 2029 | B51: ='Planung Sport'!$K79 -> 00:00:00 | C51: ='Planung Sport'!$J79 -> Saisonziel 1 | D51: ='Planung Sport'!L79 -> 0
A52: ='Planung Sport'!$K$76 -> 2029 | B52: ='Planung Sport'!$K80 -> 00:00:00 | C52: ='Planung Sport'!$J80 -> Saisonziel 2 | D52: ='Planung Sport'!L80 -> 0
A53: ='Planung Sport'!$K$76 -> 2029 | B53: ='Planung Sport'!$K81 -> 00:00:00 | C53: ='Planung Sport'!$J81 -> Saisonziel 3 | D53: ='Planung Sport'!L81 -> 0
A54: ='Planung Sport'!$K$76 -> 2029 | B54: ='Planung Sport'!$K82 -> 00:00:00 | C54: ='Planung Sport'!$J82 -> Saisonziel 4 | D54: ='Planung Sport'!L82 -> 0
A55: ='Planung Sport'!$K$76 -> 2029 | B55: ='Planung Sport'!$K83 -> 00:00:00 | C55: ='Planung Sport'!$J83 -> Saisonziel 5 | D55: ='Planung Sport'!L83 -> 0
A56: ='Planung Sport'!$K$76 -> 2029 | B56: ='Planung Sport'!$K84 -> 00:00:00 | C56: ='Planung Sport'!$J84 -> Militärdienst Beginn | D56: ='Planung Sport'!L84 -> 0
A57: ='Planung Sport'!$K$76 -> 2029 | B57: ='Planung Sport'!$K85 -> 00:00:00 | C57: ='Planung Sport'!$J85 -> Militärdienst Ende | D57: ='Planung Sport'!L85 -> 0
A58: ='Planung Sport'!$K$86 -> 2030 | B58: ='Planung Sport'!$K89 -> 00:00:00 | C58: ='Planung Sport'!$J89 -> Saisonziel 1 | D58: ='Planung Sport'!L89 -> 0
A59: ='Planung Sport'!$K$86 -> 2030 | B59: ='Planung Sport'!$K90 -> 00:00:00 | C59: ='Planung Sport'!$J90 -> Saisonziel 2 | D59: ='Planung Sport'!L90 -> 0
A60: ='Planung Sport'!$K$86 -> 2030 | B60: ='Planung Sport'!$K91 -> 00:00:00 | C60: ='Planung Sport'!$J91 -> Saisonziel 3 | D60: ='Planung Sport'!L91 -> 0
A61: ='Planung Sport'!$K$86 -> 2030 | B61: ='Planung Sport'!$K92 -> 00:00:00 | C61: ='Planung Sport'!$J92 -> Saisonziel 4 | D61: ='Planung Sport'!L92 -> 0
A62: ='Planung Sport'!$K$86 -> 2030 | B62: ='Planung Sport'!$K93 -> 00:00:00 | C62: ='Planung Sport'!$J93 -> Saisonziel 5 | D62: ='Planung Sport'!L93 -> 0
A63: ='Planung Sport'!$K$86 -> 2030 | B63: ='Planung Sport'!$K94 -> 00:00:00 | C63: ='Planung Sport'!$J94 -> Militärdienst Beginn | D63: ='Planung Sport'!L94 -> 0
A64: ='Planung Sport'!$K$86 -> 2030 | B64: ='Planung Sport'!$K95 -> 00:00:00 | C64: ='Planung Sport'!$J95 -> Militärdienst Ende | D64: ='Planung Sport'!L95 -> 0
A65: ='Planung Sport'!$K$96 -> 2031 | B65: ='Planung Sport'!$K99 -> 00:00:00 | C65: ='Planung Sport'!$J99 -> Saisonziel 1 | D65: ='Planung Sport'!L99 -> 0
A66: ='Planung Sport'!$K$96 -> 2031 | B66: ='Planung Sport'!$K100 -> 00:00:00 | C66: ='Planung Sport'!$J100 -> Saisonziel 2 | D66: ='Planung Sport'!L100 -> 0
A67: ='Planung Sport'!$K$96 -> 2031 | B67: ='Planung Sport'!$K101 -> 00:00:00 | C67: ='Planung Sport'!$J101 -> Saisonziel 3 | D67: ='Planung Sport'!L101 -> 0
A68: ='Planung Sport'!$K$96 -> 2031 | B68: ='Planung Sport'!$K102 -> 00:00:00 | C68: ='Planung Sport'!$J102 -> Saisonziel 4 | D68: ='Planung Sport'!L102 -> 0
A69: ='Planung Sport'!$K$96 -> 2031 | B69: ='Planung Sport'!$K103 -> 00:00:00 | C69: ='Planung Sport'!$J103 -> Saisonziel 5 | D69: ='Planung Sport'!L103 -> 0
A70: ='Planung Sport'!$K$96 -> 2031 | B70: ='Planung Sport'!$K104 -> 00:00:00 | C70: ='Planung Sport'!$J104 -> Militärdienst Beginn | D70: ='Planung Sport'!L104 -> 0
A71: ='Planung Sport'!$K$96 -> 2031 | B71: ='Planung Sport'!$K105 -> 00:00:00 | C71: ='Planung Sport'!$J105 -> Militärdienst Ende | D71: ='Planung Sport'!L105 -> 0
A72: ='Planung Sport'!$K$106 -> 2032 | B72: ='Planung Sport'!$K109 -> 00:00:00 | C72: ='Planung Sport'!$J109 -> Saisonziel 1 | D72: ='Planung Sport'!L109 -> 0
A73: ='Planung Sport'!$K$106 -> 2032 | B73: ='Planung Sport'!$K110 -> 00:00:00 | C73: ='Planung Sport'!$J110 -> Saisonziel 2 | D73: ='Planung Sport'!L110 -> 0
A74: ='Planung Sport'!$K$106 -> 2032 | B74: ='Planung Sport'!$K111 -> 00:00:00 | C74: ='Planung Sport'!$J111 -> Saisonziel 3 | D74: ='Planung Sport'!L111 -> 0
A75: ='Planung Sport'!$K$106 -> 2032 | B75: ='Planung Sport'!$K112 -> 00:00:00 | C75: ='Planung Sport'!$J112 -> Saisonziel 4 | D75: ='Planung Sport'!L112 -> 0
A76: ='Planung Sport'!$K$106 -> 2032 | B76: ='Planung Sport'!$K113 -> 00:00:00 | C76: ='Planung Sport'!$J113 -> Saisonziel 5 | D76: ='Planung Sport'!L113 -> 0
A77: ='Planung Sport'!$K$106 -> 2032 | B77: ='Planung Sport'!$K114 -> 00:00:00 | C77: ='Planung Sport'!$J114 -> Militärdienst Beginn | D77: ='Planung Sport'!L114 -> 0
A78: ='Planung Sport'!$K$106 -> 2032 | B78: ='Planung Sport'!$K115 -> 00:00:00 | C78: ='Planung Sport'!$J115 -> Militärdienst Ende | D78: ='Planung Sport'!L115 -> 0
A79: ='Planung Sport'!#REF! ->  | B79: ='Planung Sport'!#REF! ->  | C79: ='Planung Sport'!#REF! ->  | D79: ='Planung Sport'!#REF! -> 
A80: ='Planung Sport'!#REF! ->  | B80: ='Planung Sport'!#REF! ->  | C80: ='Planung Sport'!#REF! ->  | D80: ='Planung Sport'!#REF! -> 
A81: ='Planung Sport'!#REF! ->  | B81: ='Planung Sport'!#REF! ->  | C81: ='Planung Sport'!#REF! ->  | D81: ='Planung Sport'!#REF! -> 
A82: ='Planung Sport'!#REF! ->  | B82: ='Planung Sport'!#REF! ->  | C82: ='Planung Sport'!#REF! ->  | D82: ='Planung Sport'!#REF! -> 
A83: ='Planung Sport'!#REF! ->  | B83: ='Planung Sport'!#REF! ->  | C83: ='Planung Sport'!#REF! ->  | D83: ='Planung Sport'!#REF! -> 
A84: ='Planung Sport'!#REF! ->  | B84: ='Planung Sport'!#REF! ->  | C84: ='Planung Sport'!#REF! ->  | D84: ='Planung Sport'!#REF! -> 
A85: ='Planung Sport'!#REF! ->  | B85: ='Planung Sport'!#REF! ->  | C85: ='Planung Sport'!#REF! ->  | D85: ='Planung Sport'!#REF! -> 
A86: ='Planung Sport'!#REF! ->  | B86: ='Planung Sport'!#REF! ->  | C86: ='Planung Sport'!#REF! ->  | D86: ='Planung Sport'!#REF! -> 
A87: ='Planung Sport'!#REF! ->  | B87: ='Planung Sport'!#REF! ->  | C87: ='Planung Sport'!#REF! ->  | D87: ='Planung Sport'!#REF! -> 
A88: ='Planung Sport'!#REF! ->  | B88: ='Planung Sport'!#REF! ->  | C88: ='Planung Sport'!#REF! ->  | D88: ='Planung Sport'!#REF! -> 
A89: ='Planung Sport'!#REF! ->  | B89: ='Planung Sport'!#REF! ->  | C89: ='Planung Sport'!#REF! ->  | D89: ='Planung Sport'!#REF! -> 
A90: ='Planung Sport'!#REF! ->  | B90: ='Planung Sport'!#REF! ->  | C90: ='Planung Sport'!#REF! ->  | D90: ='Planung Sport'!#REF! -> 
A91: ='Planung Sport'!#REF! ->  | B91: ='Planung Sport'!#REF! ->  | C91: ='Planung Sport'!#REF! ->  | D91: ='Planung Sport'!#REF! -> 
A92: ='Planung Sport'!#REF! ->  | B92: ='Planung Sport'!#REF! ->  | C92: ='Planung Sport'!#REF! ->  | D92: ='Planung Sport'!#REF! -> 
A93: ='Planung Sport'!#REF! ->  | B93: ='Planung Sport'!#REF! ->  | C93: ='Planung Sport'!#REF! ->  | D93: ='Planung Sport'!#REF! -> 
A94: ='Planung Sport'!#REF! ->  | B94: ='Planung Sport'!#REF! ->  | C94: ='Planung Sport'!#REF! ->  | D94: ='Planung Sport'!#REF! -> 
A95: ='Planung Sport'!#REF! ->  | B95: ='Planung Sport'!#REF! ->  | C95: ='Planung Sport'!#REF! ->  | D95: ='Planung Sport'!#REF! -> 
A96: ='Planung Sport'!#REF! ->  | B96: ='Planung Sport'!#REF! ->  | C96: ='Planung Sport'!#REF! ->  | D96: ='Planung Sport'!#REF! -> 
A97: ='Planung Sport'!#REF! ->  | B97: ='Planung Sport'!#REF! ->  | C97: ='Planung Sport'!#REF! ->  | D97: ='Planung Sport'!#REF! -> 
A98: ='Planung Sport'!#REF! ->  | B98: ='Planung Sport'!#REF! ->  | C98: ='Planung Sport'!#REF! ->  | D98: ='Planung Sport'!#REF! -> 
A99: ='Planung Sport'!#REF! ->  | B99: ='Planung Sport'!#REF! ->  | C99: ='Planung Sport'!#REF! ->  | D99: ='Planung Sport'!#REF! -> 
A100: ='Planung Sport'!#REF! ->  | B100: ='Planung Sport'!#REF! ->  | C100: ='Planung Sport'!#REF! ->  | D100: ='Planung Sport'!#REF! -> 
A101: ='Planung Sport'!#REF! ->  | B101: ='Planung Sport'!#REF! ->  | C101: ='Planung Sport'!#REF! ->  | D101: ='Planung Sport'!#REF! -> 
A102: ='Planung Sport'!#REF! ->  | B102: ='Planung Sport'!#REF! ->  | C102: ='Planung Sport'!#REF! ->  | D102: ='Planung Sport'!#REF! -> 
A103: ='Planung Sport'!#REF! ->  | B103: ='Planung Sport'!#REF! ->  | C103: ='Planung Sport'!#REF! ->  | D103: ='Planung Sport'!#REF! -> 
A104: ='Planung Sport'!#REF! ->  | B104: ='Planung Sport'!#REF! ->  | C104: ='Planung Sport'!#REF! ->  | D104: ='Planung Sport'!#REF! -> 
A105: ='Planung Sport'!#REF! ->  | B105: ='Planung Sport'!#REF! ->  | C105: ='Planung Sport'!#REF! ->  | D105: ='Planung Sport'!#REF! -> 
A106: ='Planung Sport'!#REF! ->  | B106: ='Planung Sport'!#REF! ->  | C106: ='Planung Sport'!#REF! ->  | D106: ='Planung Sport'!#REF! -> 
A107: ='Planung Sport'!#REF! ->  | B107: ='Planung Sport'!#REF! ->  | C107: ='Planung Sport'!#REF! ->  | D107: ='Planung Sport'!#REF! -> 
A108: ='Planung Sport'!#REF! ->  | B108: ='Planung Sport'!#REF! ->  | C108: ='Planung Sport'!#REF! ->  | D108: ='Planung Sport'!#REF! -> 
A109: ='Planung Sport'!#REF! ->  | B109: ='Planung Sport'!#REF! ->  | C109: ='Planung Sport'!#REF! ->  | D109: ='Planung Sport'!#REF! -> 
A110: ='Planung Sport'!#REF! ->  | B110: ='Planung Sport'!#REF! ->  | C110: ='Planung Sport'!#REF! ->  | D110: ='Planung Sport'!#REF! -> 
A111: ='Planung Sport'!#REF! ->  | B111: ='Planung Sport'!#REF! ->  | C111: ='Planung Sport'!#REF! ->  | D111: ='Planung Sport'!#REF! -> 
A112: ='Planung Sport'!#REF! ->  | B112: ='Planung Sport'!#REF! ->  | C112: ='Planung Sport'!#REF! ->  | D112: ='Planung Sport'!#REF! -> 
A113: ='Planung Sport'!#REF! ->  | B113: ='Planung Sport'!#REF! ->  | C113: ='Planung Sport'!#REF! ->  | D113: ='Planung Sport'!#REF! -> 
A114: ='Planung Sport'!#REF! ->  | B114: ='Planung Sport'!#REF! ->  | C114: ='Planung Sport'!#REF! ->  | D114: ='Planung Sport'!#REF! -> 
A115: ='Planung Sport'!#REF! ->  | B115: ='Planung Sport'!#REF! ->  | C115: ='Planung Sport'!#REF! ->  | D115: ='Planung Sport'!#REF! -> 
A116: ='Planung Sport'!#REF! ->  | B116: ='Planung Sport'!#REF! ->  | C116: ='Planung Sport'!#REF! ->  | D116: ='Planung Sport'!#REF! -> 
A117: ='Planung Sport'!#REF! ->  | B117: ='Planung Sport'!#REF! ->  | C117: ='Planung Sport'!#REF! ->  | D117: ='Planung Sport'!#REF! -> 
A118: ='Planung Sport'!#REF! ->  | B118: ='Planung Sport'!#REF! ->  | C118: ='Planung Sport'!#REF! ->  | D118: ='Planung Sport'!#REF! -> 
A119: ='Planung Sport'!#REF! ->  | B119: ='Planung Sport'!#REF! ->  | C119: ='Planung Sport'!#REF! ->  | D119: ='Planung Sport'!#REF! -> 
A120: ='Planung Sport'!#REF! ->  | B120: ='Planung Sport'!#REF! ->  | C120: ='Planung Sport'!#REF! ->  | D120: ='Planung Sport'!#REF! -> 
A121: ='Planung Sport'!#REF! ->  | B121: ='Planung Sport'!#REF! ->  | C121: ='Planung Sport'!#REF! ->  | D121: ='Planung Sport'!#REF! -> 
A122: ='Planung Sport'!#REF! ->  | B122: ='Planung Sport'!#REF! ->  | C122: ='Planung Sport'!#REF! ->  | D122: ='Planung Sport'!#REF! -> 
A123: ='Planung Sport'!#REF! ->  | B123: ='Planung Sport'!#REF! ->  | C123: ='Planung Sport'!#REF! ->  | D123: ='Planung Sport'!#REF! -> 
A124: ='Planung Sport'!#REF! ->  | B124: ='Planung Sport'!#REF! ->  | C124: ='Planung Sport'!#REF! ->  | D124: ='Planung Sport'!#REF! -> 
A125: ='Planung Sport'!#REF! ->  | B125: ='Planung Sport'!#REF! ->  | C125: ='Planung Sport'!#REF! ->  | D125: ='Planung Sport'!#REF! -> 
A126: ='Planung Sport'!#REF! ->  | B126: ='Planung Sport'!#REF! ->  | C126: ='Planung Sport'!#REF! ->  | D126: ='Planung Sport'!#REF! -> 
A127: ='Planung Sport'!#REF! ->  | B127: ='Planung Sport'!#REF! ->  | C127: ='Planung Sport'!#REF! ->  | D127: ='Planung Sport'!#REF! -> 
A128: ='Planung Sport'!#REF! ->  | B128: ='Planung Sport'!#REF! ->  | C128: ='Planung Sport'!#REF! ->  | D128: ='Planung Sport'!#REF! -> 
A129: ='Planung Sport'!#REF! ->  | B129: ='Planung Sport'!#REF! ->  | C129: ='Planung Sport'!#REF! ->  | D129: ='Planung Sport'!#REF! -> 
A130: ='Planung Sport'!#REF! ->  | B130: ='Planung Sport'!#REF! ->  | C130: ='Planung Sport'!#REF! ->  | D130: ='Planung Sport'!#REF! -> 
A131: ='Planung Sport'!#REF! ->  | B131: ='Planung Sport'!#REF! ->  | C131: ='Planung Sport'!#REF! ->  | D131: ='Planung Sport'!#REF! -> 
A132: ='Planung Sport'!#REF! ->  | B132: ='Planung Sport'!#REF! ->  | C132: ='Planung Sport'!#REF! ->  | D132: ='Planung Sport'!#REF! -> 
A133: ='Planung Sport'!#REF! ->  | B133: ='Planung Sport'!#REF! ->  | C133: ='Planung Sport'!#REF! ->  | D133: ='Planung Sport'!#REF! -> 
A134: ='Planung Sport'!#REF! ->  | B134: ='Planung Sport'!#REF! ->  | C134: ='Planung Sport'!#REF! ->  | D134: ='Planung Sport'!#REF! -> 
A135: ='Planung Sport'!#REF! ->  | B135: ='Planung Sport'!#REF! ->  | C135: ='Planung Sport'!#REF! ->  | D135: ='Planung Sport'!#REF! -> 
A136: ='Planung Sport'!#REF! ->  | B136: ='Planung Sport'!#REF! ->  | C136: ='Planung Sport'!#REF! ->  | D136: ='Planung Sport'!#REF! -> 
A137: ='Planung Sport'!#REF! ->  | B137: ='Planung Sport'!#REF! ->  | C137: ='Planung Sport'!#REF! ->  | D137: ='Planung Sport'!#REF! -> 
A138: ='Planung Sport'!#REF! ->  | B138: ='Planung Sport'!#REF! ->  | C138: ='Planung Sport'!#REF! ->  | D138: ='Planung Sport'!#REF! -> 
A139: ='Planung Sport'!#REF! ->  | B139: ='Planung Sport'!#REF! ->  | C139: ='Planung Sport'!#REF! ->  | D139: ='Planung Sport'!#REF! -> 
A140: ='Planung Sport'!#REF! ->  | B140: ='Planung Sport'!#REF! ->  | C140: ='Planung Sport'!#REF! ->  | D140: ='Planung Sport'!#REF! -> 
A141: ='Planung Sport'!#REF! ->  | B141: ='Planung Sport'!#REF! ->  | C141: ='Planung Sport'!#REF! ->  | D141: ='Planung Sport'!#REF! -> 
A142: ='Planung Sport'!#REF! ->  | B142: ='Planung Sport'!#REF! ->  | C142: ='Planung Sport'!#REF! ->  | D142: ='Planung Sport'!#REF! -> 
A143: ='Planung Sport'!#REF! ->  | B143: ='Planung Sport'!#REF! ->  | C143: ='Planung Sport'!#REF! ->  | D143: ='Planung Sport'!#REF! -> 
A144: ='Planung Sport'!#REF! ->  | B144: ='Planung Sport'!#REF! ->  | C144: ='Planung Sport'!#REF! ->  | D144: ='Planung Sport'!#REF! -> 
A145: ='Planung Sport'!#REF! ->  | B145: ='Planung Sport'!#REF! ->  | C145: ='Planung Sport'!#REF! ->  | D145: ='Planung Sport'!#REF! -> 
A146: ='Planung Sport'!#REF! ->  | B146: ='Planung Sport'!#REF! ->  | C146: ='Planung Sport'!#REF! ->  | D146: ='Planung Sport'!#REF! -> 
A147: ='Planung Sport'!#REF! ->  | B147: ='Planung Sport'!#REF! ->  | C147: ='Planung Sport'!#REF! ->  | D147: ='Planung Sport'!#REF! -> 
A148: ='Planung Sport'!#REF! ->  | B148: ='Planung Sport'!#REF! ->  | C148: ='Planung Sport'!#REF! ->  | D148: ='Planung Sport'!#REF! -> 

Sheet Hilfstabelle Sport Grobplan (hidden)
A1: Jahr | B1: Beschreibung Einheit/Umfang/Schwerpunkt | C1: Einheiten/Umfang/Schwerpunkt
A2: ='Planung Sport'!$B$6 -> 2022 | B2: ='Planung Sport'!$Q8 -> Anz. Trainingseinheiten pro Woche | C2: ='Planung Sport'!$R8 -> 0
A3: ='Planung Sport'!$B$6 -> 2022 | B3: ='Planung Sport'!$Q10 -> Trainingsumfang (h/W) | C3: ='Planung Sport'!$R10 -> 0
A4: ='Planung Sport'!$B$6 -> 2022 | B4: ='Planung Sport'!$Q12 -> Trainingsschwerpunkte | C4: ='Planung Sport'!$R12 -> 0
A5: ='Planung Sport'!$B$16 -> 2023 | B5: ='Planung Sport'!$Q18 -> Anz. Trainingseinheiten pro Woche | C5: ='Planung Sport'!$R18 -> 0
A6: ='Planung Sport'!$B$16 -> 2023 | B6: ='Planung Sport'!$Q20 -> Trainingsumfang (h/W) | C6: ='Planung Sport'!$R20 -> 0
A7: ='Planung Sport'!$B$16 -> 2023 | B7: ='Planung Sport'!$Q22 -> Trainingsschwerpunkte | C7: ='Planung Sport'!$R22 -> 0
A8: ='Planung Sport'!$B$26 -> 2024 | B8: ='Planung Sport'!$Q28 -> Anz. Trainingseinheiten pro Woche | C8: ='Planung Sport'!$R28 -> 0
A9: ='Planung Sport'!$B$26 -> 2024 | B9: ='Planung Sport'!$Q30 -> Trainingsumfang (h/W) | C9: ='Planung Sport'!$R30 -> 0
A10: ='Planung Sport'!$B$26 -> 2024 | B10: ='Planung Sport'!$Q32 -> Trainingsschwerpunkte | C10: ='Planung Sport'!$R32 -> 0
A11: ='Planung Sport'!$B$36 -> 2025 | B11: ='Planung Sport'!$Q38 -> Anz. Trainingseinheiten pro Woche | C11: ='Planung Sport'!$R38 -> 0
A12: ='Planung Sport'!$B$36 -> 2025 | B12: ='Planung Sport'!$Q40 -> Trainingsumfang (h/W) | C12: ='Planung Sport'!$R40 -> 0
A13: ='Planung Sport'!$B$36 -> 2025 | B13: ='Planung Sport'!$Q42 -> Trainingsschwerpunkte | C13: ='Planung Sport'!$R42 -> 0
A14: ='Planung Sport'!$B$46 -> 2026 | B14: ='Planung Sport'!$Q48 -> Anz. Trainingseinheiten pro Woche | C14: ='Planung Sport'!$R48 -> 0
A15: ='Planung Sport'!$B$46 -> 2026 | B15: ='Planung Sport'!$Q50 -> Trainingsumfang (h/W) | C15: ='Planung Sport'!$R50 -> 0
A16: ='Planung Sport'!$B$46 -> 2026 | B16: ='Planung Sport'!$Q52 -> Trainingsschwerpunkte | C16: ='Planung Sport'!$R52 -> 0
A17: ='Planung Sport'!$B$56 -> 2027 | B17: ='Planung Sport'!$Q58 -> Anz. Trainingseinheiten pro Woche | C17: ='Planung Sport'!$R58 -> 0
A18: ='Planung Sport'!$B$56 -> 2027 | B18: ='Planung Sport'!$Q60 -> Trainingsumfang (h/W) | C18: ='Planung Sport'!$R60 -> 0
A19: ='Planung Sport'!$B$56 -> 2027 | B19: ='Planung Sport'!$Q62 -> Trainingsschwerpunkte | C19: ='Planung Sport'!$R62 -> 0
A20: ='Planung Sport'!$B$66 -> 2028 | B20: ='Planung Sport'!$Q68 -> Anz. Trainingseinheiten pro Woche | C20: ='Planung Sport'!$R68 -> 0
A21: ='Planung Sport'!$B$66 -> 2028 | B21: ='Planung Sport'!$Q70 -> Trainingsumfang (h/W) | C21: ='Planung Sport'!$R70 -> 0
A22: ='Planung Sport'!$B$66 -> 2028 | B22: ='Planung Sport'!$Q72 -> Trainingsschwerpunkte | C22: ='Planung Sport'!$R72 -> 0
A23: ='Planung Sport'!$B$76 -> 2029 | B23: ='Planung Sport'!$Q78 -> Anz. Trainingseinheiten pro Woche | C23: ='Planung Sport'!$R78 -> 0
A24: ='Planung Sport'!$B$76 -> 2029 | B24: ='Planung Sport'!$Q80 -> Trainingsumfang (h/W) | C24: ='Planung Sport'!$R80 -> 0
A25: ='Planung Sport'!$B$76 -> 2029 | B25: ='Planung Sport'!$Q82 -> Trainingsschwerpunkte | C25: ='Planung Sport'!$R82 -> 0
A26: ='Planung Sport'!$B$86 -> 2030 | B26: ='Planung Sport'!$Q88 -> Anz. Trainingseinheiten pro Woche | C26: ='Planung Sport'!$R88 -> 0
A27: ='Planung Sport'!$B$86 -> 2030 | B27: ='Planung Sport'!$Q90 -> Trainingsumfang (h/W) | C27: ='Planung Sport'!$R90 -> 0
A28: ='Planung Sport'!$B$86 -> 2030 | B28: ='Planung Sport'!$Q92 -> Trainingsschwerpunkte | C28: ='Planung Sport'!$R92 -> 0
A29: ='Planung Sport'!$B$96 -> 2031 | B29: ='Planung Sport'!$Q98 -> Anz. Trainingseinheiten pro Woche | C29: ='Planung Sport'!$R98 -> 0
A30: ='Planung Sport'!$B$96 -> 2031 | B30: ='Planung Sport'!$Q100 -> Trainingsumfang (h/W) | C30: ='Planung Sport'!$R100 -> 0
A31: ='Planung Sport'!$B$96 -> 2031 | B31: ='Planung Sport'!$Q102 -> Trainingsschwerpunkte | C31: ='Planung Sport'!$R102 -> 0
A32: ='Planung Sport'!$B$106 -> 2032 | B32: ='Planung Sport'!$Q108 -> Anz. Trainingseinheiten pro Woche | C32: ='Planung Sport'!$R108 -> 0
A33: ='Planung Sport'!$B$106 -> 2032 | B33: ='Planung Sport'!$Q110 -> Trainingsumfang (h/W) | C33: ='Planung Sport'!$R110 -> 0
A34: ='Planung Sport'!$B$106 -> 2032 | B34: ='Planung Sport'!$Q112 -> Trainingsschwer-punkte | C34: ='Planung Sport'!$R112 -> 0
A35: ='Planung Sport'!#REF! ->  | B35: ='Planung Sport'!#REF! ->  | C35: ='Planung Sport'!#REF! -> 
A36: ='Planung Sport'!#REF! ->  | B36: ='Planung Sport'!#REF! ->  | C36: ='Planung Sport'!#REF! -> 
A37: ='Planung Sport'!#REF! ->  | B37: ='Planung Sport'!#REF! ->  | C37: ='Planung Sport'!#REF! -> 
A38: ='Planung Sport'!#REF! ->  | B38: ='Planung Sport'!#REF! ->  | C38: ='Planung Sport'!#REF! -> 
A39: ='Planung Sport'!#REF! ->  | B39: ='Planung Sport'!#REF! ->  | C39: ='Planung Sport'!#REF! -> 
A40: ='Planung Sport'!#REF! ->  | B40: ='Planung Sport'!#REF! ->  | C40: ='Planung Sport'!#REF! -> 
A41: ='Planung Sport'!#REF! ->  | B41: ='Planung Sport'!#REF! ->  | C41: ='Planung Sport'!#REF! -> 
A42: ='Planung Sport'!#REF! ->  | B42: ='Planung Sport'!#REF! ->  | C42: ='Planung Sport'!#REF! -> 
A43: ='Planung Sport'!#REF! ->  | B43: ='Planung Sport'!#REF! ->  | C43: ='Planung Sport'!#REF! -> 
A44: ='Planung Sport'!#REF! ->  | B44: ='Planung Sport'!#REF! ->  | C44: ='Planung Sport'!#REF! -> 
A45: ='Planung Sport'!#REF! ->  | B45: ='Planung Sport'!#REF! ->  | C45: ='Planung Sport'!#REF! -> 
A46: ='Planung Sport'!#REF! ->  | B46: ='Planung Sport'!#REF! ->  | C46: ='Planung Sport'!#REF! -> 
A47: ='Planung Sport'!#REF! ->  | B47: ='Planung Sport'!#REF! ->  | C47: ='Planung Sport'!#REF! -> 
A48: ='Planung Sport'!#REF! ->  | B48: ='Planung Sport'!#REF! ->  | C48: ='Planung Sport'!#REF! -> 
A49: ='Planung Sport'!#REF! ->  | B49: ='Planung Sport'!#REF! ->  | C49: ='Planung Sport'!#REF! -> 
A50: ='Planung Sport'!#REF! ->  | B50: ='Planung Sport'!#REF! ->  | C50: ='Planung Sport'!#REF! -> 
A51: ='Planung Sport'!#REF! ->  | B51: ='Planung Sport'!#REF! ->  | C51: ='Planung Sport'!#REF! -> 
A52: ='Planung Sport'!#REF! ->  | B52: ='Planung Sport'!#REF! ->  | C52: ='Planung Sport'!#REF! -> 
A53: ='Planung Sport'!#REF! ->  | B53: ='Planung Sport'!#REF! ->  | C53: ='Planung Sport'!#REF! -> 
A54: ='Planung Sport'!#REF! ->  | B54: ='Planung Sport'!#REF! ->  | C54: ='Planung Sport'!#REF! -> 
A55: ='Planung Sport'!#REF! ->  | B55: ='Planung Sport'!#REF! ->  | C55: ='Planung Sport'!#REF! -> 
A56: ='Planung Sport'!#REF! ->  | B56: ='Planung Sport'!#REF! ->  | C56: ='Planung Sport'!#REF! -> 
A57: ='Planung Sport'!#REF! ->  | B57: ='Planung Sport'!#REF! ->  | C57: ='Planung Sport'!#REF! -> 
A58: ='Planung Sport'!#REF! ->  | B58: ='Planung Sport'!#REF! ->  | C58: ='Planung Sport'!#REF! -> 
A59: ='Planung Sport'!#REF! ->  | B59: ='Planung Sport'!#REF! ->  | C59: ='Planung Sport'!#REF! -> 
A60: ='Planung Sport'!#REF! ->  | B60: ='Planung Sport'!#REF! ->  | C60: ='Planung Sport'!#REF! -> 
A61: ='Planung Sport'!#REF! ->  | B61: ='Planung Sport'!#REF! ->  | C61: ='Planung Sport'!#REF! -> 
A62: ='Planung Sport'!#REF! ->  | B62: ='Planung Sport'!#REF! ->  | C62: ='Planung Sport'!#REF! -> 
A63: ='Planung Sport'!#REF! ->  | B63: ='Planung Sport'!#REF! ->  | C63: ='Planung Sport'!#REF! -> 
A64: ='Planung Sport'!#REF! ->  | B64: ='Planung Sport'!#REF! ->  | C64: ='Planung Sport'!#REF! -> 

Sheet Hilfstabelle Schule Ausbildung (hidden)
A1: Jahr | B1: Ausbildung
A2: ='Planung Ausbildung'!$K$6 -> 2022 | B2: ='Planung Ausbildung'!$B8 -> 0
A3: ='Planung Ausbildung'!$K$14 -> 2023 | B3: ='Planung Ausbildung'!$B16 -> 0
A4: ='Planung Ausbildung'!$K$22 -> 2024 | B4: ='Planung Ausbildung'!$B24 -> 0
A5: ='Planung Ausbildung'!$K$30 -> 2025 | B5: ='Planung Ausbildung'!$B32 -> 0
A6: ='Planung Ausbildung'!$K$38 -> 2026 | B6: ='Planung Ausbildung'!$B40 -> 0
A7: ='Planung Ausbildung'!$K$46 -> 2027 | B7: ='Planung Ausbildung'!$B48 -> 0
A8: ='Planung Ausbildung'!$K$54 -> 2028 | B8: ='Planung Ausbildung'!$B56 -> 0
A9: ='Planung Ausbildung'!$K$62 -> 2029 | B9: ='Planung Ausbildung'!$B64 -> 0
A10: ='Planung Ausbildung'!$K$70 -> 2030 | B10: ='Planung Ausbildung'!$B72 -> 0
A11: ='Planung Ausbildung'!$K$78 -> 2031 | B11: ='Planung Ausbildung'!$B80 -> 0
A12: ='Planung Ausbildung'!$K$86 -> 2032 | B12: ='Planung Ausbildung'!$B88 -> 0
A13: ='Planung Ausbildung'!#REF! ->  | B13: ='Planung Ausbildung'!#REF! -> 
A14: ='Planung Ausbildung'!#REF! ->  | B14: ='Planung Ausbildung'!#REF! -> 
A15: ='Planung Ausbildung'!#REF! ->  | B15: ='Planung Ausbildung'!#REF! -> 
A16: ='Planung Ausbildung'!#REF! ->  | B16: ='Planung Ausbildung'!#REF! -> 
A17: ='Planung Ausbildung'!#REF! ->  | B17: ='Planung Ausbildung'!#REF! -> 
A18: ='Planung Ausbildung'!#REF! ->  | B18: ='Planung Ausbildung'!#REF! -> 
A19: ='Planung Ausbildung'!#REF! ->  | B19: ='Planung Ausbildung'!#REF! -> 
A20: ='Planung Ausbildung'!#REF! ->  | B20: ='Planung Ausbildung'!#REF! -> 
A21: ='Planung Ausbildung'!#REF! ->  | B21: ='Planung Ausbildung'!#REF! -> 
A22: ='Planung Ausbildung'!#REF! ->  | B22: ='Planung Ausbildung'!#REF! -> 

Sheet Hilfstabelle Schule Meilenstein (hidden)
A1: Jahr | B1: Datum | C1: Meilenstein Bezeichnung | D1: Meilenstein
A2: ='Planung Ausbildung'!$K$6 -> 2022 | B2: ='Planung Ausbildung'!$K9 -> 00:00:00 | C2: ='Planung Ausbildung'!$J9 -> Termin 1 | D2: ='Planung Ausbildung'!$L9 -> 0
A3: ='Planung Ausbildung'!$K$6 -> 2022 | B3: ='Planung Ausbildung'!$K10 -> 00:00:00 | C3: ='Planung Ausbildung'!$J10 -> Termin 2 | D3: ='Planung Ausbildung'!$L10 -> 0
A4: ='Planung Ausbildung'!$K$6 -> 2022 | B4: ='Planung Ausbildung'!$K11 -> 00:00:00 | C4: ='Planung Ausbildung'!$J11 -> Termin 3 | D4: ='Planung Ausbildung'!$L11 -> 0
A5: ='Planung Ausbildung'!$K$6 -> 2022 | B5: ='Planung Ausbildung'!$K12 -> 00:00:00 | C5: ='Planung Ausbildung'!$J12 -> Termin 4 | D5: ='Planung Ausbildung'!$L12 -> 0
A6: ='Planung Ausbildung'!$K$6 -> 2022 | B6: ='Planung Ausbildung'!$K13 -> 00:00:00 | C6: ='Planung Ausbildung'!$J13 -> Termin 5 | D6: ='Planung Ausbildung'!$L13 -> 0
A7: ='Planung Ausbildung'!$K$14 -> 2023 | B7: ='Planung Ausbildung'!$K17 -> 00:00:00 | C7: ='Planung Ausbildung'!$J17 -> Termin 1 | D7: ='Planung Ausbildung'!$L17 -> 0
A8: ='Planung Ausbildung'!$K$14 -> 2023 | B8: ='Planung Ausbildung'!$K18 -> 00:00:00 | C8: ='Planung Ausbildung'!$J18 -> Termin 2 | D8: ='Planung Ausbildung'!$L18 -> 0
A9: ='Planung Ausbildung'!$K$14 -> 2023 | B9: ='Planung Ausbildung'!$K19 -> 00:00:00 | C9: ='Planung Ausbildung'!$J19 -> Termin 3 | D9: ='Planung Ausbildung'!$L19 -> 0
A10: ='Planung Ausbildung'!$K$14 -> 2023 | B10: ='Planung Ausbildung'!$K20 -> 00:00:00 | C10: ='Planung Ausbildung'!$J20 -> Termin 4 | D10: ='Planung Ausbildung'!$L20 -> 0
A11: ='Planung Ausbildung'!$K$14 -> 2023 | B11: ='Planung Ausbildung'!$K21 -> 00:00:00 | C11: ='Planung Ausbildung'!$J21 -> Termin 5 | D11: ='Planung Ausbildung'!$L21 -> 0
A12: ='Planung Ausbildung'!$K$22 -> 2024 | B12: ='Planung Ausbildung'!$K25 -> 00:00:00 | C12: ='Planung Ausbildung'!$J25 -> Termin 1 | D12: ='Planung Ausbildung'!$L25 -> 0
A13: ='Planung Ausbildung'!$K$22 -> 2024 | B13: ='Planung Ausbildung'!$K26 -> 00:00:00 | C13: ='Planung Ausbildung'!$J26 -> Termin 2 | D13: ='Planung Ausbildung'!$L26 -> 0
A14: ='Planung Ausbildung'!$K$22 -> 2024 | B14: ='Planung Ausbildung'!$K27 -> 00:00:00 | C14: ='Planung Ausbildung'!$J27 -> Termin 3 | D14: ='Planung Ausbildung'!$L27 -> 0
A15: ='Planung Ausbildung'!$K$22 -> 2024 | B15: ='Planung Ausbildung'!$K28 -> 00:00:00 | C15: ='Planung Ausbildung'!$J28 -> Termin 4 | D15: ='Planung Ausbildung'!$L28 -> 0
A16: ='Planung Ausbildung'!$K$22 -> 2024 | B16: ='Planung Ausbildung'!$K29 -> 00:00:00 | C16: ='Planung Ausbildung'!$J29 -> Termin 5 | D16: ='Planung Ausbildung'!$L29 -> 0
A17: ='Planung Ausbildung'!$K$30 -> 2025 | B17: ='Planung Ausbildung'!$K33 -> 00:00:00 | C17: ='Planung Ausbildung'!$J33 -> Termin 1 | D17: ='Planung Ausbildung'!$L33 -> 0
A18: ='Planung Ausbildung'!$K$30 -> 2025 | B18: ='Planung Ausbildung'!$K34 -> 00:00:00 | C18: ='Planung Ausbildung'!$J34 -> Termin 2 | D18: ='Planung Ausbildung'!$L34 -> 0
A19: ='Planung Ausbildung'!$K$30 -> 2025 | B19: ='Planung Ausbildung'!$K35 -> 00:00:00 | C19: ='Planung Ausbildung'!$J35 -> Termin 3 | D19: ='Planung Ausbildung'!$L35 -> 0
A20: ='Planung Ausbildung'!$K$30 -> 2025 | B20: ='Planung Ausbildung'!$K36 -> 00:00:00 | C20: ='Planung Ausbildung'!$J36 -> Termin 4 | D20: ='Planung Ausbildung'!$L36 -> 0
A21: ='Planung Ausbildung'!$K$30 -> 2025 | B21: ='Planung Ausbildung'!$K37 -> 00:00:00 | C21: ='Planung Ausbildung'!$J37 -> Termin 5 | D21: ='Planung Ausbildung'!$L37 -> 0
A22: ='Planung Ausbildung'!$K$38 -> 2026 | B22: ='Planung Ausbildung'!$K41 -> 00:00:00 | C22: ='Planung Ausbildung'!$J41 -> Termin 1 | D22: ='Planung Ausbildung'!$L41 -> 0
A23: ='Planung Ausbildung'!$K$38 -> 2026 | B23: ='Planung Ausbildung'!$K42 -> 00:00:00 | C23: ='Planung Ausbildung'!$J42 -> Termin 2 | D23: ='Planung Ausbildung'!$L42 -> 0
A24: ='Planung Ausbildung'!$K$38 -> 2026 | B24: ='Planung Ausbildung'!$K43 -> 00:00:00 | C24: ='Planung Ausbildung'!$J43 -> Termin 3 | D24: ='Planung Ausbildung'!$L43 -> 0
A25: ='Planung Ausbildung'!$K$38 -> 2026 | B25: ='Planung Ausbildung'!$K44 -> 00:00:00 | C25: ='Planung Ausbildung'!$J44 -> Termin 4 | D25: ='Planung Ausbildung'!$L44 -> 0
A26: ='Planung Ausbildung'!$K$38 -> 2026 | B26: ='Planung Ausbildung'!$K45 -> 00:00:00 | C26: ='Planung Ausbildung'!$J45 -> Termin 5 | D26: ='Planung Ausbildung'!$L45 -> 0
A27: ='Planung Ausbildung'!$K$46 -> 2027 | B27: ='Planung Ausbildung'!$K49 -> 00:00:00 | C27: ='Planung Ausbildung'!$J49 -> Termin 1 | D27: ='Planung Ausbildung'!$L49 -> 0
A28: ='Planung Ausbildung'!$K$46 -> 2027 | B28: ='Planung Ausbildung'!$K50 -> 00:00:00 | C28: ='Planung Ausbildung'!$J50 -> Termin 2 | D28: ='Planung Ausbildung'!$L50 -> 0
A29: ='Planung Ausbildung'!$K$46 -> 2027 | B29: ='Planung Ausbildung'!$K51 -> 00:00:00 | C29: ='Planung Ausbildung'!$J51 -> Termin 3 | D29: ='Planung Ausbildung'!$L51 -> 0
A30: ='Planung Ausbildung'!$K$46 -> 2027 | B30: ='Planung Ausbildung'!$K52 -> 00:00:00 | C30: ='Planung Ausbildung'!$J52 -> Termin 4 | D30: ='Planung Ausbildung'!$L52 -> 0
A31: ='Planung Ausbildung'!$K$46 -> 2027 | B31: ='Planung Ausbildung'!$K53 -> 00:00:00 | C31: ='Planung Ausbildung'!$J53 -> Termin 5 | D31: ='Planung Ausbildung'!$L53 -> 0
A32: ='Planung Ausbildung'!$K$54 -> 2028 | B32: ='Planung Ausbildung'!$K57 -> 00:00:00 | C32: ='Planung Ausbildung'!$J57 -> Termin 1 | D32: ='Planung Ausbildung'!$L57 -> 0
A33: ='Planung Ausbildung'!$K$54 -> 2028 | B33: ='Planung Ausbildung'!$K58 -> 00:00:00 | C33: ='Planung Ausbildung'!$J58 -> Termin 2 | D33: ='Planung Ausbildung'!$L58 -> 0
A34: ='Planung Ausbildung'!$K$54 -> 2028 | B34: ='Planung Ausbildung'!$K59 -> 00:00:00 | C34: ='Planung Ausbildung'!$J59 -> Termin 3 | D34: ='Planung Ausbildung'!$L59 -> 0
A35: ='Planung Ausbildung'!$K$54 -> 2028 | B35: ='Planung Ausbildung'!$K60 -> 00:00:00 | C35: ='Planung Ausbildung'!$J60 -> Termin 4 | D35: ='Planung Ausbildung'!$L60 -> 0
A36: ='Planung Ausbildung'!$K$54 -> 2028 | B36: ='Planung Ausbildung'!$K61 -> 00:00:00 | C36: ='Planung Ausbildung'!$J61 -> Termin 5 | D36: ='Planung Ausbildung'!$L61 -> 0
A37: ='Planung Ausbildung'!$K$62 -> 2029 | B37: ='Planung Ausbildung'!$K65 -> 00:00:00 | C37: ='Planung Ausbildung'!$J65 -> Termin 1 | D37: ='Planung Ausbildung'!$L65 -> 0
A38: ='Planung Ausbildung'!$K$62 -> 2029 | B38: ='Planung Ausbildung'!$K66 -> 00:00:00 | C38: ='Planung Ausbildung'!$J66 -> Termin 2 | D38: ='Planung Ausbildung'!$L66 -> 0
A39: ='Planung Ausbildung'!$K$62 -> 2029 | B39: ='Planung Ausbildung'!$K67 -> 00:00:00 | C39: ='Planung Ausbildung'!$J67 -> Termin 3 | D39: ='Planung Ausbildung'!$L67 -> 0
A40: ='Planung Ausbildung'!$K$62 -> 2029 | B40: ='Planung Ausbildung'!$K68 -> 00:00:00 | C40: ='Planung Ausbildung'!$J68 -> Termin 4 | D40: ='Planung Ausbildung'!$L68 -> 0
A41: ='Planung Ausbildung'!$K$62 -> 2029 | B41: ='Planung Ausbildung'!$K69 -> 00:00:00 | C41: ='Planung Ausbildung'!$J69 -> Termin 5 | D41: ='Planung Ausbildung'!$L69 -> 0
A42: ='Planung Ausbildung'!$K$70 -> 2030 | B42: ='Planung Ausbildung'!$K73 -> 00:00:00 | C42: ='Planung Ausbildung'!$J73 -> Termin 1 | D42: ='Planung Ausbildung'!$L73 -> 0
A43: ='Planung Ausbildung'!$K$70 -> 2030 | B43: ='Planung Ausbildung'!$K74 -> 00:00:00 | C43: ='Planung Ausbildung'!$J74 -> Termin 2 | D43: ='Planung Ausbildung'!$L74 -> 0
A44: ='Planung Ausbildung'!$K$70 -> 2030 | B44: ='Planung Ausbildung'!$K75 -> 00:00:00 | C44: ='Planung Ausbildung'!$J75 -> Termin 3 | D44: ='Planung Ausbildung'!$L75 -> 0
A45: ='Planung Ausbildung'!$K$70 -> 2030 | B45: ='Planung Ausbildung'!$K76 -> 00:00:00 | C45: ='Planung Ausbildung'!$J76 -> Termin 4 | D45: ='Planung Ausbildung'!$L76 -> 0
A46: ='Planung Ausbildung'!$K$70 -> 2030 | B46: ='Planung Ausbildung'!$K77 -> 00:00:00 | C46: ='Planung Ausbildung'!$J77 -> Termin 5 | D46: ='Planung Ausbildung'!$L77 -> 0
A47: ='Planung Ausbildung'!$K$78 -> 2031 | B47: ='Planung Ausbildung'!$K81 -> 00:00:00 | C47: ='Planung Ausbildung'!$J81 -> Termin 1 | D47: ='Planung Ausbildung'!$L81 -> 0
A48: ='Planung Ausbildung'!$K$78 -> 2031 | B48: ='Planung Ausbildung'!$K82 -> 00:00:00 | C48: ='Planung Ausbildung'!$J82 -> Termin 2 | D48: ='Planung Ausbildung'!$L82 -> 0
A49: ='Planung Ausbildung'!$K$78 -> 2031 | B49: ='Planung Ausbildung'!$K83 -> 00:00:00 | C49: ='Planung Ausbildung'!$J83 -> Termin 3 | D49: ='Planung Ausbildung'!$L83 -> 0
A50: ='Planung Ausbildung'!$K$78 -> 2031 | B50: ='Planung Ausbildung'!$K84 -> 00:00:00 | C50: ='Planung Ausbildung'!$J84 -> Termin 4 | D50: ='Planung Ausbildung'!$L84 -> 0
A51: ='Planung Ausbildung'!$K$78 -> 2031 | B51: ='Planung Ausbildung'!$K85 -> 00:00:00 | C51: ='Planung Ausbildung'!$J85 -> Termin 5 | D51: ='Planung Ausbildung'!$L85 -> 0
A52: ='Planung Ausbildung'!$K$86 -> 2032 | B52: ='Planung Ausbildung'!$K89 -> 00:00:00 | C52: ='Planung Ausbildung'!$J89 -> Termin 1 | D52: ='Planung Ausbildung'!$L89 -> 0
A53: ='Planung Ausbildung'!$K$86 -> 2032 | B53: ='Planung Ausbildung'!$K90 -> 00:00:00 | C53: ='Planung Ausbildung'!$J90 -> Termin 2 | D53: ='Planung Ausbildung'!$L90 -> 0
A54: ='Planung Ausbildung'!$K$86 -> 2032 | B54: ='Planung Ausbildung'!$K91 -> 00:00:00 | C54: ='Planung Ausbildung'!$J91 -> Termin 3 | D54: ='Planung Ausbildung'!$L91 -> 0
A55: ='Planung Ausbildung'!$K$86 -> 2032 | B55: ='Planung Ausbildung'!$K92 -> 00:00:00 | C55: ='Planung Ausbildung'!$J92 -> Termin 4 | D55: ='Planung Ausbildung'!$L92 -> 0
A56: ='Planung Ausbildung'!$K$86 -> 2032 | B56: ='Planung Ausbildung'!$K93 -> 00:00:00 | C56: ='Planung Ausbildung'!$J93 -> Termin 5 | D56: ='Planung Ausbildung'!$L93 -> 0
A57: ='Planung Ausbildung'!#REF! ->  | B57: ='Planung Ausbildung'!#REF! ->  | C57: ='Planung Ausbildung'!#REF! ->  | D57: ='Planung Ausbildung'!#REF! -> 
A58: ='Planung Ausbildung'!#REF! ->  | B58: ='Planung Ausbildung'!#REF! ->  | C58: ='Planung Ausbildung'!#REF! ->  | D58: ='Planung Ausbildung'!#REF! -> 
A59: ='Planung Ausbildung'!#REF! ->  | B59: ='Planung Ausbildung'!#REF! ->  | C59: ='Planung Ausbildung'!#REF! ->  | D59: ='Planung Ausbildung'!#REF! -> 
A60: ='Planung Ausbildung'!#REF! ->  | B60: ='Planung Ausbildung'!#REF! ->  | C60: ='Planung Ausbildung'!#REF! ->  | D60: ='Planung Ausbildung'!#REF! -> 
A61: ='Planung Ausbildung'!#REF! ->  | B61: ='Planung Ausbildung'!#REF! ->  | C61: ='Planung Ausbildung'!#REF! ->  | D61: ='Planung Ausbildung'!#REF! -> 
A62: ='Planung Ausbildung'!#REF! ->  | B62: ='Planung Ausbildung'!#REF! ->  | C62: ='Planung Ausbildung'!#REF! ->  | D62: ='Planung Ausbildung'!#REF! -> 
A63: ='Planung Ausbildung'!#REF! ->  | B63: ='Planung Ausbildung'!#REF! ->  | C63: ='Planung Ausbildung'!#REF! ->  | D63: ='Planung Ausbildung'!#REF! -> 
A64: ='Planung Ausbildung'!#REF! ->  | B64: ='Planung Ausbildung'!#REF! ->  | C64: ='Planung Ausbildung'!#REF! ->  | D64: ='Planung Ausbildung'!#REF! -> 
A65: ='Planung Ausbildung'!#REF! ->  | B65: ='Planung Ausbildung'!#REF! ->  | C65: ='Planung Ausbildung'!#REF! ->  | D65: ='Planung Ausbildung'!#REF! -> 
A66: ='Planung Ausbildung'!#REF! ->  | B66: ='Planung Ausbildung'!#REF! ->  | C66: ='Planung Ausbildung'!#REF! ->  | D66: ='Planung Ausbildung'!#REF! -> 
A67: ='Planung Ausbildung'!#REF! ->  | B67: ='Planung Ausbildung'!#REF! ->  | C67: ='Planung Ausbildung'!#REF! ->  | D67: ='Planung Ausbildung'!#REF! -> 
A68: ='Planung Ausbildung'!#REF! ->  | B68: ='Planung Ausbildung'!#REF! ->  | C68: ='Planung Ausbildung'!#REF! ->  | D68: ='Planung Ausbildung'!#REF! -> 
A69: ='Planung Ausbildung'!#REF! ->  | B69: ='Planung Ausbildung'!#REF! ->  | C69: ='Planung Ausbildung'!#REF! ->  | D69: ='Planung Ausbildung'!#REF! -> 
A70: ='Planung Ausbildung'!#REF! ->  | B70: ='Planung Ausbildung'!#REF! ->  | C70: ='Planung Ausbildung'!#REF! ->  | D70: ='Planung Ausbildung'!#REF! -> 
A71: ='Planung Ausbildung'!#REF! ->  | B71: ='Planung Ausbildung'!#REF! ->  | C71: ='Planung Ausbildung'!#REF! ->  | D71: ='Planung Ausbildung'!#REF! -> 
A72: ='Planung Ausbildung'!#REF! ->  | B72: ='Planung Ausbildung'!#REF! ->  | C72: ='Planung Ausbildung'!#REF! ->  | D72: ='Planung Ausbildung'!#REF! -> 
A73: ='Planung Ausbildung'!#REF! ->  | B73: ='Planung Ausbildung'!#REF! ->  | C73: ='Planung Ausbildung'!#REF! ->  | D73: ='Planung Ausbildung'!#REF! -> 
A74: ='Planung Ausbildung'!#REF! ->  | B74: ='Planung Ausbildung'!#REF! ->  | C74: ='Planung Ausbildung'!#REF! ->  | D74: ='Planung Ausbildung'!#REF! -> 
A75: ='Planung Ausbildung'!#REF! ->  | B75: ='Planung Ausbildung'!#REF! ->  | C75: ='Planung Ausbildung'!#REF! ->  | D75: ='Planung Ausbildung'!#REF! -> 
A76: ='Planung Ausbildung'!#REF! ->  | B76: ='Planung Ausbildung'!#REF! ->  | C76: ='Planung Ausbildung'!#REF! ->  | D76: ='Planung Ausbildung'!#REF! -> 
A77: ='Planung Ausbildung'!#REF! ->  | B77: ='Planung Ausbildung'!#REF! ->  | C77: ='Planung Ausbildung'!#REF! ->  | D77: ='Planung Ausbildung'!#REF! -> 
A78: ='Planung Ausbildung'!#REF! ->  | B78: ='Planung Ausbildung'!#REF! ->  | C78: ='Planung Ausbildung'!#REF! ->  | D78: ='Planung Ausbildung'!#REF! -> 
A79: ='Planung Ausbildung'!#REF! ->  | B79: ='Planung Ausbildung'!#REF! ->  | C79: ='Planung Ausbildung'!#REF! ->  | D79: ='Planung Ausbildung'!#REF! -> 
A80: ='Planung Ausbildung'!#REF! ->  | B80: ='Planung Ausbildung'!#REF! ->  | C80: ='Planung Ausbildung'!#REF! ->  | D80: ='Planung Ausbildung'!#REF! -> 
A81: ='Planung Ausbildung'!#REF! ->  | B81: ='Planung Ausbildung'!#REF! ->  | C81: ='Planung Ausbildung'!#REF! ->  | D81: ='Planung Ausbildung'!#REF! -> 
A82: ='Planung Ausbildung'!#REF! ->  | B82: ='Planung Ausbildung'!#REF! ->  | C82: ='Planung Ausbildung'!#REF! ->  | D82: ='Planung Ausbildung'!#REF! -> 
A83: ='Planung Ausbildung'!#REF! ->  | B83: ='Planung Ausbildung'!#REF! ->  | C83: ='Planung Ausbildung'!#REF! ->  | D83: ='Planung Ausbildung'!#REF! -> 
A84: ='Planung Ausbildung'!#REF! ->  | B84: ='Planung Ausbildung'!#REF! ->  | C84: ='Planung Ausbildung'!#REF! ->  | D84: ='Planung Ausbildung'!#REF! -> 
A85: ='Planung Ausbildung'!#REF! ->  | B85: ='Planung Ausbildung'!#REF! ->  | C85: ='Planung Ausbildung'!#REF! ->  | D85: ='Planung Ausbildung'!#REF! -> 
A86: ='Planung Ausbildung'!#REF! ->  | B86: ='Planung Ausbildung'!#REF! ->  | C86: ='Planung Ausbildung'!#REF! ->  | D86: ='Planung Ausbildung'!#REF! -> 
A87: ='Planung Ausbildung'!#REF! ->  | B87: ='Planung Ausbildung'!#REF! ->  | C87: ='Planung Ausbildung'!#REF! ->  | D87: ='Planung Ausbildung'!#REF! -> 
A88: ='Planung Ausbildung'!#REF! ->  | B88: ='Planung Ausbildung'!#REF! ->  | C88: ='Planung Ausbildung'!#REF! ->  | D88: ='Planung Ausbildung'!#REF! -> 
A89: ='Planung Ausbildung'!#REF! ->  | B89: ='Planung Ausbildung'!#REF! ->  | C89: ='Planung Ausbildung'!#REF! ->  | D89: ='Planung Ausbildung'!#REF! -> 
A90: ='Planung Ausbildung'!#REF! ->  | B90: ='Planung Ausbildung'!#REF! ->  | C90: ='Planung Ausbildung'!#REF! ->  | D90: ='Planung Ausbildung'!#REF! -> 
A91: ='Planung Ausbildung'!#REF! ->  | B91: ='Planung Ausbildung'!#REF! ->  | C91: ='Planung Ausbildung'!#REF! ->  | D91: ='Planung Ausbildung'!#REF! -> 
A92: ='Planung Ausbildung'!#REF! ->  | B92: ='Planung Ausbildung'!#REF! ->  | C92: ='Planung Ausbildung'!#REF! ->  | D92: ='Planung Ausbildung'!#REF! -> 
A93: ='Planung Ausbildung'!#REF! ->  | B93: ='Planung Ausbildung'!#REF! ->  | C93: ='Planung Ausbildung'!#REF! ->  | D93: ='Planung Ausbildung'!#REF! -> 
A94: ='Planung Ausbildung'!#REF! ->  | B94: ='Planung Ausbildung'!#REF! ->  | C94: ='Planung Ausbildung'!#REF! ->  | D94: ='Planung Ausbildung'!#REF! -> 
A95: ='Planung Ausbildung'!#REF! ->  | B95: ='Planung Ausbildung'!#REF! ->  | C95: ='Planung Ausbildung'!#REF! ->  | D95: ='Planung Ausbildung'!#REF! -> 
A96: ='Planung Ausbildung'!#REF! ->  | B96: ='Planung Ausbildung'!#REF! ->  | C96: ='Planung Ausbildung'!#REF! ->  | D96: ='Planung Ausbildung'!#REF! -> 
A97: ='Planung Ausbildung'!#REF! ->  | B97: ='Planung Ausbildung'!#REF! ->  | C97: ='Planung Ausbildung'!#REF! ->  | D97: ='Planung Ausbildung'!#REF! -> 
A98: ='Planung Ausbildung'!#REF! ->  | B98: ='Planung Ausbildung'!#REF! ->  | C98: ='Planung Ausbildung'!#REF! ->  | D98: ='Planung Ausbildung'!#REF! -> 
A99: ='Planung Ausbildung'!#REF! ->  | B99: ='Planung Ausbildung'!#REF! ->  | C99: ='Planung Ausbildung'!#REF! ->  | D99: ='Planung Ausbildung'!#REF! -> 
A100: ='Planung Ausbildung'!#REF! ->  | B100: ='Planung Ausbildung'!#REF! ->  | C100: ='Planung Ausbildung'!#REF! ->  | D100: ='Planung Ausbildung'!#REF! -> 
A101: ='Planung Ausbildung'!#REF! ->  | B101: ='Planung Ausbildung'!#REF! ->  | C101: ='Planung Ausbildung'!#REF! ->  | D101: ='Planung Ausbildung'!#REF! -> 
A102: ='Planung Ausbildung'!#REF! ->  | B102: ='Planung Ausbildung'!#REF! ->  | C102: ='Planung Ausbildung'!#REF! ->  | D102: ='Planung Ausbildung'!#REF! -> 
A103: ='Planung Ausbildung'!#REF! ->  | B103: ='Planung Ausbildung'!#REF! ->  | C103: ='Planung Ausbildung'!#REF! ->  | D103: ='Planung Ausbildung'!#REF! -> 
A104: ='Planung Ausbildung'!#REF! ->  | B104: ='Planung Ausbildung'!#REF! ->  | C104: ='Planung Ausbildung'!#REF! ->  | D104: ='Planung Ausbildung'!#REF! -> 
A105: ='Planung Ausbildung'!#REF! ->  | B105: ='Planung Ausbildung'!#REF! ->  | C105: ='Planung Ausbildung'!#REF! ->  | D105: ='Planung Ausbildung'!#REF! -> 
A106: ='Planung Ausbildung'!#REF! ->  | B106: ='Planung Ausbildung'!#REF! ->  | C106: ='Planung Ausbildung'!#REF! ->  | D106: ='Planung Ausbildung'!#REF! -> 
